Workbook

Sheet Blad1
AB1: eerste klas
E2: Resultaten voorwedstrijden | L2: =IF(E4="driebanden",2,3) -> 3 | N2: =CONCATENATE(E4," _ ",I4," _ ",I5) -> libre _ vierde klas _ 2017 - 2018 | Y2: libre | AB2: tweede klas
V3: V | Y3: driebanden | AB3: derde klas
D4: Spelsoort | E4: libre | H4: klasse | I4: vierde klas | N4: HELP | P4: Moyenne grenzen | S4: 1.2 | T4: tot | U4: 1.7 | V4: HD | Y4: bandstoten | AB4: vierde klas | AH4: =ISNUMBER(B63) -> TRUE | AK4: ALS(B14>0,5;ALS(V$4=WAAR;AL14*10;AL14);"") | AQ4: interval
B5: WMS idnr | D5: Caramboles | E5: vast aantal caramb. | H5: Seizoen | I5: 2017 - 2018 | P5: Aantal Partijen vrrd | S5: 6 | V5: P | Y5: kies spelsoort | AB5: vijfde klas | AQ5: vast aantal caramb.
P6: Aantal deelnemers finale | S6: 8 | AB6: hoofdklas
B7: B.nr. | C7: Deelnemers | D7: Vereniging | E7: Te maken caramboles per partij | F7: Totaal te maken caramboles | G7: Punten | H7: Totaal gemaakte caramboles | I7: Beurten | J7: Moyenne | K7: Moyenne aanvang | L7: % gemaakte caramboles | M7: bovengrens moyenne | N7: % moyenne | O7: rang Punten | P7: =IF(D5="interval"," rang perc. Gem. car.","rang moyenne") -> rang moyenne | Q7: rang gemaakte car. % | S7: rang percentage car. plus rang pnt. | T7: Opmerk ingen | W7: punten rang | X7: aantal dubbelpnt | Z7: moyenne rang | AA7: aantal dubbel moy. | AB7: moyenne rang | AC7: plaats rang gemaakt | AD7: aantal dubbel gemaakt | AE7: plaats rang gemaakt % | AQ7: 0
R8: rang % moyenne | Y8: punten rang | AF8: % moyenne | AG8: ranglijst | AQ8: =AQ7+0.1 -> 0.1
AQ9: =AQ8+0.05 -> 0.15
AQ10: =AQ9+0.05 -> 0.2
AQ11: 0.25
B12: b.nr. | C12: naam | D12: ver. | E12: t.m. | F12: t.t.m | G12: brt | H12: gem. | I12: pnt | L12: perc.car | M12: =IF(I12>0.01,IF(J12>0.01,VLOOKUP(J12,Blad3!A$1:E166,3),""),"") ->  | O12: rang pnt | P12: rang perc | Q12: rang perc | S12: rang tot | T12: opm. | V12: =IF(AND(T12="",S$4>J12),"HD",IF(AND(T12="V",S$4>(J12*1.19999999999999)),"D",IF(AND(T12="V",U$4<J12),"DP",IF(AND(T12="HD",S$4>(J12*1.19999999999999)),"D","")))) ->  | AQ12: 0.3
A13: =AO13 -> 2 | B13: 106584 | C13: =IF(B13>110,VLOOKUP(B13,Blad2!B:F,5,0),"") -> Eddo Kohler | D13: =IF(B13>110,VLOOKUP(B13,Blad2!B:Z,7,0),"") -> Concordia `54 | E13: 55 | F13: =E13*S$5 -> 330 | G13: 10 | H13: 320 | I13: 228 | J13: =IF(I13>0.01,IF(E$4="driebanden",ROUNDDOWN(H13/I13,3),ROUNDDOWN(H13/I13,3)),"") -> 1.403 | K13: 1.6 | L13: =IF(I13>0,H13/(E13*6),"") -> 0.9696969697 | M13: =IF(I13>0.01,IF(J13>0.01,VLOOKUP(K13,Blad3!A$1:E167,3),""),"") -> 1.7 | N13: =IF(F13>1,J13/K13,"") -> 0.876875 | O13: =Y13 -> 1.5 | P13: =IF(ISNUMBER(AB13),AB13,"") -> 4 | Q13: =AE13 -> 2 | R13: =AH13 -> 7 | S13: =IF(ISNUMBER(B13),IF(E5="vast aantal caramb.",O13+P13,O13+Q13),"") -> 5.5 | V13: =IF(AND(T13="",S$4>J13),"HD",IF(AND(T13="V",S$4>J13),"D",IF(AND(T13="V",S$4>(J13*1.19999999999999)),"D",IF(AND(T13="V",U$4<J13),"DP",IF(AND(T13="HD",S$4>(J13*1.19999999999999)),"D",IF(AND(T13="",J13>(U$4*1.19999999999999)),"DP","")))))) ->  | W13: =IF(I13>0.5,RANK(G13,G$13:G$46),"") -> 1 | X13: =COUNTIF(W$13:W$46,W13) -> 2 | Y13: =IF(X13=2,(W13+W13+1)/2,IF(X13=3,(W13+W13+W13+3)/3,IF(X13=4,(W13+W13+W13+W13+6)/4,IF(X13=5,(W13+W13+W13+W13+W13+10)/5,IF(X13=6,(W13+W13+W13+W13+W13+W13+15)/6,W13))))) -> 1.5 | Z13: =RANK(J13,J$13:J$46) -> 4 | AA13: =COUNTIF(Z$13:Z$46,Z13) -> 1 | AB13: =IF(AA13=2,(Z13+Z13+1)/2,IF(AA13=3,(Z13+Z13+Z13+3)/3,IF(AA13=4,(Z13+Z13+Z13+Z13+6)/4,IF(AA13=5,(Z13+Z13+Z13+Z13+Z13+10)/5,Z13)))) -> 4 | AC13: =IF(E13>1,RANK(L13,L$13:L$46),"") -> 2 | AD13: =COUNTIF(AC$13:AC$46,AC13) -> 1 | AE13: =IF(AD13=2,(AC13+AC13+1)/2,IF(AD13=3,(AC13+AC13+AC13+3)/3,IF(AD13=4,(AC13+AC13+AC13+AC13+6)/4,IF(AD13=5,(AC13+AC13+AC13+AC13+AC13+10)/5,AC13)))) -> 2 | AF13: =IF(B13>1,RANK(N13,N$13:N$46),"") -> 7 | AG13: =COUNTIF(AF$13:AF$46,AF13) -> 1 | AH13: =IF(AG13=2,(AF13+AF13+1)/2,IF(AG13=3,(AF13+AF13+AF13+3)/3,IF(AG13=4,(AF13+AF13+AF13+AF13+6)/4,IF(AG13=5,(AF13+AF13+AF13+AF13+AF13+10)/5,AF13)))) -> 7 | AI13: 1 | AJ13: =(Y13*10000)+(AB13*1000)+1 -> 19001 | AK13: =COUNTIF(AJ$13:AJ$46,AJ13) -> 1 | AL13: =IF(I13>0.5,IF(AK13>1,(AJ13*100)+(AC13*10)+AI13,AJ13*100),"") -> 1900100 | AM13: =IF(B13>10,RANK(AL13,AL$13:AL$46,1),"") -> 2 | AN13: =IF(AND(T13="V",(U$4-0.0000001)<J13,B13>0.5),AL13*10,AL13) -> 1900100 | AO13: =IF(B13>10,RANK(AN13,AN$13:AN$46,1),"") -> 2 | AP13: =IF(AND(J13>(U$4-0.00000001),T13="V"),"P","") ->  | AQ13: 0.35
A14: =AO14 -> 4 | B14: 169828 | C14: =IF(B14>110,VLOOKUP(B14,Blad2!B:F,5,0),"") -> Renate Jansen-Albers | D14: =IF(B14>110,VLOOKUP(B14,Blad2!B:Z,7,0),"") -> Slootermeer & Scholtenhof | E14: 55 | F14: =E14*S$5 -> 330 | G14: 6 | H14: 298 | I14: 226 | J14: 1.318 | K14: 1.32 | L14: =IF(I14>0,H14/(E14*6),"") -> 0.903030303 | M14: =IF(I14>0.01,IF(J14>0.01,VLOOKUP(K14,Blad3!A$1:E168,3),""),"") -> 1.4 | N14: 0.9984848485 | O14: =Y14 -> 4 | P14: =IF(ISNUMBER(AB14),AB14,"") -> 6 | Q14: =AE14 -> 7 | R14: =AH14 -> 4 | S14: =IF(ISNUMBER(B14),IF(E6="vast aantal caramb.",O14+P14,O14+Q14),"") -> 11 | V14: =IF(AND(T14="",S$4>J14),"HD",IF(AND(T14="V",S$4>J14),"D",IF(AND(T14="V",S$4>(J14*1.19999999999999)),"D",IF(AND(T14="V",U$4<J14),"DP",IF(AND(T14="HD",S$4>(J14*1.19999999999999)),"D",IF(AND(T14="",J14>(U$4*1.19999999999999)),"DP","")))))) ->  | W14: =IF(I14>0.5,RANK(G14,G$13:G$46),"") -> 3 | X14: =COUNTIF(W$13:W$46,W14) -> 3 | Y14: =IF(X14=2,(W14+W14+1)/2,IF(X14=3,(W14+W14+W14+3)/3,IF(X14=4,(W14+W14+W14+W14+6)/4,IF(X14=5,(W14+W14+W14+W14+W14+10)/5,IF(X14=6,(W14+W14+W14+W14+W14+W14+15)/6,W14))))) -> 4 | Z14: =RANK(J14,J$13:J$46) -> 6 | AA14: =COUNTIF(Z$13:Z$46,Z14) -> 1 | AB14: =IF(AA14=2,(Z14+Z14+1)/2,IF(AA14=3,(Z14+Z14+Z14+3)/3,IF(AA14=4,(Z14+Z14+Z14+Z14+6)/4,IF(AA14=5,(Z14+Z14+Z14+Z14+Z14+10)/5,Z14)))) -> 6 | AC14: =IF(E14>1,RANK(L14,L$13:L$46),"") -> 7 | AD14: =COUNTIF(AC$13:AC$46,AC14) -> 1 | AE14: =IF(AD14=2,(AC14+AC14+1)/2,IF(AD14=3,(AC14+AC14+AC14+3)/3,IF(AD14=4,(AC14+AC14+AC14+AC14+6)/4,IF(AD14=5,(AC14+AC14+AC14+AC14+AC14+10)/5,AC14)))) -> 7 | AF14: =IF(B14>1,RANK(N14,N$13:N$46),"") -> 4 | AG14: =COUNTIF(AF$13:AF$46,AF14) -> 1 | AH14: =IF(AG14=2,(AF14+AF14+1)/2,IF(AG14=3,(AF14+AF14+AF14+3)/3,IF(AG14=4,(AF14+AF14+AF14+AF14+6)/4,IF(AG14=5,(AF14+AF14+AF14+AF14+AF14+10)/5,AF14)))) -> 4 | AI14: 2 | AJ14: =(Y14*10000)+(AB14*1000)+2 -> 46002 | AK14: =COUNTIF(AJ$13:AJ$46,AJ14) -> 1 | AL14: 4600200 | AM14: =IF(B14>10,RANK(AL14,AL$13:AL$46,1),"") -> 4 | AN14: =IF(AND(T14="V",(U$4-0.0000001)<J14,B14>0.5),AL14*10,AL14) -> 4600200 | AO14: =IF(B14>10,RANK(AN14,AN$13:AN$46,1),"") -> 4 | AP14: =IF(AND(J14>(U$4-0.00000001),T14="V"),"P","") ->  | AQ14: 0.4
A15: 6 | B15: 146509 | C15: =IF(B15>110,VLOOKUP(B15,Blad2!B:F,5,0),"") -> Jozef Schabbink | D15: =IF(B15>110,VLOOKUP(B15,Blad2!B:Z,7,0),"") -> Tapperij | E15: 55 | F15: 330 | G15: 5 | H15: 302 | I15: 216 | J15: 1.398 | K15: 1.4 | L15: 0.9151515152 | M15: =IF(I15>0.01,IF(J15>0.01,VLOOKUP(K15,Blad3!A$1:E169,3),""),"") -> 1.5 | N15: 0.9985714286 | O15: 6.5 | P15: 5 | Q15: 5 | R15: 3 | S15: 11.5 | W15: 6 | X15: 2 | Y15: 6.5 | Z15: 5 | AA15: 1 | AB15: 5 | AC15: 5 | AD15: 1 | AE15: 5 | AF15: 3 | AG15: 1 | AH15: 3 | AI15: 3 | AJ15: =(Y15*10000)+(AB15*1000)+2 -> 70002 | AK15: 1 | AL15: 7000200 | AM15: 6 | AN15: 7000200 | AO15: =IF(B15>10,RANK(AN15,AN$13:AN$46,1),"") -> 6 | AQ15: 0.45
A16: 7 | B16: 149009 | C16: =IF(B16>110,VLOOKUP(B16,Blad2!B:F,5,0),"") -> Coen Stiemer | D16: De Pol | E16: 55 | F16: 330 | G16: 5 | H16: 306 | I16: 254 | J16: 1.204 | K16: 1.4 | L16: 0.9272727273 | M16: =IF(I16>0.01,IF(J16>0.01,VLOOKUP(K16,Blad3!A$1:E170,3),""),"") -> 1.5 | N16: =IF(F16>1,J16/K16,"") -> 0.86 | O16: 6.5 | P16: 9 | Q16: 4 | R16: 9 | S16: 10.5 | W16: 6 | X16: 2 | Y16: 6.5 | Z16: 9 | AA16: 1 | AB16: 9 | AC16: 4 | AD16: 1 | AE16: 4 | AF16: 9 | AG16: 1 | AH16: 9 | AI16: 4 | AJ16: =(Y16*10000)+(AB16*1000)+3 -> 74003 | AK16: 1 | AL16: 7400300 | AM16: 7 | AN16: 7400300 | AO16: 7 | AQ16: 0.5
A17: 9 | B17: 136552 | C17: =IF(B17>110,VLOOKUP(B17,Blad2!B:F,5,0),"") -> Cees Vikkerman | D17: =IF(B17>110,VLOOKUP(B17,Blad2!B:Z,7,0),"") -> A.b.c. | E17: 55 | F17: 330 | G17: 4 | H17: 274 | I17: 216 | J17: 1.268 | K17: 1.53 | L17: 0.8303030303 | M17: =IF(I17>0.01,IF(J17>0.01,VLOOKUP(K17,Blad3!A$1:E171,3),""),"") -> 1.6 | N17: 0.8287581699 | O17: 9 | P17: 7 | Q17: 9 | R17: 10 | S17: 18 | W17: 8 | X17: 3 | Y17: 9 | Z17: 7 | AA17: 1 | AB17: 7 | AC17: 9 | AD17: 1 | AE17: 9 | AF17: 10 | AG17: 1 | AH17: 10 | AI17: 5 | AJ17: =(Y17*10000)+(AB17*1000)+4 -> 97004 | AK17: 1 | AL17: 9700400 | AM17: 9 | AN17: 9700400 | AO17: 9 | AQ17: 0.55
A18: 1 | B18: 221956 | C18: =IF(B18>110,VLOOKUP(B18,Blad2!B:F,5,0),"") -> Theo Greven | D18: =IF(B18>110,VLOOKUP(B18,Blad2!B:Z,7,0),"") -> A.b.c. | E18: 55 | F18: 330 | G18: 10 | H18: 322 | I18: 210 | J18: 1.533 | K18: 1.65 | L18: 0.9757575758 | M18: =IF(I18>0.01,IF(J18>0.01,VLOOKUP(K18,Blad3!A$1:E172,3),""),"") -> 1.7 | N18: 0.9290909091 | O18: 1.5 | P18: 1 | Q18: 1 | R18: 6 | S18: 2.5 | W18: 1 | X18: 2 | Y18: 1.5 | Z18: 1 | AA18: 1 | AB18: 1 | AC18: 1 | AD18: 1 | AE18: 1 | AF18: 6 | AG18: 1 | AH18: 6 | AI18: 6 | AJ18: =(Y18*10000)+(AB18*1000)+5 -> 16005 | AK18: 1 | AL18: 1600500 | AM18: 1 | AN18: 1600500 | AO18: 1 | AQ18: 0.6
A19: 3 | B19: 123631 | C19: =IF(B19>110,VLOOKUP(B19,Blad2!B:F,5,0),"") -> Frank Stevens | D19: =IF(B19>110,VLOOKUP(B19,Blad2!B:Z,7,0),"") -> D.L.S. | E19: 55 | F19: 330 | G19: 6 | H19: 318 | I19: 218 | J19: 1.458 | K19: 1.49 | L19: 0.9636363636 | M19: =IF(I19>0.01,IF(J19>0.01,VLOOKUP(K19,Blad3!A$1:E173,3),""),"") -> 1.5 | N19: 0.9785234899 | O19: 4 | P19: 2 | Q19: 3 | R19: 5 | S19: 7 | W19: 3 | X19: 3 | Y19: 4 | Z19: 2 | AA19: 1 | AB19: 2 | AC19: 3 | AD19: 1 | AE19: 3 | AF19: 5 | AG19: 1 | AH19: 5 | AI19: 8 | AJ19: =(Y19*10000)+(AB19*1000)+6 -> 42006 | AK19: 1 | AL19: 4200600 | AM19: 3 | AN19: 4200600 | AO19: 3 | AQ19: 0.65
A20: 5 | B20: 209553 | C20: =IF(B20>110,VLOOKUP(B20,Blad2!B:F,5,0),"") -> Lucilio Cordeiro | D20: =IF(B20>110,VLOOKUP(B20,Blad2!B:Z,7,0),"") -> Nijman | E20: 55 | F20: 330 | G20: 6 | H20: 301 | I20: 243 | J20: 1.238 | K20: 1.42 | L20: 0.9121212121 | M20: =IF(I20>0.01,IF(J20>0.01,VLOOKUP(K20,Blad3!A$1:E174,3),""),"") -> 1.5 | N20: 0.8718309859 | O20: 4 | P20: 8 | Q20: 6 | R20: 8 | S20: 10 | W20: 3 | X20: 3 | Y20: 4 | Z20: 8 | AA20: 1 | AB20: 8 | AC20: 6 | AD20: 1 | AE20: 6 | AF20: 8 | AG20: 1 | AH20: 8 | AI20: 7 | AJ20: =(Y20*10000)+(AB20*1000)+7 -> 48007 | AK20: 1 | AL20: 4800700 | AM20: 5 | AN20: 4800700 | AO20: 5 | AQ20: 0.7
A21: 8 | B21: 177750 | C21: =IF(B21>110,VLOOKUP(B21,Blad2!B:F,5,0),"") -> Tonnie Bisselink | D21: =IF(B21>110,VLOOKUP(B21,Blad2!B:Z,7,0),"") -> KÃ¶ster | E21: 55 | F21: 330 | G21: 4 | H21: 291 | I21: 206 | J21: 1.412 | K21: 1.41 | L21: 0.8818181818 | M21: =IF(I21>0.01,IF(J21>0.01,VLOOKUP(K21,Blad3!A$1:E175,3),""),"") -> 1.5 | N21: 1.00141844 | O21: 9 | P21: 3 | Q21: 8 | R21: 2 | S21: 17 | W21: 8 | X21: 3 | Y21: 9 | Z21: 3 | AA21: 1 | AB21: 3 | AC21: 8 | AD21: 1 | AE21: 8 | AF21: 2 | AG21: 1 | AH21: 2 | AI21: 9 | AJ21: =(Y21*10000)+(AB21*1000)+8 -> 93008 | AK21: 1 | AL21: =IF(I21>0.5,IF(AK21>1,(AJ21*100)+(AC21*10)+AI21,AJ21*100),"") -> 9300800 | AM21: 8 | AN21: 9300800 | AO21: 8 | AQ21: 0.75
A22: 10 | B22: 140583 | C22: =IF(B22>110,VLOOKUP(B22,Blad2!B:F,5,0),"") -> Martin Koster | D22: =IF(B22>110,VLOOKUP(B22,Blad2!B:Z,7,0),"") -> Concordia `54 | E22: 55 | F22: =E22*S$5 -> 330 | G22: 4 | H22: 265 | I22: 229 | J22: 1.157 | K22: 1.15 | L22: 0.803030303 | M22: =IF(I22>0.01,IF(J22>0.01,VLOOKUP(K22,Blad3!A$1:E176,3),""),"") -> 1.2 | N22: 1.006086957 | O22: =Y22 -> 9 | P22: =IF(ISNUMBER(AB22),AB22,"") -> 10 | Q22: =AE22 -> 10 | R22: =AH22 -> 1 | S22: 19 | V22: HD | W22: 8 | X22: 3 | Y22: 9 | Z22: 10 | AA22: 1 | AB22: 10 | AC22: 10 | AD22: 1 | AE22: 10 | AF22: =IF(B22>1,RANK(N22,N$13:N$46),"") -> 1 | AG22: =COUNTIF(AF$13:AF$46,AF22) -> 1 | AH22: =IF(AG22=2,(AF22+AF22+1)/2,IF(AG22=3,(AF22+AF22+AF22+3)/3,IF(AG22=4,(AF22+AF22+AF22+AF22+6)/4,IF(AG22=5,(AF22+AF22+AF22+AF22+AF22+10)/5,AF22)))) -> 1 | AI22: 10 | AJ22: =(Y22*10000)+(AB22*1000)+9 -> 100009 | AK22: 1 | AL22: 10000900 | AM22: =IF(B22>10,RANK(AL22,AL$13:AL$46,1),"") -> 10 | AN22: 10000900 | AO22: 10 | AQ22: 0.8
C23: =IF(B23>110,VLOOKUP(B23,Blad2!B:F,5,0),"") ->  | D23: =IF(B23>110,VLOOKUP(B23,Blad2!B:Z,7,0),"") ->  | F23: 0 | M23: =IF(I23>0.01,IF(J23>0.01,VLOOKUP(K23,Blad3!A$1:E177,3),""),"") ->  | X23: 24 | AA23: 24 | AD23: 24 | AG23: 24 | AI23: 11 | AJ23: =(Y23*10000)+(AB23*1000)+10 ->  | AK23: 24 | AQ23: 0.85
C24: =IF(B24>110,VLOOKUP(B24,Blad2!B:F,5,0),"") ->  | D24: =IF(B24>110,VLOOKUP(B24,Blad2!B:Z,7,0),"") ->  | F24: 0 | M24: =IF(I24>0.01,IF(J24>0.01,VLOOKUP(K24,Blad3!A$1:E178,3),""),"") ->  | X24: 24 | AA24: 24 | AD24: 24 | AG24: 24 | AI24: 12 | AJ24: =(Y24*10000)+(AB24*1000)+11 ->  | AK24: 24 | AQ24: 0.9
C25: =IF(B25>110,VLOOKUP(B25,Blad2!B:F,5,0),"") ->  | D25: =IF(B25>110,VLOOKUP(B25,Blad2!B:Z,7,0),"") ->  | F25: =E25*S$5 -> 0 | M25: =IF(I25>0.01,IF(J25>0.01,VLOOKUP(K25,Blad3!A$1:E179,3),""),"") ->  | X25: 24 | AA25: 24 | AD25: 24 | AF25: =IF(B25>1,RANK(N25,N$13:N$46),"") ->  | AG25: =COUNTIF(AF$13:AF$46,AF25) -> 24 | AH25: =IF(AG25=2,(AF25+AF25+1)/2,IF(AG25=3,(AF25+AF25+AF25+3)/3,IF(AG25=4,(AF25+AF25+AF25+AF25+6)/4,IF(AG25=5,(AF25+AF25+AF25+AF25+AF25+10)/5,AF25)))) ->  | AI25: 13 | AJ25: =(Y25*10000)+(AB25*1000)+212 ->  | AK25: 24 | AM25: =IF(B25>10,RANK(AL25,AL$13:AL$46,1),"") ->  | AQ25: 0.95
C26: =IF(B26>110,VLOOKUP(B26,Blad2!B:F,5,0),"") ->  | D26: =IF(B26>110,VLOOKUP(B26,Blad2!B:Z,7,0),"") ->  | F26: 0 | M26: =IF(I26>0.01,IF(J26>0.01,VLOOKUP(K26,Blad3!A$1:E180,3),""),"") ->  | X26: 24 | AA26: 24 | AD26: 24 | AG26: 24 | AI26: 14 | AJ26: =(Y26*10000)+(AB26*1000)+13 ->  | AK26: 24 | AQ26: 1
C27: =IF(B27>110,VLOOKUP(B27,Blad2!B:F,5,0),"") ->  | D27: =IF(B27>110,VLOOKUP(B27,Blad2!B:Z,7,0),"") ->  | F27: 0 | M27: =IF(I27>0.01,IF(J27>0.01,VLOOKUP(K27,Blad3!A$1:E181,3),""),"") ->  | X27: 24 | AA27: 24 | AD27: 24 | AG27: 24 | AI27: 15 | AJ27: =(Y27*10000)+(AB27*1000)+14 ->  | AK27: 24 | AQ27: 1.05
C28: =IF(B28>110,VLOOKUP(B28,Blad2!B:F,5,0),"") ->  | D28: =IF(B28>110,VLOOKUP(B28,Blad2!B:Z,7,0),"") ->  | F28: 0 | M28: =IF(I28>0.01,IF(J28>0.01,VLOOKUP(K28,Blad3!A$1:E182,3),""),"") ->  | X28: 24 | AA28: 24 | AD28: 24 | AG28: 24 | AI28: 16 | AJ28: =(Y28*10000)+(AB28*1000)+15 ->  | AK28: 24 | AQ28: 1.1
C29: =IF(B29>110,VLOOKUP(B29,Blad2!B:F,5,0),"") ->  | D29: =IF(B29>110,VLOOKUP(B29,Blad2!B:Z,7,0),"") ->  | F29: 0 | M29: =IF(I29>0.01,IF(J29>0.01,VLOOKUP(K29,Blad3!A$1:E183,3),""),"") ->  | X29: 24 | AA29: 24 | AD29: 24 | AG29: 24 | AI29: 17 | AJ29: =(Y29*10000)+(AB29*1000)+16 ->  | AK29: 24 | AQ29: 1.15
C30: =IF(B30>110,VLOOKUP(B30,Blad2!B:F,5,0),"") ->  | D30: =IF(B30>110,VLOOKUP(B30,Blad2!B:Z,7,0),"") ->  | F30: 0 | M30: =IF(I30>0.01,IF(J30>0.01,VLOOKUP(K30,Blad3!A$1:E184,3),""),"") ->  | X30: 24 | AA30: 24 | AD30: 24 | AG30: 24 | AI30: 18 | AJ30: =(Y30*10000)+(AB30*1000)+17 ->  | AK30: 24 | AQ30: 1.2
C31: =IF(B31>110,VLOOKUP(B31,Blad2!B:F,5,0),"") ->  | D31: =IF(B31>110,VLOOKUP(B31,Blad2!B:Z,7,0),"") ->  | F31: 0 | M31: =IF(I31>0.01,IF(J31>0.01,VLOOKUP(K31,Blad3!A$1:E185,3),""),"") ->  | X31: 24 | AA31: 24 | AD31: 24 | AG31: 24 | AI31: 19 | AJ31: =(Y31*10000)+(AB31*1000)+18 ->  | AK31: 24 | AQ31: 1.25
C32: =IF(B32>110,VLOOKUP(B32,Blad2!B:F,5,0),"") ->  | D32: =IF(B32>110,VLOOKUP(B32,Blad2!B:Z,7,0),"") ->  | F32: 0 | M32: =IF(I32>0.01,IF(J32>0.01,VLOOKUP(K32,Blad3!A$1:E186,3),""),"") ->  | X32: 24 | AA32: 24 | AD32: 24 | AG32: 24 | AI32: 20 | AJ32: =(Y32*10000)+(AB32*1000)+19 ->  | AK32: 24 | AQ32: 1.3
C33: =IF(B33>110,VLOOKUP(B33,Blad2!B:F,5,0),"") ->  | D33: =IF(B33>110,VLOOKUP(B33,Blad2!B:Z,7,0),"") ->  | F33: 0 | M33: =IF(I33>0.01,IF(J33>0.01,VLOOKUP(K33,Blad3!A$1:E187,3),""),"") ->  | X33: 24 | AA33: 24 | AD33: 24 | AG33: 24 | AI33: 21 | AJ33: =(Y33*10000)+(AB33*1000)+20 ->  | AK33: 24 | AQ33: 1.35
C34: =IF(B34>110,VLOOKUP(B34,Blad2!B:F,5,0),"") ->  | D34: =IF(B34>110,VLOOKUP(B34,Blad2!B:Z,7,0),"") ->  | F34: 0 | M34: =IF(I34>0.01,IF(J34>0.01,VLOOKUP(K34,Blad3!A$1:E188,3),""),"") ->  | X34: 24 | AA34: 24 | AD34: 24 | AG34: 24 | AI34: 22 | AJ34: =(Y34*10000)+(AB34*1000)+21 ->  | AK34: 24 | AQ34: 1.4
C35: =IF(B35>110,VLOOKUP(B35,Blad2!B:F,5,0),"") ->  | D35: =IF(B35>110,VLOOKUP(B35,Blad2!B:Z,7,0),"") ->  | F35: 0 | M35: =IF(I35>0.01,IF(J35>0.01,VLOOKUP(K35,Blad3!A$1:E189,3),""),"") ->  | X35: 24 | AA35: 24 | AD35: 24 | AG35: 24 | AI35: 23 | AJ35: =(Y35*10000)+(AB35*1000)+22 ->  | AK35: 24 | AQ35: 1.45
C36: =IF(B36>110,VLOOKUP(B36,Blad2!B:F,5,0),"") ->  | D36: =IF(B36>110,VLOOKUP(B36,Blad2!B:Z,7,0),"") ->  | F36: 0 | M36: =IF(I36>0.01,IF(J36>0.01,VLOOKUP(K36,Blad3!A$1:E190,3),""),"") ->  | X36: 24 | AA36: 24 | AD36: 24 | AG36: 24 | AJ36: =(Y36*10000)+(AB36*1000)+23 ->  | AK36: 24 | AQ36: 1.5
C37: =IF(B37>110,VLOOKUP(B37,Blad2!B:F,5,0),"") ->  | D37: =IF(B37>110,VLOOKUP(B37,Blad2!B:Z,7,0),"") ->  | F37: 0 | M37: =IF(I37>0.01,IF(J37>0.01,VLOOKUP(K37,Blad3!A$1:E191,3),""),"") ->  | X37: 24 | AA37: 24 | AD37: 24 | AG37: 24 | AJ37: =(Y37*10000)+(AB37*1000)+24 ->  | AK37: 24 | AQ37: 1.55
C38: =IF(B38>110,VLOOKUP(B38,Blad2!B:F,5,0),"") ->  | D38: =IF(B38>110,VLOOKUP(B38,Blad2!B:Z,7,0),"") ->  | F38: 0 | M38: =IF(I38>0.01,IF(J38>0.01,VLOOKUP(K38,Blad3!A$1:E192,3),""),"") ->  | X38: 24 | AA38: 24 | AD38: 24 | AG38: 24 | AJ38: =(Y38*10000)+(AB38*1000)+25 ->  | AK38: 24 | AQ38: 1.6
C39: =IF(B39>110,VLOOKUP(B39,Blad2!B:F,5,0),"") ->  | D39: =IF(B39>110,VLOOKUP(B39,Blad2!B:Z,7,0),"") ->  | F39: 0 | M39: =IF(I39>0.01,IF(J39>0.01,VLOOKUP(K39,Blad3!A$1:E193,3),""),"") ->  | X39: 24 | AA39: 24 | AD39: 24 | AG39: 24 | AJ39: =(Y39*10000)+(AB39*1000)+26 ->  | AK39: 24 | AQ39: 1.65
C40: =IF(B40>110,VLOOKUP(B40,Blad2!B:F,5,0),"") ->  | D40: =IF(B40>110,VLOOKUP(B40,Blad2!B:Z,7,0),"") ->  | F40: 0 | M40: =IF(I40>0.01,IF(J40>0.01,VLOOKUP(K40,Blad3!A$1:E194,3),""),"") ->  | X40: 24 | AA40: 24 | AD40: 24 | AG40: 24 | AJ40: =(Y40*10000)+(AB40*1000)+27 ->  | AK40: 24 | AQ40: 1.7
C41: =IF(B41>110,VLOOKUP(B41,Blad2!B:F,5,0),"") ->  | D41: =IF(B41>110,VLOOKUP(B41,Blad2!B:Z,7,0),"") ->  | F41: 0 | M41: =IF(I41>0.01,IF(J41>0.01,VLOOKUP(K41,Blad3!A$1:E195,3),""),"") ->  | X41: 24 | AA41: 24 | AD41: 24 | AG41: 24 | AJ41: =(Y41*10000)+(AB41*1000)+28 ->  | AK41: 24 | AQ41: 1.75
C42: =IF(B42>110,VLOOKUP(B42,Blad2!B:F,5,0),"") ->  | D42: =IF(B42>110,VLOOKUP(B42,Blad2!B:Z,7,0),"") ->  | F42: 0 | M42: =IF(I42>0.01,IF(J42>0.01,VLOOKUP(K42,Blad3!A$1:E196,3),""),"") ->  | X42: 24 | AA42: 24 | AD42: 24 | AG42: 24 | AJ42: =(Y42*10000)+(AB42*1000)+29 ->  | AK42: 24 | AQ42: 1.8
C43: =IF(B43>110,VLOOKUP(B43,Blad2!B:F,5,0),"") ->  | D43: =IF(B43>110,VLOOKUP(B43,Blad2!B:Z,7,0),"") ->  | F43: 0 | M43: =IF(I43>0.01,IF(J43>0.01,VLOOKUP(K43,Blad3!A$1:E197,3),""),"") ->  | X43: 24 | AA43: 24 | AD43: 24 | AG43: 24 | AJ43: =(Y43*10000)+(AB43*1000)+30 ->  | AK43: 24 | AQ43: 1.85
C44: =IF(B44>110,VLOOKUP(B44,Blad2!B:F,5,0),"") ->  | D44: =IF(B44>110,VLOOKUP(B44,Blad2!B:Z,7,0),"") ->  | F44: 0 | M44: =IF(I44>0.01,IF(J44>0.01,VLOOKUP(K44,Blad3!A$1:E198,3),""),"") ->  | X44: 24 | AA44: 24 | AD44: 24 | AG44: 24 | AJ44: =(Y44*10000)+(AB44*1000)+31 ->  | AK44: 24 | AQ44: 1.9
C45: =IF(B45>110,VLOOKUP(B45,Blad2!B:F,5,0),"") ->  | D45: =IF(B45>110,VLOOKUP(B45,Blad2!B:Z,7,0),"") ->  | F45: 0 | M45: =IF(I45>0.01,IF(J45>0.01,VLOOKUP(K45,Blad3!A$1:E199,3),""),"") ->  | X45: 24 | AA45: 24 | AD45: 24 | AG45: 24 | AJ45: =(Y45*10000)+(AB45*1000)+32 ->  | AK45: 24 | AQ45: 1.95
C46: =IF(B46>110,VLOOKUP(B46,Blad2!B:F,5,0),"") ->  | D46: =IF(B46>110,VLOOKUP(B46,Blad2!B:Z,7,0),"") ->  | F46: 0 | M46: =IF(I46>0.01,IF(J46>0.01,VLOOKUP(K46,Blad3!A$1:E200,3),""),"") ->  | X46: 24 | AA46: 24 | AD46: 24 | AG46: 24 | AJ46: =(Y46*10000)+(AB46*1000)+33 ->  | AK46: 24 | AQ46: 2
AQ47: 2.05
S48: HELP | AQ48: 2.1
AQ49: 2.15
AQ50: 2.2
AB51: =J13/M13 -> 0.8252941176 | AQ51: 2.25
AQ52: 2.3
E53: =E2 -> Resultaten voorwedstrijden | AB53: =0.25/0.57 -> 0.4385964912 | AQ53: 2.35
D54: Spelsoort | E54: =E4 -> libre | H54: klasse | J54: =I4 -> vierde klas | O54: Moyenne grenzen | R54: =S4 -> 1.2 | S54: =T4 -> tot | T54: =U4 -> 1.7 | AQ54: 2.4 | AW54: =CONCATENATE("Resultaten voorwedstrijden"," seizoen ",I5) -> Resultaten voorwedstrijden seizoen 2017 - 2018
A55: =C5 -> 0 | E55: =E5 -> vast aantal caramb. | H55: Seizoen | J55: =I5 -> 2017 - 2018 | O55: Aantal Partijen | R55: =S5 -> 6 | AB55: breng de uitslagen in de gele vakken in | AF55: =ISNUMBER(B63) -> TRUE | AQ55: 2.45
AQ56: 2.5 | AW56: punte
A57: Nr. | B57: B.nr. | C57: Deelnemers | D57: Vereniging | E57: Te maken car. per partij | F57: Totaal te maken caramboles | G57: Punten | H57: Totaal gem. car. | I57: Beurten | J57: Moyenne | K57: Moyenne aanvang | L57: % gem. car. | M57: bovengrens moyenne | N57: % moyenne | O57: rang Punten | P57: =IF(D55="interval"," rang perc. Gem. car.","rang moyenne") -> rang moyenne | Q57: rang gemaakte car. % | S57: rang percentage car. plus rang pnt. | T57: opmerkingen | U57: plaatsing finale | AQ57: 2.55
R58: rang % moyenne | AQ58: 2.6
AQ59: 2.65
AQ60: 2.7
AQ61: 2.75
B62: b.nr. | C62: naam | D62: ver. | E62: t.m. | F62: t.t.m | G62: brt | H62: gem. | I62: pnt | K62: moy. | L62: perc.car | O62: rang pnt | P62: rang perc | Q62: rang perc | S62: rang tot | AQ62: 2.8
A63: 1 | B63: =IF($B13>10,VLOOKUP($A63,$A$13:$S$46,2,FALSE),"") -> 221956 | C63: =IF($B13>10,VLOOKUP($A63,$A$13:$S$46,3,FALSE),"") -> Theo Greven | D63: =IF($B13>10,VLOOKUP($A63,$A$13:$S$46,4,FALSE),"") -> A.b.c. | E63: =IF($B13>10,VLOOKUP($A63,$A$13:$S$46,5,FALSE),"") -> 55 | F63: =IF($B13>10,VLOOKUP($A63,$A$13:$S$46,6,FALSE),"") -> 330 | G63: =IF($B13>10,VLOOKUP($A63,$A$13:$S$46,7,FALSE),"") -> 10 | H63: =IF($B13>10,VLOOKUP($A63,$A$13:$S$46,8,FALSE),"") -> 322 | I63: =IF($B13>10,VLOOKUP($A63,$A$13:$S$46,9,FALSE),"") -> 210 | J63: =IF($B13>10,VLOOKUP($A63,$A$13:$S$46,10,FALSE),"") -> 1.533 | K63: =IF($B13>10,VLOOKUP($A63,$A$13:$S$46,11,FALSE),"") -> 1.65 | L63: =IF($B13>10,VLOOKUP($A63,$A$13:$S$46,12,FALSE),"") -> 0.9757575758 | M63: =IF($B13>10,VLOOKUP($A63,$A$13:$S$46,13,FALSE),"") -> 1.7 | N63: =IF($B13>10,VLOOKUP($A63,$A$13:$S$46,14,FALSE),"") -> 0.9290909091 | O63: =IF($B13>10,VLOOKUP($A63,$A$13:$S$46,15,FALSE),"") -> 1.5 | P63: =IF($B13>10,VLOOKUP($A63,$A$13:$S$46,16,FALSE),"") -> 1 | Q63: =IF($B13>10,VLOOKUP($A63,$A$13:$S$46,17,FALSE),"") -> 1 | R63: =IF($B13>10,VLOOKUP($A63,$A$13:$S$46,18,FALSE),"") -> 6 | S63: =IF(ISNUMBER(B63),IF(V63>4000,V63-4000,IF(V63>3000,V63-3000,IF(V63>2000,V63-2000,IF(V63>1000,V63-1000,V63)))),"") -> 2.5 | T63: =IF(ISNUMBER(B63),IF(J63>U$4,"PROMOTIE",IF(J63<S$4,"ONDER MOY.GRENS","")),"") ->  | U63: =IF(ISNUMBER(B63),RANK(V63,V$63:V$96,1),"0") -> 1 | V63: =IF(ISNUMBER(B63),VLOOKUP($A63,$A$13:$S$46,19,FALSE),"") -> 2.5 | W63: =TEXT(J63,"0,000") -> 1,533 | Y63: =CONCATENATE("1. ",C63," ",D63," ") -> 1. Theo Greven A.b.c. | Z63: =CONCATENATE(Y63,G63," punten "," gemaakt ",H63) -> 1. Theo Greven A.b.c. 10 punten gemaakt 322 | AA63: =CONCATENATE(Z63," in ",I63," beurten, moyenne van ",W63) -> 1. Theo Greven A.b.c. 10 punten gemaakt 322 in 210 beurten, moyenne van 1,533 | AB63: =CONCATENATE($AA63," rang punten ",O63," rang moyenne ",P63) -> 1. Theo Greven A.b.c. 10 punten gemaakt 322 in 210 beurten, moyenne van 1,533 rang punten 1,5 rang moyenne 1 | AC63: =IF(ISNUMBER(B63),CONCATENATE(AB63," totaal ",S63," punten"),"") -> 1. Theo Greven A.b.c. 10 punten gemaakt 322 in 210 beurten, moyenne van 1,533 rang punten 1,5 rang moyenne 1 totaal 2,5 punten | AJ63: =CONCATENATE($AA63," rang punten ",O63," rang gem. caramboles ",Q63) -> 1. Theo Greven A.b.c. 10 punten gemaakt 322 in 210 beurten, moyenne van 1,533 rang punten 1,5 rang gem. caramboles 1 | AK63: =IF(ISNUMBER(B63),CONCATENATE(AJ63," totaal ",S63," punten"),"") -> 1. Theo Greven A.b.c. 10 punten gemaakt 322 in 210 beurten, moyenne van 1,533 rang punten 1,5 rang gem. caramboles 1 totaal 2,5 punten | AQ63: 2.85 | AW63: =IF(E5="vast aantal caramb.",AC63,AK63) -> 1. Theo Greven A.b.c. 10 punten gemaakt 322 in 210 beurten, moyenne van 1,533 rang punten 1,5 rang moyenne 1 totaal 2,5 punten
A64: 2 | B64: =IF($B14>10,VLOOKUP($A64,$A$13:$S$46,2,FALSE),"") -> 106584 | C64: =IF($B14>10,VLOOKUP($A64,$A$13:$S$46,3,FALSE),"") -> Eddo Kohler | D64: =IF($B14>10,VLOOKUP($A64,$A$13:$S$46,4,FALSE),"") -> Concordia `54 | E64: =IF($B14>10,VLOOKUP($A64,$A$13:$S$46,5,FALSE),"") -> 55 | F64: =IF($B14>10,VLOOKUP($A64,$A$13:$S$46,6,FALSE),"") -> 330 | G64: =IF($B14>10,VLOOKUP($A64,$A$13:$S$46,7,FALSE),"") -> 10 | H64: =IF($B14>10,VLOOKUP($A64,$A$13:$S$46,8,FALSE),"") -> 320 | I64: =IF($B14>10,VLOOKUP($A64,$A$13:$S$46,9,FALSE),"") -> 228 | J64: =IF($B14>10,VLOOKUP($A64,$A$13:$S$46,10,FALSE),"") -> 1.403 | K64: =IF($B14>10,VLOOKUP($A64,$A$13:$S$46,11,FALSE),"") -> 1.6 | L64: =IF($B14>10,VLOOKUP($A64,$A$13:$S$46,12,FALSE),"") -> 0.9696969697 | M64: =IF($B14>10,VLOOKUP($A64,$A$13:$S$46,13,FALSE),"") -> 1.7 | N64: =IF($B14>10,VLOOKUP($A64,$A$13:$S$46,14,FALSE),"") -> 0.876875 | O64: =IF($B14>10,VLOOKUP($A64,$A$13:$S$46,15,FALSE),"") -> 1.5 | P64: =IF($B14>10,VLOOKUP($A64,$A$13:$S$46,16,FALSE),"") -> 4 | Q64: =IF($B14>10,VLOOKUP($A64,$A$13:$S$46,17,FALSE),"") -> 2 | R64: =IF($B14>10,VLOOKUP($A64,$A$13:$S$46,18,FALSE),"") -> 7 | S64: =IF(ISNUMBER(B64),IF(V64>4000,V64-4000,IF(V64>3000,V64-3000,IF(V64>2000,V64-2000,IF(V64>1000,V64-1000,V64)))),"") -> 5.5 | T64: =IF(ISNUMBER(B64),IF(J64>U$4,"PROMOTIE",IF(J64<S$4,"ONDER MOY.GRENS","")),"") ->  | U64: =IF(ISNUMBER(B64),RANK(V64,V$63:V$96,1),"") -> 2 | V64: =IF(ISNUMBER(B64),VLOOKUP($A64,$A$13:$S$46,19,FALSE),"") -> 5.5 | W64: 1,403 | Y64: =CONCATENATE("2. ",C64," ",D64," ") -> 2. Eddo Kohler Concordia `54 | Z64: =CONCATENATE(Y64,G64," punten "," gemaakt ",H64) -> 2. Eddo Kohler Concordia `54 10 punten gemaakt 320 | AA64: =CONCATENATE(Z64," in ",I64," beurten, moyenne van ",J64) -> 2. Eddo Kohler Concordia `54 10 punten gemaakt 320 in 228 beurten, moyenne van 1,403 | AB64: =CONCATENATE(AA64," rang punten ",O64," rang moyenne ",P64) -> 2. Eddo Kohler Concordia `54 10 punten gemaakt 320 in 228 beurten, moyenne van 1,403 rang punten 1,5 rang moyenne 4 | AC64: =IF(ISNUMBER(B64),CONCATENATE(AB64," totaal ",S64," punten"),"") -> 2. Eddo Kohler Concordia `54 10 punten gemaakt 320 in 228 beurten, moyenne van 1,403 rang punten 1,5 rang moyenne 4 totaal 5,5 punten | AJ64: =CONCATENATE($AA64," rang punten ",O64," rang gem. caramboles ",Q64) -> 2. Eddo Kohler Concordia `54 10 punten gemaakt 320 in 228 beurten, moyenne van 1,403 rang punten 1,5 rang gem. caramboles 2 | AK64: =IF(ISNUMBER(B64),CONCATENATE(AJ64," totaal ",S64," punten"),"") -> 2. Eddo Kohler Concordia `54 10 punten gemaakt 320 in 228 beurten, moyenne van 1,403 rang punten 1,5 rang gem. caramboles 2 totaal 5,5 punten | AQ64: 2.9 | AW64: 2. Eddo Kohler Concordia `54 10 punten gemaakt 320 in 228 beurten, moyenne van 1,403 rang punten 1,5 rang gem. caramboles 2 totaal 5,5 punten
A65: 3 | B65: 123631 | C65: Frank Stevens | D65: D.L.S. | E65: 55 | F65: 330 | G65: 6 | H65: 318 | I65: 218 | J65: 1.458 | K65: 1.49 | L65: 0.9636363636 | M65: 1.5 | N65: 0.9785234899 | O65: 4 | P65: 2 | Q65: 3 | R65: 5 | S65: 7 | U65: =IF(ISNUMBER(B65),RANK(V65,V$63:V$96,1),"") -> 3 | V65: 7 | W65: 1,458 | Y65: =CONCATENATE("3. ",C65," ",D65," ") -> 3. Frank Stevens D.L.S. | Z65: 3. Frank Stevens D.L.S. 6 punten gemaakt 318 | AA65: 3. Frank Stevens D.L.S. 6 punten gemaakt 318 in 218 beurten, moyenne van 1,458 | AB65: 3. Frank Stevens D.L.S. 6 punten gemaakt 318 in 218 beurten, moyenne van 1,458 rang punten 4 rang moyenne 2 | AC65: 3. Frank Stevens D.L.S. 6 punten gemaakt 318 in 218 beurten, moyenne van 1,458 rang punten 4 rang moyenne 2 totaal 7 punten | AJ65: 3. Frank Stevens D.L.S. 6 punten gemaakt 318 in 218 beurten, moyenne van 1,458 rang punten 4 rang gem. caramboles 3 | AK65: 3. Frank Stevens D.L.S. 6 punten gemaakt 318 in 218 beurten, moyenne van 1,458 rang punten 4 rang gem. caramboles 3 totaal 7 punten | AQ65: 2.95 | AW65: 3. Frank Stevens D.L.S. 6 punten gemaakt 318 in 218 beurten, moyenne van 1,458 rang punten 4 rang gem. caramboles 3 totaal 7 punten
A66: 4 | B66: 169828 | C66: Renate Jansen-Albers | D66: Slootermeer & Scholtenhof | E66: 55 | F66: 330 | G66: 6 | H66: 298 | I66: 226 | J66: 1.318 | K66: 1.32 | L66: 0.903030303 | M66: 1.4 | N66: 0.9984848485 | O66: 4 | P66: 6 | Q66: 7 | R66: 4 | S66: 11 | U66: 6 | V66: 11 | W66: 1,318 | Y66: =CONCATENATE("4. ",C66," ",D66," ") -> 4. Renate Jansen-Albers Slootermeer & Scholtenhof | Z66: 4. Renate Jansen-Albers Slootermeer & Scholtenhof 6 punten gemaakt 298 | AA66: 4. Renate Jansen-Albers Slootermeer & Scholtenhof 6 punten gemaakt 298 in 226 beurten, moyenne van 1,318 | AB66: 4. Renate Jansen-Albers Slootermeer & Scholtenhof 6 punten gemaakt 298 in 226 beurten, moyenne van 1,318 rang punten 4 rang moyenne 6 | AC66: 4. Renate Jansen-Albers Slootermeer & Scholtenhof 6 punten gemaakt 298 in 226 beurten, moyenne van 1,318 rang punten 4 rang moyenne 6 totaal 11 punten | AJ66: 4. Renate Jansen-Albers Slootermeer & Scholtenhof 6 punten gemaakt 298 in 226 beurten, moyenne van 1,318 rang punten 4 rang gem. caramboles 7 | AK66: 4. Renate Jansen-Albers Slootermeer & Scholtenhof 6 punten gemaakt 298 in 226 beurten, moyenne van 1,318 rang punten 4 rang gem. caramboles 7 totaal 11 punten | AQ66: 3 | AW66: 4. Renate Jansen-Albers Slootermeer & Scholtenhof 6 punten gemaakt 298 in 226 beurten, moyenne van 1,318 rang punten 4 rang gem. caramboles 7 totaal 11 punten
A67: 5 | B67: 209553 | C67: Lucilio Cordeiro | D67: Nijman | E67: 55 | F67: 330 | G67: 6 | H67: 301 | I67: 243 | J67: 1.238 | K67: 1.42 | L67: 0.9121212121 | M67: 1.5 | N67: 0.8718309859 | O67: 4 | P67: 8 | Q67: 6 | R67: 8 | S67: 10 | U67: 4 | V67: 10 | W67: 1,238 | Y67: =CONCATENATE("5. ",C67," ",D67," ") -> 5. Lucilio Cordeiro Nijman | Z67: 5. Lucilio Cordeiro Nijman 6 punten gemaakt 301 | AA67: 5. Lucilio Cordeiro Nijman 6 punten gemaakt 301 in 243 beurten, moyenne van 1,238 | AB67: 5. Lucilio Cordeiro Nijman 6 punten gemaakt 301 in 243 beurten, moyenne van 1,238 rang punten 4 rang moyenne 8 | AC67: 5. Lucilio Cordeiro Nijman 6 punten gemaakt 301 in 243 beurten, moyenne van 1,238 rang punten 4 rang moyenne 8 totaal 10 punten | AJ67: 5. Lucilio Cordeiro Nijman 6 punten gemaakt 301 in 243 beurten, moyenne van 1,238 rang punten 4 rang gem. caramboles 6 | AK67: 5. Lucilio Cordeiro Nijman 6 punten gemaakt 301 in 243 beurten, moyenne van 1,238 rang punten 4 rang gem. caramboles 6 totaal 10 punten | AQ67: 3.05 | AW67: 5. Lucilio Cordeiro Nijman 6 punten gemaakt 301 in 243 beurten, moyenne van 1,238 rang punten 4 rang gem. caramboles 6 totaal 10 punten
A68: 6 | B68: 146509 | C68: Jozef Schabbink | D68: Tapperij | E68: 55 | F68: 330 | G68: 5 | H68: 302 | I68: 216 | J68: 1.398 | K68: 1.4 | L68: 0.9151515152 | M68: 1.5 | N68: 0.9985714286 | O68: 6.5 | P68: 5 | Q68: 5 | R68: 3 | S68: 11.5 | U68: 7 | V68: 11.5 | W68: 1,398 | Y68: =CONCATENATE("6. ",C68," ",D68," ") -> 6. Jozef Schabbink Tapperij | Z68: 6. Jozef Schabbink Tapperij 5 punten gemaakt 302 | AA68: 6. Jozef Schabbink Tapperij 5 punten gemaakt 302 in 216 beurten, moyenne van 1,398 | AB68: 6. Jozef Schabbink Tapperij 5 punten gemaakt 302 in 216 beurten, moyenne van 1,398 rang punten 6,5 rang moyenne 5 | AC68: 6. Jozef Schabbink Tapperij 5 punten gemaakt 302 in 216 beurten, moyenne van 1,398 rang punten 6,5 rang moyenne 5 totaal 11,5 punten | AJ68: 6. Jozef Schabbink Tapperij 5 punten gemaakt 302 in 216 beurten, moyenne van 1,398 rang punten 6,5 rang gem. caramboles 5 | AK68: 6. Jozef Schabbink Tapperij 5 punten gemaakt 302 in 216 beurten, moyenne van 1,398 rang punten 6,5 rang gem. caramboles 5 totaal 11,5 punten | AQ68: 3.1 | AW68: 6. Jozef Schabbink Tapperij 5 punten gemaakt 302 in 216 beurten, moyenne van 1,398 rang punten 6,5 rang gem. caramboles 5 totaal 11,5 punten
A69: 7 | B69: 149009 | C69: Coen Stiemer | D69: De Pol | E69: 55 | F69: 330 | G69: 5 | H69: 306 | I69: 254 | J69: 1.204 | K69: 1.4 | L69: 0.9272727273 | M69: 1.5 | N69: 0.86 | O69: 6.5 | P69: 9 | Q69: 4 | R69: 9 | S69: 10.5 | U69: 5 | V69: 10.5 | W69: 1,204 | Y69: =CONCATENATE("7. ",C69," ",D69," ") -> 7. Coen Stiemer De Pol | Z69: 7. Coen Stiemer De Pol 5 punten gemaakt 306 | AA69: 7. Coen Stiemer De Pol 5 punten gemaakt 306 in 254 beurten, moyenne van 1,204 | AB69: 7. Coen Stiemer De Pol 5 punten gemaakt 306 in 254 beurten, moyenne van 1,204 rang punten 6,5 rang moyenne 9 | AC69: 7. Coen Stiemer De Pol 5 punten gemaakt 306 in 254 beurten, moyenne van 1,204 rang punten 6,5 rang moyenne 9 totaal 10,5 punten | AJ69: 7. Coen Stiemer De Pol 5 punten gemaakt 306 in 254 beurten, moyenne van 1,204 rang punten 6,5 rang gem. caramboles 4 | AK69: 7. Coen Stiemer De Pol 5 punten gemaakt 306 in 254 beurten, moyenne van 1,204 rang punten 6,5 rang gem. caramboles 4 totaal 10,5 punten | AQ69: 3.15 | AW69: 7. Coen Stiemer De Pol 5 punten gemaakt 306 in 254 beurten, moyenne van 1,204 rang punten 6,5 rang gem. caramboles 4 totaal 10,5 punten
A70: 8 | B70: 177750 | C70: Tonnie Bisselink | D70: KÃ¶ster | E70: 55 | F70: 330 | G70: 4 | H70: 291 | I70: 206 | J70: 1.412 | K70: 1.41 | L70: 0.8818181818 | M70: 1.5 | N70: 1.00141844 | O70: 9 | P70: 3 | Q70: 8 | R70: 2 | S70: 17 | U70: 8 | V70: 17 | W70: 1,412 | Y70: =CONCATENATE("8. ",C70," ",D70," ") -> 8. Tonnie Bisselink KÃ¶ster | Z70: 8. Tonnie Bisselink KÃ¶ster 4 punten gemaakt 291 | AA70: 8. Tonnie Bisselink KÃ¶ster 4 punten gemaakt 291 in 206 beurten, moyenne van 1,412 | AB70: 8. Tonnie Bisselink KÃ¶ster 4 punten gemaakt 291 in 206 beurten, moyenne van 1,412 rang punten 9 rang moyenne 3 | AC70: 8. Tonnie Bisselink KÃ¶ster 4 punten gemaakt 291 in 206 beurten, moyenne van 1,412 rang punten 9 rang moyenne 3 totaal 17 punten | AJ70: 8. Tonnie Bisselink KÃ¶ster 4 punten gemaakt 291 in 206 beurten, moyenne van 1,412 rang punten 9 rang gem. caramboles 8 | AK70: 8. Tonnie Bisselink KÃ¶ster 4 punten gemaakt 291 in 206 beurten, moyenne van 1,412 rang punten 9 rang gem. caramboles 8 totaal 17 punten | AQ70: 3.2 | AW70: 8. Tonnie Bisselink KÃ¶ster 4 punten gemaakt 291 in 206 beurten, moyenne van 1,412 rang punten 9 rang gem. caramboles 8 totaal 17 punten
A71: 9 | B71: 136552 | C71: Cees Vikkerman | D71: A.b.c. | E71: 55 | F71: 330 | G71: 4 | H71: 274 | I71: 216 | J71: 1.268 | K71: 1.53 | L71: 0.8303030303 | M71: 1.6 | N71: 0.8287581699 | O71: 9 | P71: 7 | Q71: 9 | R71: 10 | S71: 18 | U71: 9 | V71: 18 | W71: 1,268 | Y71: =CONCATENATE("9. ",C71," ",D71," ") -> 9. Cees Vikkerman A.b.c. | Z71: 9. Cees Vikkerman A.b.c. 4 punten gemaakt 274 | AA71: 9. Cees Vikkerman A.b.c. 4 punten gemaakt 274 in 216 beurten, moyenne van 1,268 | AB71: 9. Cees Vikkerman A.b.c. 4 punten gemaakt 274 in 216 beurten, moyenne van 1,268 rang punten 9 rang moyenne 7 | AC71: 9. Cees Vikkerman A.b.c. 4 punten gemaakt 274 in 216 beurten, moyenne van 1,268 rang punten 9 rang moyenne 7 totaal 18 punten | AJ71: 9. Cees Vikkerman A.b.c. 4 punten gemaakt 274 in 216 beurten, moyenne van 1,268 rang punten 9 rang gem. caramboles 9 | AK71: 9. Cees Vikkerman A.b.c. 4 punten gemaakt 274 in 216 beurten, moyenne van 1,268 rang punten 9 rang gem. caramboles 9 totaal 18 punten | AQ71: 3.25 | AW71: 9. Cees Vikkerman A.b.c. 4 punten gemaakt 274 in 216 beurten, moyenne van 1,268 rang punten 9 rang gem. caramboles 9 totaal 18 punten
A72: 10 | B72: 140583 | C72: Martin Koster | D72: Concordia `54 | E72: 55 | F72: 330 | G72: 4 | H72: 265 | I72: 229 | J72: 1.157 | K72: 1.15 | L72: 0.803030303 | M72: 1.2 | N72: 1.006086957 | O72: 9 | P72: 10 | Q72: 10 | R72: 1 | S72: 19 | T72: ONDER MOY.GRENS | U72: 10 | V72: 19 | W72: 1,157 | Y72: =CONCATENATE("10. ",C72," ",D72," ") -> 10. Martin Koster Concordia `54 | Z72: 10. Martin Koster Concordia `54 4 punten gemaakt 265 | AA72: 10. Martin Koster Concordia `54 4 punten gemaakt 265 in 229 beurten, moyenne van 1,157 | AB72: 10. Martin Koster Concordia `54 4 punten gemaakt 265 in 229 beurten, moyenne van 1,157 rang punten 9 rang moyenne 10 | AC72: 10. Martin Koster Concordia `54 4 punten gemaakt 265 in 229 beurten, moyenne van 1,157 rang punten 9 rang moyenne 10 totaal 19 punten | AJ72: 10. Martin Koster Concordia `54 4 punten gemaakt 265 in 229 beurten, moyenne van 1,157 rang punten 9 rang gem. caramboles 10 | AK72: 10. Martin Koster Concordia `54 4 punten gemaakt 265 in 229 beurten, moyenne van 1,157 rang punten 9 rang gem. caramboles 10 totaal 19 punten | AQ72: 3.3 | AW72: 10. Martin Koster Concordia `54 4 punten gemaakt 265 in 229 beurten, moyenne van 1,157 rang punten 9 rang gem. caramboles 10 totaal 19 punten
A73: 11 | Y73: =CONCATENATE("11. ",C73," ",D73," ") -> 11. | Z73: 11. punten gemaakt | AA73: 11. punten gemaakt in beurten, moyenne van | AB73: 11. punten gemaakt in beurten, moyenne van rang punten rang moyenne | AJ73: 11. punten gemaakt in beurten, moyenne van rang punten rang gem. caramboles | AQ73: 3.35
A74: 12 | Y74: =CONCATENATE("12. ",C74," ",D74," ") -> 12. | Z74: 12. punten gemaakt | AA74: 12. punten gemaakt in beurten, moyenne van | AB74: 12. punten gemaakt in beurten, moyenne van rang punten rang moyenne | AJ74: 12. punten gemaakt in beurten, moyenne van rang punten rang gem. caramboles | AQ74: =AQ73+0.05 -> 3.4
A75: 13 | Y75: =CONCATENATE("13. ",C75," ",D75," ") -> 13. | Z75: 13. punten gemaakt | AA75: 13. punten gemaakt in beurten, moyenne van | AB75: 13. punten gemaakt in beurten, moyenne van rang punten rang moyenne | AJ75: 13. punten gemaakt in beurten, moyenne van rang punten rang gem. caramboles | AQ75: 3.45
A76: 14 | Y76: =CONCATENATE("14. ",C76," ",D76," ") -> 14. | Z76: 14. punten gemaakt | AA76: 14. punten gemaakt in beurten, moyenne van | AB76: 14. punten gemaakt in beurten, moyenne van rang punten rang moyenne | AJ76: 14. punten gemaakt in beurten, moyenne van rang punten rang gem. caramboles | AQ76: 3.5
A77: 15 | Y77: =CONCATENATE("15. ",C77," ",D77," ") -> 15. | Z77: 15. punten gemaakt | AA77: 15. punten gemaakt in beurten, moyenne van | AB77: 15. punten gemaakt in beurten, moyenne van rang punten rang moyenne | AJ77: 15. punten gemaakt in beurten, moyenne van rang punten rang gem. caramboles | AQ77: 3.55
A78: 16 | Y78: =CONCATENATE("16. ",C78," ",D78," ") -> 16. | Z78: 16. punten gemaakt | AA78: 16. punten gemaakt in beurten, moyenne van | AB78: 16. punten gemaakt in beurten, moyenne van rang punten rang moyenne | AC78: =IF(ISNUMBER(B78),CONCATENATE(AB78," totaal ",V78," punten"),"") ->  | AJ78: 16. punten gemaakt in beurten, moyenne van rang punten rang gem. caramboles | AQ78: 3.6
A79: 17 | Y79: =CONCATENATE("17. ",C79," ",D79," ") -> 17. | Z79: 17. punten gemaakt | AA79: 17. punten gemaakt in beurten, moyenne van | AB79: 17. punten gemaakt in beurten, moyenne van rang punten rang moyenne | AJ79: 17. punten gemaakt in beurten, moyenne van rang punten rang gem. caramboles | AQ79: 3.65
A80: 18 | Y80: =CONCATENATE("18. ",C80," ",D80," ") -> 18. | Z80: 18. punten gemaakt | AA80: 18. punten gemaakt in beurten, moyenne van | AB80: 18. punten gemaakt in beurten, moyenne van rang punten rang moyenne | AJ80: 18. punten gemaakt in beurten, moyenne van rang punten rang gem. caramboles | AQ80: 3.7
A81: 19 | Y81: =CONCATENATE("19. ",C81," ",D81," ") -> 19. | Z81: 19. punten gemaakt | AA81: 19. punten gemaakt in beurten, moyenne van | AB81: 19. punten gemaakt in beurten, moyenne van rang punten rang moyenne | AJ81: 19. punten gemaakt in beurten, moyenne van rang punten rang gem. caramboles | AQ81: 3.75
A82: 20 | Y82: =CONCATENATE("20. ",C82," ",D82," ") -> 20. | Z82: 20. punten gemaakt | AA82: 20. punten gemaakt in beurten, moyenne van | AB82: 20. punten gemaakt in beurten, moyenne van rang punten rang moyenne | AJ82: 20. punten gemaakt in beurten, moyenne van rang punten rang gem. caramboles | AQ82: 3.8
A83: 21 | Y83: =CONCATENATE("21. ",C83," ",D83," ") -> 21. | Z83: 21. punten gemaakt | AA83: 21. punten gemaakt in beurten, moyenne van | AB83: 21. punten gemaakt in beurten, moyenne van rang punten rang moyenne | AJ83: 21. punten gemaakt in beurten, moyenne van rang punten rang gem. caramboles | AQ83: 3.85
A84: 22 | Y84: =CONCATENATE("22. ",C84," ",D84," ") -> 22. | Z84: 22. punten gemaakt | AA84: 22. punten gemaakt in beurten, moyenne van | AB84: 22. punten gemaakt in beurten, moyenne van rang punten rang moyenne | AJ84: 22. punten gemaakt in beurten, moyenne van rang punten rang gem. caramboles | AQ84: 3.9
A85: 23 | Y85: =CONCATENATE("23. ",C85," ",D85," ") -> 23. | Z85: 23. punten gemaakt | AA85: 23. punten gemaakt in beurten, moyenne van | AB85: 23. punten gemaakt in beurten, moyenne van rang punten rang moyenne | AJ85: 23. punten gemaakt in beurten, moyenne van rang punten rang gem. caramboles | AQ85: 3.95
A86: 24 | Y86: =CONCATENATE("24. ",C86," ",D86," ") -> 24. | Z86: 24. punten gemaakt | AA86: 24. punten gemaakt in beurten, moyenne van | AB86: 24. punten gemaakt in beurten, moyenne van rang punten rang moyenne | AJ86: 24. punten gemaakt in beurten, moyenne van rang punten rang gem. caramboles | AQ86: 4
A87: 25 | Y87: =CONCATENATE("25. ",C87," ",D87," ") -> 25. | Z87: 25. punten gemaakt | AA87: 25. punten gemaakt in beurten, moyenne van | AB87: 25. punten gemaakt in beurten, moyenne van rang punten rang moyenne | AJ87: 25. punten gemaakt in beurten, moyenne van rang punten rang gem. caramboles | AQ87: 4.05
A88: 26 | Y88: =CONCATENATE("26. ",C88," ",D88," ") -> 26. | Z88: 26. punten gemaakt | AA88: 26. punten gemaakt in beurten, moyenne van | AB88: 26. punten gemaakt in beurten, moyenne van rang punten rang moyenne | AJ88: 26. punten gemaakt in beurten, moyenne van rang punten rang gem. caramboles | AQ88: 4.1
A89: 27 | Y89: =CONCATENATE("27. ",C89," ",D89," ") -> 27. | Z89: 27. punten gemaakt | AA89: 27. punten gemaakt in beurten, moyenne van | AB89: 27. punten gemaakt in beurten, moyenne van rang punten rang moyenne | AJ89: 27. punten gemaakt in beurten, moyenne van rang punten rang gem. caramboles | AQ89: 4.15
A90: 28 | Y90: =CONCATENATE("28. ",C90," ",D90," ") -> 28. | Z90: 28. punten gemaakt | AA90: 28. punten gemaakt in beurten, moyenne van | AB90: 28. punten gemaakt in beurten, moyenne van rang punten rang moyenne | AJ90: 28. punten gemaakt in beurten, moyenne van rang punten rang gem. caramboles | AQ90: 4.2
A91: 29 | Y91: =CONCATENATE("29. ",C91," ",D91," ") -> 29. | Z91: 29. punten gemaakt | AA91: 29. punten gemaakt in beurten, moyenne van | AB91: 29. punten gemaakt in beurten, moyenne van rang punten rang moyenne | AJ91: 29. punten gemaakt in beurten, moyenne van rang punten rang gem. caramboles | AQ91: 4.25
A92: 30 | Y92: =CONCATENATE("30. ",C92," ",D92," ") -> 30. | Z92: 30. punten gemaakt | AA92: 30. punten gemaakt in beurten, moyenne van | AB92: 30. punten gemaakt in beurten, moyenne van rang punten rang moyenne | AJ92: 30. punten gemaakt in beurten, moyenne van rang punten rang gem. caramboles | AQ92: 4.3
A93: 31 | Y93: =CONCATENATE("31. ",C93," ",D93," ") -> 31. | Z93: 31. punten gemaakt | AA93: 31. punten gemaakt in beurten, moyenne van | AB93: 31. punten gemaakt in beurten, moyenne van rang punten rang moyenne | AJ93: 31. punten gemaakt in beurten, moyenne van rang punten rang gem. caramboles | AQ93: 4.35
A94: 32 | Y94: =CONCATENATE("32. ",C94," ",D94," ") -> 32. | Z94: 32. punten gemaakt | AA94: 32. punten gemaakt in beurten, moyenne van | AB94: 32. punten gemaakt in beurten, moyenne van rang punten rang moyenne | AJ94: 32. punten gemaakt in beurten, moyenne van rang punten rang gem. caramboles | AQ94: 4.4
A95: 33 | Y95: =CONCATENATE("33. ",C95," ",D95," ") -> 33. | Z95: 33. punten gemaakt | AA95: 33. punten gemaakt in beurten, moyenne van | AB95: 33. punten gemaakt in beurten, moyenne van rang punten rang moyenne | AJ95: 33. punten gemaakt in beurten, moyenne van rang punten rang gem. caramboles | AQ95: 4.45
A96: 34 | Y96: =CONCATENATE("34. ",C96," ",D96," ") -> 34. | Z96: 34. punten gemaakt | AA96: 34. punten gemaakt in beurten, moyenne van | AB96: 34. punten gemaakt in beurten, moyenne van rang punten rang moyenne | AJ96: 34. punten gemaakt in beurten, moyenne van rang punten rang gem. caramboles | AQ96: 4.5
T97: =IF(ISNUMBER(B97),IF(V97>4000,"directe promotie",IF(V97>3000,"degradatie",IF(V97>2000,"halve degradatie",IF(V97>1000,"promotie")))),"") ->  | Z97: punten gemaakt | AA97: punten gemaakt in beurten, moyenne van | AB97: punten gemaakt in beurten, moyenne van rang punten rang moyenne | AC97: =IF(ISNUMBER(B97),CONCATENATE(AB97," totaal ",S97," punten"),"") ->  | AJ97: =CONCATENATE($AA97," rang punten ",W97," rang gem. caramboles ",Q97) -> punten gemaakt in beurten, moyenne van rang punten rang gem. caramboles | AK97: =IF(ISNUMBER(B97),CONCATENATE(AJ97," totaal ",S97," punten"),"") ->  | AQ97: 4.55
AK98: =IF(ISNUMBER(B98),CONCATENATE(AJ98," totaal ",S98," punten"),"") ->  | AQ98: 4.6
AQ99: 4.65 | AW99: 0
AQ100: 4.7 | AW100: 0
AQ101: 4.75 | AW101: 0
AQ102: 4.8 | AW102: 0
AQ103: 4.85 | AW103: 0
AQ104: 4.9
AQ105: 4.95
AQ106: 5
AQ107: =AQ106+0.1 -> 5.1
AQ108: =AQ107+0.1 -> 5.2
T109: opm. | AQ109: 5.3
AQ110: 5.4
AQ111: 5.5
AQ112: 5.6
AQ113: 5.7
AQ114: 5.8
AQ115: 5.9
AQ116: 6
AQ117: 6.1
AQ118: 6.2
AQ119: 6.3
AQ120: 6.4
AQ121: 6.5
AQ122: 6.6
AQ123: 6.7
AQ124: 6.8
AQ125: 6.9
AQ126: 7
AQ127: 7.1
AQ128: 7.2
AQ129: 7.3
AQ130: 7.4
AQ131: 7.5
AQ132: 7.6
AQ133: 7.7
AQ134: 7.8
AQ135: 7.9
AQ136: 8
AQ137: 8.1
AQ138: 8.2
AQ139: 8.3
AQ140: 8.4
AQ141: 8.5
AQ142: 8.6
AQ143: 8.7
AQ144: 8.8
AQ145: 8.9
AQ146: 9
AQ147: 9.1
AQ148: 9.2
AQ149: 9.3
AQ150: 9.4
AQ151: 9.5
AQ152: 9.6
AQ153: 9.7
AQ154: 9.8
AQ155: 9.9
AQ156: 10
AQ157: 10.1
AQ158: 10.2
AQ159: 10.3
AQ160: 10.4
AQ161: 10.5
AQ162: 10.6
AQ163: 10.7
AQ164: 10.8
AQ165: 10.9
AQ166: 11
AQ167: 11.1
AQ168: 11.2
AQ169: 11.3
AQ170: 11.4
AQ171: 11.5
AQ172: =AQ171+0.1 -> 11.6
AQ173: 11.7
AQ174: 11.8
AQ175: 11.9
AQ176: 12
AQ177: 12.1
AQ178: 12.2
AQ179: 12.3
AQ180: 12.4
AQ181: 12.5
AQ182: 12.6
AQ183: 12.7
AQ184: 12.8
AQ185: 12.9
AQ186: 13
AQ187: 13.1
AQ188: 13.2
AQ189: 13.3
AQ190: 13.4
AQ191: 13.5
AQ192: 13.6
AQ193: 13.7
AQ194: 13.8
AQ195: 13.9
AQ196: 14
AQ197: 14.1
AQ198: 14.2
AQ199: 14.3
AQ200: 14.4
... 61 more rows

Sheet uitslag
B1: B.nr. | C1: Deelnemers | D1: Vereniging | E1: Te maken | F1: Te maken | G1: gemaakt | H1: beurten | I1: punten | J1: moyenne | K1: % gemaakt | L1: % moyenne | M1: bovengrens | N1: =Blad1!O7 -> rang Punten | O1: =IF(Blad1!E$5="interval",Blad1!Q7,Blad1!P7) -> rang moyenne | P1: rang totaal | Q1: opmerking
V2: UITSLAGEN VAN DE VOORWEDSTRIJDEN
V4: =CONCATENATE(Blad1!E4," ",Blad1!I4," ",Blad1!I5) -> libre vierde klas 2017 - 2018
S5: =CONCATENATE("1. Bondsnummer ",B6) -> 1. Bondsnummer 221956
A6: 1 | B6: =IF(Blad1!G13>1,VLOOKUP($A6,Blad1!$A:$AO,2,FALSE),"") -> 221956 | C6: =IF(Blad1!G13>1,VLOOKUP($A6,Blad1!$A:$AO,3,FALSE),"") -> Theo Greven | D6: =IF(Blad1!H13>1,VLOOKUP($A6,Blad1!$A:$AO,4,FALSE),"") -> A.b.c. | E6: =IF(Blad1!$B13>1,VLOOKUP($A6,Blad1!$A:$AO,5,FALSE),"") -> 55 | F6: =IF(Blad1!$B13>1,VLOOKUP($A6,Blad1!$A:$AO,6,FALSE),"") -> 330 | G6: =IF(Blad1!$B13>1,VLOOKUP($A6,Blad1!$A:$AO,7,FALSE),"") -> 10 | H6: =IF(Blad1!$B13>1,VLOOKUP($A6,Blad1!$A:$AO,8,FALSE),"") -> 322 | I6: =IF(Blad1!$B13>1,VLOOKUP($A6,Blad1!$A:$AO,9,FALSE),"") -> 210 | J6: =IF(Blad1!$B13>1,VLOOKUP($A6,Blad1!$A:$AO,10,FALSE),"") -> 1.533 | K6: =IF(Blad1!$B13>1,VLOOKUP($A6,Blad1!$A:$AO,11,FALSE),"") -> 1.65 | L6: =IF(Blad1!$B13>1,VLOOKUP($A6,Blad1!$A:$AO,12,FALSE),"") -> 0.9757575758 | M6: =IF(Blad1!$B13>1,VLOOKUP($A6,Blad1!$A:$AO,13,FALSE),"") -> 1.7 | N6: =IF(Blad1!G13>1,VLOOKUP($A6,Blad1!$A:$AO,15,FALSE),"") -> 1.5 | O6: =IF(B6>1,IF(Blad1!E$5="interval",IF(Blad1!B13>1,VLOOKUP($A6,Blad1!$A:$AO,17,FALSE),""),IF(Blad1!B13>1,VLOOKUP($A6,Blad1!$A:$AO,16,FALSE),"")),"") -> 1 | P6: =IF(B6>12,IF(Blad1!F$5="interval",IF(Blad1!H13>1,VLOOKUP($A6,Blad1!$A:$AO,19,FALSE),""),IF(Blad1!H13>1,VLOOKUP($A6,Blad1!$A:$AO,19,FALSE),"")),"") -> 2.5 | Q6: finale
A7: =A6+1 -> 2 | B7: =VLOOKUP($A7,Blad1!$A$13:$T$46,2) -> 106584 | C7: =IF(Blad1!G14>1,VLOOKUP($A7,Blad1!$A:$AO,3,FALSE),"") -> Eddo Kohler | D7: =IF(Blad1!H14>1,VLOOKUP($A7,Blad1!$A:$AO,4,FALSE),"") -> Concordia `54 | E7: =IF(Blad1!G14>1,VLOOKUP($A7,Blad1!$A:$AO,5,FALSE),"") -> 55 | F7: =IF(Blad1!G14>1,VLOOKUP($A7,Blad1!$A:$AO,6,FALSE),"") -> 330 | G7: =IF(Blad1!G14>1,VLOOKUP($A7,Blad1!$A:$AO,7,FALSE),"") -> 10 | H7: =IF(Blad1!G14>1,VLOOKUP($A7,Blad1!$A:$AO,8,FALSE),"") -> 320 | I7: =IF(Blad1!G14>1,VLOOKUP($A7,Blad1!$A:$AO,9,FALSE),"") -> 228 | J7: =IF(Blad1!G14>1,VLOOKUP($A7,Blad1!$A:$AO,10,FALSE),"") -> 1.403 | K7: =IF(Blad1!G14>1,VLOOKUP($A7,Blad1!$A:$AO,11,FALSE),"") -> 1.6 | L7: =IF(Blad1!G14>1,VLOOKUP($A7,Blad1!$A:$AO,12,FALSE),"") -> 0.9696969697 | M7: =IF(Blad1!G14>1,VLOOKUP($A7,Blad1!$A:$AO,13,FALSE),"") -> 1.7 | N7: =IF(Blad1!G14>1,VLOOKUP($A7,Blad1!$A:$AO,15,FALSE),"") -> 1.5 | O7: =IF(B7>1,IF(Blad1!E$5="interval",IF(Blad1!B14>1,VLOOKUP($A7,Blad1!$A:$AO,17,FALSE),""),IF(Blad1!B14>1,VLOOKUP($A7,Blad1!$A:$AO,16,FALSE),"")),"") -> 4 | P7: =IF(B7>12,IF(Blad1!F$5="interval",IF(Blad1!H14>1,VLOOKUP($A7,Blad1!$A:$AO,19,FALSE),""),IF(Blad1!H14>1,VLOOKUP($A7,Blad1!$A:$AO,19,FALSE),"")),"") -> 5.5 | Q7: finale
A8: =A7+1 -> 3 | B8: =IF(Blad1!G15>1,VLOOKUP($A8,Blad1!$A:$AO,2,FALSE),"") -> 123631 | C8: =IF(Blad1!G15>1,VLOOKUP($A8,Blad1!$A:$AO,3,FALSE),"") -> Frank Stevens | D8: =IF(Blad1!H15>1,VLOOKUP($A8,Blad1!$A:$AO,4,FALSE),"") -> D.L.S. | E8: =IF(Blad1!G15>1,VLOOKUP($A8,Blad1!$A:$AO,5,FALSE),"") -> 55 | F8: =IF(Blad1!G15>1,VLOOKUP($A8,Blad1!$A:$AO,6,FALSE),"") -> 330 | G8: =IF(Blad1!G15>1,VLOOKUP($A8,Blad1!$A:$AO,7,FALSE),"") -> 6 | H8: =IF(Blad1!G15>1,VLOOKUP($A8,Blad1!$A:$AO,8,FALSE),"") -> 318 | I8: =IF(Blad1!G15>1,VLOOKUP($A8,Blad1!$A:$AO,9,FALSE),"") -> 218 | J8: =IF(Blad1!G15>1,VLOOKUP($A8,Blad1!$A:$AO,10,FALSE),"") -> 1.458 | K8: =IF(Blad1!G15>1,VLOOKUP($A8,Blad1!$A:$AO,11,FALSE),"") -> 1.49 | L8: =IF(Blad1!G15>1,VLOOKUP($A8,Blad1!$A:$AO,12,FALSE),"") -> 0.9636363636 | M8: =IF(Blad1!G15>1,VLOOKUP($A8,Blad1!$A:$AO,13,FALSE),"") -> 1.5 | N8: =IF(Blad1!G15>1,VLOOKUP($A8,Blad1!$A:$AO,15,FALSE),"") -> 4 | O8: =IF(B8>1,IF(Blad1!E$5="interval",IF(Blad1!B15>1,VLOOKUP($A8,Blad1!$A:$AO,17,FALSE),""),IF(Blad1!B15>1,VLOOKUP($A8,Blad1!$A:$AO,16,FALSE),"")),"") -> 2 | P8: =IF(B8>12,IF(Blad1!F$5="interval",IF(Blad1!H15>1,VLOOKUP($A8,Blad1!$A:$AO,19,FALSE),""),IF(Blad1!H15>1,VLOOKUP($A8,Blad1!$A:$AO,19,FALSE),"")),"") -> 7 | Q8: finale
A9: 4 | B9: =IF(Blad1!G16>1,VLOOKUP($A9,Blad1!$A:$AO,2,FALSE),"") -> 169828 | C9: =IF(Blad1!G16>1,VLOOKUP($A9,Blad1!$A:$AO,3,FALSE),"") -> Renate Jansen-Albers | D9: =IF(Blad1!H16>1,VLOOKUP($A9,Blad1!$A:$AO,4,FALSE),"") -> Slootermeer & Scholtenhof | E9: =IF(Blad1!G16>1,VLOOKUP($A9,Blad1!$A:$AO,5,FALSE),"") -> 55 | F9: =IF(Blad1!G16>1,VLOOKUP($A9,Blad1!$A:$AO,6,FALSE),"") -> 330 | G9: =IF(Blad1!G16>1,VLOOKUP($A9,Blad1!$A:$AO,7,FALSE),"") -> 6 | H9: =IF(Blad1!G16>1,VLOOKUP($A9,Blad1!$A:$AO,8,FALSE),"") -> 298 | I9: =IF(Blad1!G16>1,VLOOKUP($A9,Blad1!$A:$AO,9,FALSE),"") -> 226 | J9: =IF(Blad1!G16>1,VLOOKUP($A9,Blad1!$A:$AO,10,FALSE),"") -> 1.318 | K9: =IF(Blad1!G16>1,VLOOKUP($A9,Blad1!$A:$AO,11,FALSE),"") -> 1.32 | L9: =IF(Blad1!G16>1,VLOOKUP($A9,Blad1!$A:$AO,12,FALSE),"") -> 0.903030303 | M9: =IF(Blad1!G16>1,VLOOKUP($A9,Blad1!$A:$AO,13,FALSE),"") -> 1.4 | N9: =IF(Blad1!G16>1,VLOOKUP($A9,Blad1!$A:$AO,15,FALSE),"") -> 4 | O9: =IF(B9>1,IF(Blad1!E$5="interval",IF(Blad1!B16>1,VLOOKUP($A9,Blad1!$A:$AO,17,FALSE),""),IF(Blad1!B16>1,VLOOKUP($A9,Blad1!$A:$AO,16,FALSE),"")),"") -> 6 | P9: =IF(B9>12,IF(Blad1!F$5="interval",IF(Blad1!H16>1,VLOOKUP($A9,Blad1!$A:$AO,19,FALSE),""),IF(Blad1!H16>1,VLOOKUP($A9,Blad1!$A:$AO,19,FALSE),"")),"") -> 11 | Q9: finale
A10: 5 | B10: =IF(Blad1!G17>1,VLOOKUP($A10,Blad1!$A:$AO,2,FALSE),"") -> 209553 | C10: =IF(Blad1!G17>1,VLOOKUP($A10,Blad1!$A:$AO,3,FALSE),"") -> Lucilio Cordeiro | D10: =IF(Blad1!H17>1,VLOOKUP($A10,Blad1!$A:$AO,4,FALSE),"") -> Nijman | E10: =IF(Blad1!G17>1,VLOOKUP($A10,Blad1!$A:$AO,5,FALSE),"") -> 55 | F10: =IF(Blad1!G17>1,VLOOKUP($A10,Blad1!$A:$AO,6,FALSE),"") -> 330 | G10: =IF(Blad1!G17>1,VLOOKUP($A10,Blad1!$A:$AO,7,FALSE),"") -> 6 | H10: =IF(Blad1!G17>1,VLOOKUP($A10,Blad1!$A:$AO,8,FALSE),"") -> 301 | I10: =IF(Blad1!G17>1,VLOOKUP($A10,Blad1!$A:$AO,9,FALSE),"") -> 243 | J10: =IF(Blad1!G17>1,VLOOKUP($A10,Blad1!$A:$AO,10,FALSE),"") -> 1.238 | K10: =IF(Blad1!G17>1,VLOOKUP($A10,Blad1!$A:$AO,11,FALSE),"") -> 1.42 | L10: =IF(Blad1!G17>1,VLOOKUP($A10,Blad1!$A:$AO,12,FALSE),"") -> 0.9121212121 | M10: =IF(Blad1!G17>1,VLOOKUP($A10,Blad1!$A:$AO,13,FALSE),"") -> 1.5 | N10: =IF(Blad1!G17>1,VLOOKUP($A10,Blad1!$A:$AO,15,FALSE),"") -> 4 | O10: =IF(B10>1,IF(Blad1!E$5="interval",IF(Blad1!B17>1,VLOOKUP($A10,Blad1!$A:$AO,17,FALSE),""),IF(Blad1!B17>1,VLOOKUP($A10,Blad1!$A:$AO,16,FALSE),"")),"") -> 8 | P10: =IF(B10>12,IF(Blad1!F$5="interval",IF(Blad1!H17>1,VLOOKUP($A10,Blad1!$A:$AO,19,FALSE),""),IF(Blad1!H17>1,VLOOKUP($A10,Blad1!$A:$AO,19,FALSE),"")),"") -> 10 | Q10: finale
A11: 6 | B11: =IF(Blad1!G18>1,VLOOKUP($A11,Blad1!$A:$AO,2,FALSE),"") -> 146509 | C11: =IF(Blad1!G18>1,VLOOKUP($A11,Blad1!$A:$AO,3,FALSE),"") -> Jozef Schabbink | D11: =IF(Blad1!H18>1,VLOOKUP($A11,Blad1!$A:$AO,4,FALSE),"") -> Tapperij | E11: =IF(Blad1!G18>1,VLOOKUP($A11,Blad1!$A:$AO,5,FALSE),"") -> 55 | F11: =IF(Blad1!G18>1,VLOOKUP($A11,Blad1!$A:$AO,6,FALSE),"") -> 330 | G11: =IF(Blad1!G18>1,VLOOKUP($A11,Blad1!$A:$AO,7,FALSE),"") -> 5 | H11: =IF(Blad1!G18>1,VLOOKUP($A11,Blad1!$A:$AO,8,FALSE),"") -> 302 | I11: =IF(Blad1!G18>1,VLOOKUP($A11,Blad1!$A:$AO,9,FALSE),"") -> 216 | J11: =IF(Blad1!G18>1,VLOOKUP($A11,Blad1!$A:$AO,10,FALSE),"") -> 1.398 | K11: =IF(Blad1!G18>1,VLOOKUP($A11,Blad1!$A:$AO,11,FALSE),"") -> 1.4 | L11: =IF(Blad1!G18>1,VLOOKUP($A11,Blad1!$A:$AO,12,FALSE),"") -> 0.9151515152 | M11: =IF(Blad1!G18>1,VLOOKUP($A11,Blad1!$A:$AO,13,FALSE),"") -> 1.5 | N11: =IF(Blad1!G18>1,VLOOKUP($A11,Blad1!$A:$AO,15,FALSE),"") -> 6.5 | O11: =IF(B11>1,IF(Blad1!E$5="interval",IF(Blad1!B18>1,VLOOKUP($A11,Blad1!$A:$AO,17,FALSE),""),IF(Blad1!B18>1,VLOOKUP($A11,Blad1!$A:$AO,16,FALSE),"")),"") -> 5 | P11: =IF(B11>12,IF(Blad1!F$5="interval",IF(Blad1!H18>1,VLOOKUP($A11,Blad1!$A:$AO,19,FALSE),""),IF(Blad1!H18>1,VLOOKUP($A11,Blad1!$A:$AO,19,FALSE),"")),"") -> 11.5 | Q11: finale
A12: 7 | B12: =IF(Blad1!G19>1,VLOOKUP($A12,Blad1!$A:$AO,2,FALSE),"") -> 149009 | C12: =IF(Blad1!G19>1,VLOOKUP($A12,Blad1!$A:$AO,3,FALSE),"") -> Coen Stiemer | D12: =IF(Blad1!H19>1,VLOOKUP($A12,Blad1!$A:$AO,4,FALSE),"") -> De Pol | E12: =IF(Blad1!G19>1,VLOOKUP($A12,Blad1!$A:$AO,5,FALSE),"") -> 55 | F12: =IF(Blad1!G19>1,VLOOKUP($A12,Blad1!$A:$AO,6,FALSE),"") -> 330 | G12: =IF(Blad1!G19>1,VLOOKUP($A12,Blad1!$A:$AO,7,FALSE),"") -> 5 | H12: =IF(Blad1!G19>1,VLOOKUP($A12,Blad1!$A:$AO,8,FALSE),"") -> 306 | I12: =IF(Blad1!G19>1,VLOOKUP($A12,Blad1!$A:$AO,9,FALSE),"") -> 254 | J12: =IF(Blad1!G19>1,VLOOKUP($A12,Blad1!$A:$AO,10,FALSE),"") -> 1.204 | K12: =IF(Blad1!G19>1,VLOOKUP($A12,Blad1!$A:$AO,11,FALSE),"") -> 1.4 | L12: =IF(Blad1!G19>1,VLOOKUP($A12,Blad1!$A:$AO,12,FALSE),"") -> 0.9272727273 | M12: =IF(Blad1!G19>1,VLOOKUP($A12,Blad1!$A:$AO,13,FALSE),"") -> 1.5 | N12: =IF(Blad1!G19>1,VLOOKUP($A12,Blad1!$A:$AO,15,FALSE),"") -> 6.5 | O12: =IF(B12>1,IF(Blad1!E$5="interval",IF(Blad1!B19>1,VLOOKUP($A12,Blad1!$A:$AO,17,FALSE),""),IF(Blad1!B19>1,VLOOKUP($A12,Blad1!$A:$AO,16,FALSE),"")),"") -> 9 | P12: =IF(B12>12,IF(Blad1!F$5="interval",IF(Blad1!H19>1,VLOOKUP($A12,Blad1!$A:$AO,19,FALSE),""),IF(Blad1!H19>1,VLOOKUP($A12,Blad1!$A:$AO,19,FALSE),"")),"") -> 10.5 | Q12: 1e reserve
A13: 8 | B13: =IF(Blad1!G20>1,VLOOKUP($A13,Blad1!$A:$AO,2,FALSE),"") -> 177750 | C13: =IF(Blad1!G20>1,VLOOKUP($A13,Blad1!$A:$AO,3,FALSE),"") -> Tonnie Bisselink | D13: =IF(Blad1!H20>1,VLOOKUP($A13,Blad1!$A:$AO,4,FALSE),"") -> KÃ¶ster | E13: =IF(Blad1!G20>1,VLOOKUP($A13,Blad1!$A:$AO,5,FALSE),"") -> 55 | F13: =IF(Blad1!G20>1,VLOOKUP($A13,Blad1!$A:$AO,6,FALSE),"") -> 330 | G13: =IF(Blad1!G20>1,VLOOKUP($A13,Blad1!$A:$AO,7,FALSE),"") -> 4 | H13: =IF(Blad1!G20>1,VLOOKUP($A13,Blad1!$A:$AO,8,FALSE),"") -> 291 | I13: =IF(Blad1!G20>1,VLOOKUP($A13,Blad1!$A:$AO,9,FALSE),"") -> 206 | J13: =IF(Blad1!G20>1,VLOOKUP($A13,Blad1!$A:$AO,10,FALSE),"") -> 1.412 | K13: =IF(Blad1!G20>1,VLOOKUP($A13,Blad1!$A:$AO,11,FALSE),"") -> 1.41 | L13: =IF(Blad1!G20>1,VLOOKUP($A13,Blad1!$A:$AO,12,FALSE),"") -> 0.8818181818 | M13: =IF(Blad1!G20>1,VLOOKUP($A13,Blad1!$A:$AO,13,FALSE),"") -> 1.5 | N13: =IF(Blad1!G20>1,VLOOKUP($A13,Blad1!$A:$AO,15,FALSE),"") -> 9 | O13: =IF(B13>1,IF(Blad1!E$5="interval",IF(Blad1!B20>1,VLOOKUP($A13,Blad1!$A:$AO,17,FALSE),""),IF(Blad1!B20>1,VLOOKUP($A13,Blad1!$A:$AO,16,FALSE),"")),"") -> 3 | P13: =IF(B13>12,IF(Blad1!F$5="interval",IF(Blad1!H20>1,VLOOKUP($A13,Blad1!$A:$AO,19,FALSE),""),IF(Blad1!H20>1,VLOOKUP($A13,Blad1!$A:$AO,19,FALSE),"")),"") -> 17 | Q13: 2e reserve
A14: 9 | B14: =IF(Blad1!G21>1,VLOOKUP($A14,Blad1!$A:$AO,2,FALSE),"") -> 136552 | C14: =IF(Blad1!G21>1,VLOOKUP($A14,Blad1!$A:$AO,3,FALSE),"") -> Cees Vikkerman | D14: =IF(Blad1!H21>1,VLOOKUP($A14,Blad1!$A:$AO,4,FALSE),"") -> A.b.c. | E14: =IF(Blad1!G21>1,VLOOKUP($A14,Blad1!$A:$AO,5,FALSE),"") -> 55 | F14: =IF(Blad1!G21>1,VLOOKUP($A14,Blad1!$A:$AO,6,FALSE),"") -> 330 | G14: =IF(Blad1!G21>1,VLOOKUP($A14,Blad1!$A:$AO,7,FALSE),"") -> 4 | H14: =IF(Blad1!G21>1,VLOOKUP($A14,Blad1!$A:$AO,8,FALSE),"") -> 274 | I14: =IF(Blad1!G21>1,VLOOKUP($A14,Blad1!$A:$AO,9,FALSE),"") -> 216 | J14: =IF(Blad1!G21>1,VLOOKUP($A14,Blad1!$A:$AO,10,FALSE),"") -> 1.268 | K14: =IF(Blad1!G21>1,VLOOKUP($A14,Blad1!$A:$AO,11,FALSE),"") -> 1.53 | L14: =IF(Blad1!G21>1,VLOOKUP($A14,Blad1!$A:$AO,12,FALSE),"") -> 0.8303030303 | M14: =IF(Blad1!G21>1,VLOOKUP($A14,Blad1!$A:$AO,13,FALSE),"") -> 1.6 | N14: =IF(Blad1!G21>1,VLOOKUP($A14,Blad1!$A:$AO,15,FALSE),"") -> 9 | O14: =IF(B14>1,IF(Blad1!E$5="interval",IF(Blad1!B21>1,VLOOKUP($A14,Blad1!$A:$AO,17,FALSE),""),IF(Blad1!B21>1,VLOOKUP($A14,Blad1!$A:$AO,16,FALSE),"")),"") -> 7 | P14: =IF(B14>12,IF(Blad1!F$5="interval",IF(Blad1!H21>1,VLOOKUP($A14,Blad1!$A:$AO,19,FALSE),""),IF(Blad1!H21>1,VLOOKUP($A14,Blad1!$A:$AO,19,FALSE),"")),"") -> 18
A15: 10 | B15: =IF(Blad1!G22>1,VLOOKUP($A15,Blad1!$A:$AO,2,FALSE),"") -> 140583 | C15: =IF(Blad1!G22>1,VLOOKUP($A15,Blad1!$A:$AO,3,FALSE),"") -> Martin Koster | D15: =IF(Blad1!H22>1,VLOOKUP($A15,Blad1!$A:$AO,4,FALSE),"") -> Concordia `54 | E15: =IF(Blad1!G22>1,VLOOKUP($A15,Blad1!$A:$AO,5,FALSE),"") -> 55 | F15: =IF(Blad1!G22>1,VLOOKUP($A15,Blad1!$A:$AO,6,FALSE),"") -> 330 | G15: =IF(Blad1!G22>1,VLOOKUP($A15,Blad1!$A:$AO,7,FALSE),"") -> 4 | H15: =IF(Blad1!G22>1,VLOOKUP($A15,Blad1!$A:$AO,8,FALSE),"") -> 265 | I15: =IF(Blad1!G22>1,VLOOKUP($A15,Blad1!$A:$AO,9,FALSE),"") -> 229 | J15: =IF(Blad1!G22>1,VLOOKUP($A15,Blad1!$A:$AO,10,FALSE),"") -> 1.157 | K15: =IF(Blad1!G22>1,VLOOKUP($A15,Blad1!$A:$AO,11,FALSE),"") -> 1.15 | L15: =IF(Blad1!G22>1,VLOOKUP($A15,Blad1!$A:$AO,12,FALSE),"") -> 0.803030303 | M15: =IF(Blad1!G22>1,VLOOKUP($A15,Blad1!$A:$AO,13,FALSE),"") -> 1.2 | N15: =IF(Blad1!G22>1,VLOOKUP($A15,Blad1!$A:$AO,15,FALSE),"") -> 9 | O15: =IF(B15>1,IF(Blad1!E$5="interval",IF(Blad1!B22>1,VLOOKUP($A15,Blad1!$A:$AO,17,FALSE),""),IF(Blad1!B22>1,VLOOKUP($A15,Blad1!$A:$AO,16,FALSE),"")),"") -> 10 | P15: =IF(B15>12,IF(Blad1!F$5="interval",IF(Blad1!H22>1,VLOOKUP($A15,Blad1!$A:$AO,19,FALSE),""),IF(Blad1!H22>1,VLOOKUP($A15,Blad1!$A:$AO,19,FALSE),"")),"") -> 19
A16: 11 | B16: =IF(Blad1!G23>1,VLOOKUP($A16,Blad1!$A:$AO,2,FALSE),"") ->  | C16: =IF(Blad1!G23>1,VLOOKUP($A16,Blad1!$A:$AO,3,FALSE),"") ->  | D16: =IF(Blad1!H23>1,VLOOKUP($A16,Blad1!$A:$AO,4,FALSE),"") ->  | E16: =IF(Blad1!G23>1,VLOOKUP($A16,Blad1!$A:$AO,5,FALSE),"") ->  | F16: =IF(Blad1!G23>1,VLOOKUP($A16,Blad1!$A:$AO,6,FALSE),"") ->  | G16: =IF(Blad1!G23>1,VLOOKUP($A16,Blad1!$A:$AO,7,FALSE),"") ->  | H16: =IF(Blad1!G23>1,VLOOKUP($A16,Blad1!$A:$AO,8,FALSE),"") ->  | I16: =IF(Blad1!G23>1,VLOOKUP($A16,Blad1!$A:$AO,9,FALSE),"") ->  | J16: =IF(Blad1!G23>1,VLOOKUP($A16,Blad1!$A:$AO,10,FALSE),"") ->  | K16: =IF(Blad1!G23>1,VLOOKUP($A16,Blad1!$A:$AO,11,FALSE),"") ->  | L16: =IF(Blad1!G23>1,VLOOKUP($A16,Blad1!$A:$AO,12,FALSE),"") ->  | M16: =IF(Blad1!G23>1,VLOOKUP($A16,Blad1!$A:$AO,13,FALSE),"") ->  | N16: =IF(Blad1!G23>1,VLOOKUP($A16,Blad1!$A:$AO,15,FALSE),"") ->  | O16: =IF(B16>1,IF(Blad1!E$5="interval",IF(Blad1!B23>1,VLOOKUP($A16,Blad1!$A:$AO,17,FALSE),""),IF(Blad1!B23>1,VLOOKUP($A16,Blad1!$A:$AO,16,FALSE),"")),"") ->  | P16: =IF(B16>12,IF(Blad1!F$5="interval",IF(Blad1!H23>1,VLOOKUP($A16,Blad1!$A:$AO,19,FALSE),""),IF(Blad1!H23>1,VLOOKUP($A16,Blad1!$A:$AO,19,FALSE),"")),"") -> 
A17: 12 | B17: =IF(Blad1!G24>1,VLOOKUP($A17,Blad1!$A:$AO,2,FALSE),"") ->  | C17: =IF(Blad1!G24>1,VLOOKUP($A17,Blad1!$A:$AO,3,FALSE),"") ->  | D17: =IF(Blad1!H24>1,VLOOKUP($A17,Blad1!$A:$AO,4,FALSE),"") ->  | E17: =IF(Blad1!G24>1,VLOOKUP($A17,Blad1!$A:$AO,5,FALSE),"") ->  | F17: =IF(Blad1!G24>1,VLOOKUP($A17,Blad1!$A:$AO,6,FALSE),"") ->  | G17: =IF(Blad1!G24>1,VLOOKUP($A17,Blad1!$A:$AO,7,FALSE),"") ->  | H17: =IF(Blad1!G24>1,VLOOKUP($A17,Blad1!$A:$AO,8,FALSE),"") ->  | I17: =IF(Blad1!G24>1,VLOOKUP($A17,Blad1!$A:$AO,9,FALSE),"") ->  | J17: =IF(Blad1!G24>1,VLOOKUP($A17,Blad1!$A:$AO,10,FALSE),"") ->  | K17: =IF(Blad1!G24>1,VLOOKUP($A17,Blad1!$A:$AO,11,FALSE),"") ->  | L17: =IF(Blad1!G24>1,VLOOKUP($A17,Blad1!$A:$AO,12,FALSE),"") ->  | M17: =IF(Blad1!G24>1,VLOOKUP($A17,Blad1!$A:$AO,13,FALSE),"") ->  | N17: =IF(Blad1!G24>1,VLOOKUP($A17,Blad1!$A:$AO,15,FALSE),"") ->  | O17: =IF(B17>1,IF(Blad1!E$5="interval",IF(Blad1!B24>1,VLOOKUP($A17,Blad1!$A:$AO,17,FALSE),""),IF(Blad1!B24>1,VLOOKUP($A17,Blad1!$A:$AO,16,FALSE),"")),"") ->  | P17: =IF(B17>12,IF(Blad1!F$5="interval",IF(Blad1!H24>1,VLOOKUP($A17,Blad1!$A:$AO,19,FALSE),""),IF(Blad1!H24>1,VLOOKUP($A17,Blad1!$A:$AO,19,FALSE),"")),"") -> 
A18: 13 | B18: =IF(Blad1!G25>1,VLOOKUP($A18,Blad1!$A:$AO,2,FALSE),"") ->  | C18: =IF(Blad1!G25>1,VLOOKUP($A18,Blad1!$A:$AO,3,FALSE),"") ->  | D18: =IF(Blad1!H25>1,VLOOKUP($A18,Blad1!$A:$AO,4,FALSE),"") ->  | E18: =IF(Blad1!G25>1,VLOOKUP($A18,Blad1!$A:$AO,5,FALSE),"") ->  | F18: =IF(Blad1!G25>1,VLOOKUP($A18,Blad1!$A:$AO,6,FALSE),"") ->  | G18: =IF(Blad1!G25>1,VLOOKUP($A18,Blad1!$A:$AO,7,FALSE),"") ->  | H18: =IF(Blad1!G25>1,VLOOKUP($A18,Blad1!$A:$AO,8,FALSE),"") ->  | I18: =IF(Blad1!G25>1,VLOOKUP($A18,Blad1!$A:$AO,9,FALSE),"") ->  | J18: =IF(Blad1!G25>1,VLOOKUP($A18,Blad1!$A:$AO,10,FALSE),"") ->  | K18: =IF(Blad1!G25>1,VLOOKUP($A18,Blad1!$A:$AO,11,FALSE),"") ->  | L18: =IF(Blad1!G25>1,VLOOKUP($A18,Blad1!$A:$AO,12,FALSE),"") ->  | M18: =IF(Blad1!G25>1,VLOOKUP($A18,Blad1!$A:$AO,13,FALSE),"") ->  | N18: =IF(Blad1!G25>1,VLOOKUP($A18,Blad1!$A:$AO,15,FALSE),"") ->  | O18: =IF(B18>1,IF(Blad1!E$5="interval",IF(Blad1!B25>1,VLOOKUP($A18,Blad1!$A:$AO,17,FALSE),""),IF(Blad1!B25>1,VLOOKUP($A18,Blad1!$A:$AO,16,FALSE),"")),"") ->  | P18: =IF(B18>12,IF(Blad1!F$5="interval",IF(Blad1!H25>1,VLOOKUP($A18,Blad1!$A:$AO,19,FALSE),""),IF(Blad1!H25>1,VLOOKUP($A18,Blad1!$A:$AO,19,FALSE),"")),"") -> 
A19: 14 | B19: =IF(Blad1!G26>1,VLOOKUP($A19,Blad1!$A:$AO,2,FALSE),"") ->  | C19: =IF(Blad1!G26>1,VLOOKUP($A19,Blad1!$A:$AO,3,FALSE),"") ->  | D19: =IF(Blad1!H26>1,VLOOKUP($A19,Blad1!$A:$AO,4,FALSE),"") ->  | E19: =IF(Blad1!G26>1,VLOOKUP($A19,Blad1!$A:$AO,5,FALSE),"") ->  | F19: =IF(Blad1!G26>1,VLOOKUP($A19,Blad1!$A:$AO,6,FALSE),"") ->  | G19: =IF(Blad1!G26>1,VLOOKUP($A19,Blad1!$A:$AO,7,FALSE),"") ->  | H19: =IF(Blad1!G26>1,VLOOKUP($A19,Blad1!$A:$AO,8,FALSE),"") ->  | I19: =IF(Blad1!G26>1,VLOOKUP($A19,Blad1!$A:$AO,9,FALSE),"") ->  | J19: =IF(Blad1!G26>1,VLOOKUP($A19,Blad1!$A:$AO,10,FALSE),"") ->  | K19: =IF(Blad1!G26>1,VLOOKUP($A19,Blad1!$A:$AO,11,FALSE),"") ->  | L19: =IF(Blad1!G26>1,VLOOKUP($A19,Blad1!$A:$AO,12,FALSE),"") ->  | M19: =IF(Blad1!G26>1,VLOOKUP($A19,Blad1!$A:$AO,13,FALSE),"") ->  | N19: =IF(Blad1!G26>1,VLOOKUP($A19,Blad1!$A:$AO,15,FALSE),"") ->  | O19: =IF(B19>1,IF(Blad1!E$5="interval",IF(Blad1!B26>1,VLOOKUP($A19,Blad1!$A:$AO,17,FALSE),""),IF(Blad1!B26>1,VLOOKUP($A19,Blad1!$A:$AO,16,FALSE),"")),"") ->  | P19: =IF(B19>12,IF(Blad1!F$5="interval",IF(Blad1!H26>1,VLOOKUP($A19,Blad1!$A:$AO,19,FALSE),""),IF(Blad1!H26>1,VLOOKUP($A19,Blad1!$A:$AO,19,FALSE),"")),"") -> 
A20: 15 | B20: =IF(Blad1!G27>1,VLOOKUP($A20,Blad1!$A:$AO,2,FALSE),"") ->  | C20: =IF(Blad1!G27>1,VLOOKUP($A20,Blad1!$A:$AO,3,FALSE),"") ->  | D20: =IF(Blad1!H27>1,VLOOKUP($A20,Blad1!$A:$AO,4,FALSE),"") ->  | E20: =IF(Blad1!G27>1,VLOOKUP($A20,Blad1!$A:$AO,5,FALSE),"") ->  | F20: =IF(Blad1!G27>1,VLOOKUP($A20,Blad1!$A:$AO,6,FALSE),"") ->  | G20: =IF(Blad1!G27>1,VLOOKUP($A20,Blad1!$A:$AO,7,FALSE),"") ->  | H20: =IF(Blad1!G27>1,VLOOKUP($A20,Blad1!$A:$AO,8,FALSE),"") ->  | I20: =IF(Blad1!G27>1,VLOOKUP($A20,Blad1!$A:$AO,9,FALSE),"") ->  | J20: =IF(Blad1!G27>1,VLOOKUP($A20,Blad1!$A:$AO,10,FALSE),"") ->  | K20: =IF(Blad1!G27>1,VLOOKUP($A20,Blad1!$A:$AO,11,FALSE),"") ->  | L20: =IF(Blad1!G27>1,VLOOKUP($A20,Blad1!$A:$AO,12,FALSE),"") ->  | M20: =IF(Blad1!G27>1,VLOOKUP($A20,Blad1!$A:$AO,13,FALSE),"") ->  | N20: =IF(Blad1!G27>1,VLOOKUP($A20,Blad1!$A:$AO,15,FALSE),"") ->  | O20: =IF(B20>1,IF(Blad1!E$5="interval",IF(Blad1!B27>1,VLOOKUP($A20,Blad1!$A:$AO,17,FALSE),""),IF(Blad1!B27>1,VLOOKUP($A20,Blad1!$A:$AO,16,FALSE),"")),"") ->  | P20: =IF(B20>12,IF(Blad1!F$5="interval",IF(Blad1!H27>1,VLOOKUP($A20,Blad1!$A:$AO,19,FALSE),""),IF(Blad1!H27>1,VLOOKUP($A20,Blad1!$A:$AO,19,FALSE),"")),"") -> 
A21: 16 | B21: =IF(Blad1!G28>1,VLOOKUP($A21,Blad1!$A:$AO,2,FALSE),"") ->  | C21: =IF(Blad1!G28>1,VLOOKUP($A21,Blad1!$A:$AO,3,FALSE),"") ->  | D21: =IF(Blad1!H28>1,VLOOKUP($A21,Blad1!$A:$AO,4,FALSE),"") ->  | E21: =IF(Blad1!G28>1,VLOOKUP($A21,Blad1!$A:$AO,5,FALSE),"") ->  | F21: =IF(Blad1!G28>1,VLOOKUP($A21,Blad1!$A:$AO,6,FALSE),"") ->  | G21: =IF(Blad1!G28>1,VLOOKUP($A21,Blad1!$A:$AO,7,FALSE),"") ->  | H21: =IF(Blad1!G28>1,VLOOKUP($A21,Blad1!$A:$AO,8,FALSE),"") ->  | I21: =IF(Blad1!G28>1,VLOOKUP($A21,Blad1!$A:$AO,9,FALSE),"") ->  | J21: =IF(Blad1!G28>1,VLOOKUP($A21,Blad1!$A:$AO,10,FALSE),"") ->  | K21: =IF(Blad1!G28>1,VLOOKUP($A21,Blad1!$A:$AO,11,FALSE),"") ->  | L21: =IF(Blad1!G28>1,VLOOKUP($A21,Blad1!$A:$AO,12,FALSE),"") ->  | M21: =IF(Blad1!G28>1,VLOOKUP($A21,Blad1!$A:$AO,13,FALSE),"") ->  | N21: =IF(Blad1!G28>1,VLOOKUP($A21,Blad1!$A:$AO,15,FALSE),"") ->  | O21: =IF(B21>1,IF(Blad1!E$5="interval",IF(Blad1!B28>1,VLOOKUP($A21,Blad1!$A:$AO,17,FALSE),""),IF(Blad1!B28>1,VLOOKUP($A21,Blad1!$A:$AO,16,FALSE),"")),"") ->  | P21: =IF(B21>12,IF(Blad1!F$5="interval",IF(Blad1!H28>1,VLOOKUP($A21,Blad1!$A:$AO,19,FALSE),""),IF(Blad1!H28>1,VLOOKUP($A21,Blad1!$A:$AO,19,FALSE),"")),"") -> 
A22: 17 | B22: =IF(Blad1!G29>1,VLOOKUP($A22,Blad1!$A:$AO,2,FALSE),"") ->  | C22: =IF(Blad1!G29>1,VLOOKUP($A22,Blad1!$A:$AO,3,FALSE),"") ->  | D22: =IF(Blad1!H29>1,VLOOKUP($A22,Blad1!$A:$AO,4,FALSE),"") ->  | E22: =IF(Blad1!G29>1,VLOOKUP($A22,Blad1!$A:$AO,5,FALSE),"") ->  | F22: =IF(Blad1!G29>1,VLOOKUP($A22,Blad1!$A:$AO,6,FALSE),"") ->  | G22: =IF(Blad1!G29>1,VLOOKUP($A22,Blad1!$A:$AO,7,FALSE),"") ->  | H22: =IF(Blad1!G29>1,VLOOKUP($A22,Blad1!$A:$AO,8,FALSE),"") ->  | I22: =IF(Blad1!G29>1,VLOOKUP($A22,Blad1!$A:$AO,9,FALSE),"") ->  | J22: =IF(Blad1!G29>1,VLOOKUP($A22,Blad1!$A:$AO,10,FALSE),"") ->  | K22: =IF(Blad1!G29>1,VLOOKUP($A22,Blad1!$A:$AO,11,FALSE),"") ->  | L22: =IF(Blad1!G29>1,VLOOKUP($A22,Blad1!$A:$AO,12,FALSE),"") ->  | M22: =IF(Blad1!G29>1,VLOOKUP($A22,Blad1!$A:$AO,13,FALSE),"") ->  | N22: =IF(Blad1!G29>1,VLOOKUP($A22,Blad1!$A:$AO,15,FALSE),"") ->  | O22: =IF(B22>1,IF(Blad1!E$5="interval",IF(Blad1!B29>1,VLOOKUP($A22,Blad1!$A:$AO,17,FALSE),""),IF(Blad1!B29>1,VLOOKUP($A22,Blad1!$A:$AO,16,FALSE),"")),"") ->  | P22: =IF(B22>12,IF(Blad1!F$5="interval",IF(Blad1!H29>1,VLOOKUP($A22,Blad1!$A:$AO,19,FALSE),""),IF(Blad1!H29>1,VLOOKUP($A22,Blad1!$A:$AO,19,FALSE),"")),"") -> 
A23: 18 | B23: =IF(Blad1!G30>1,VLOOKUP($A23,Blad1!$A:$AO,2,FALSE),"") ->  | C23: =IF(Blad1!G30>1,VLOOKUP($A23,Blad1!$A:$AO,3,FALSE),"") ->  | D23: =IF(Blad1!H30>1,VLOOKUP($A23,Blad1!$A:$AO,4,FALSE),"") ->  | E23: =IF(Blad1!G30>1,VLOOKUP($A23,Blad1!$A:$AO,5,FALSE),"") ->  | F23: =IF(Blad1!G30>1,VLOOKUP($A23,Blad1!$A:$AO,6,FALSE),"") ->  | G23: =IF(Blad1!G30>1,VLOOKUP($A23,Blad1!$A:$AO,7,FALSE),"") ->  | H23: =IF(Blad1!G30>1,VLOOKUP($A23,Blad1!$A:$AO,8,FALSE),"") ->  | I23: =IF(Blad1!G30>1,VLOOKUP($A23,Blad1!$A:$AO,9,FALSE),"") ->  | J23: =IF(Blad1!G30>1,VLOOKUP($A23,Blad1!$A:$AO,10,FALSE),"") ->  | K23: =IF(Blad1!G30>1,VLOOKUP($A23,Blad1!$A:$AO,11,FALSE),"") ->  | L23: =IF(Blad1!G30>1,VLOOKUP($A23,Blad1!$A:$AO,12,FALSE),"") ->  | M23: =IF(Blad1!G30>1,VLOOKUP($A23,Blad1!$A:$AO,13,FALSE),"") ->  | N23: =IF(Blad1!G30>1,VLOOKUP($A23,Blad1!$A:$AO,15,FALSE),"") ->  | O23: =IF(B23>1,IF(Blad1!E$5="interval",IF(Blad1!B30>1,VLOOKUP($A23,Blad1!$A:$AO,17,FALSE),""),IF(Blad1!B30>1,VLOOKUP($A23,Blad1!$A:$AO,16,FALSE),"")),"") ->  | P23: =IF(B23>12,IF(Blad1!F$5="interval",IF(Blad1!H30>1,VLOOKUP($A23,Blad1!$A:$AO,19,FALSE),""),IF(Blad1!H30>1,VLOOKUP($A23,Blad1!$A:$AO,19,FALSE),"")),"") -> 
A24: 19 | B24: =IF(Blad1!G31>1,VLOOKUP($A24,Blad1!$A:$AO,2,FALSE),"") ->  | C24: =IF(Blad1!G31>1,VLOOKUP($A24,Blad1!$A:$AO,3,FALSE),"") ->  | D24: =IF(Blad1!H31>1,VLOOKUP($A24,Blad1!$A:$AO,4,FALSE),"") ->  | E24: =IF(Blad1!G31>1,VLOOKUP($A24,Blad1!$A:$AO,5,FALSE),"") ->  | F24: =IF(Blad1!G31>1,VLOOKUP($A24,Blad1!$A:$AO,6,FALSE),"") ->  | G24: =IF(Blad1!G31>1,VLOOKUP($A24,Blad1!$A:$AO,7,FALSE),"") ->  | H24: =IF(Blad1!G31>1,VLOOKUP($A24,Blad1!$A:$AO,8,FALSE),"") ->  | I24: =IF(Blad1!G31>1,VLOOKUP($A24,Blad1!$A:$AO,9,FALSE),"") ->  | J24: =IF(Blad1!G31>1,VLOOKUP($A24,Blad1!$A:$AO,10,FALSE),"") ->  | K24: =IF(Blad1!G31>1,VLOOKUP($A24,Blad1!$A:$AO,11,FALSE),"") ->  | L24: =IF(Blad1!G31>1,VLOOKUP($A24,Blad1!$A:$AO,12,FALSE),"") ->  | M24: =IF(Blad1!G31>1,VLOOKUP($A24,Blad1!$A:$AO,13,FALSE),"") ->  | N24: =IF(Blad1!G31>1,VLOOKUP($A24,Blad1!$A:$AO,15,FALSE),"") ->  | O24: =IF(B24>1,IF(Blad1!E$5="interval",IF(Blad1!B31>1,VLOOKUP($A24,Blad1!$A:$AO,17,FALSE),""),IF(Blad1!B31>1,VLOOKUP($A24,Blad1!$A:$AO,16,FALSE),"")),"") ->  | P24: =IF(B24>12,IF(Blad1!F$5="interval",IF(Blad1!H31>1,VLOOKUP($A24,Blad1!$A:$AO,19,FALSE),""),IF(Blad1!H31>1,VLOOKUP($A24,Blad1!$A:$AO,19,FALSE),"")),"") -> 
A25: 20 | B25: =IF(Blad1!G32>1,VLOOKUP($A25,Blad1!$A:$AO,2,FALSE),"") ->  | C25: =IF(Blad1!G32>1,VLOOKUP($A25,Blad1!$A:$AO,3,FALSE),"") ->  | D25: =IF(Blad1!H32>1,VLOOKUP($A25,Blad1!$A:$AO,4,FALSE),"") ->  | E25: =IF(Blad1!G32>1,VLOOKUP($A25,Blad1!$A:$AO,5,FALSE),"") ->  | F25: =IF(Blad1!G32>1,VLOOKUP($A25,Blad1!$A:$AO,6,FALSE),"") ->  | G25: =IF(Blad1!G32>1,VLOOKUP($A25,Blad1!$A:$AO,7,FALSE),"") ->  | H25: =IF(Blad1!G32>1,VLOOKUP($A25,Blad1!$A:$AO,8,FALSE),"") ->  | I25: =IF(Blad1!G32>1,VLOOKUP($A25,Blad1!$A:$AO,9,FALSE),"") ->  | J25: =IF(Blad1!G32>1,VLOOKUP($A25,Blad1!$A:$AO,10,FALSE),"") ->  | K25: =IF(Blad1!G32>1,VLOOKUP($A25,Blad1!$A:$AO,11,FALSE),"") ->  | L25: =IF(Blad1!G32>1,VLOOKUP($A25,Blad1!$A:$AO,12,FALSE),"") ->  | M25: =IF(Blad1!G32>1,VLOOKUP($A25,Blad1!$A:$AO,13,FALSE),"") ->  | N25: =IF(Blad1!G32>1,VLOOKUP($A25,Blad1!$A:$AO,15,FALSE),"") ->  | O25: =IF(B25>1,IF(Blad1!E$5="interval",IF(Blad1!B32>1,VLOOKUP($A25,Blad1!$A:$AO,17,FALSE),""),IF(Blad1!B32>1,VLOOKUP($A25,Blad1!$A:$AO,16,FALSE),"")),"") ->  | P25: =IF(B25>12,IF(Blad1!F$5="interval",IF(Blad1!H32>1,VLOOKUP($A25,Blad1!$A:$AO,19,FALSE),""),IF(Blad1!H32>1,VLOOKUP($A25,Blad1!$A:$AO,19,FALSE),"")),"") -> 
A26: 21 | B26: =IF(Blad1!G33>1,VLOOKUP($A26,Blad1!$A:$AO,2,FALSE),"") ->  | C26: =IF(Blad1!G33>1,VLOOKUP($A26,Blad1!$A:$AO,3,FALSE),"") ->  | D26: =IF(Blad1!H33>1,VLOOKUP($A26,Blad1!$A:$AO,4,FALSE),"") ->  | E26: =IF(Blad1!G33>1,VLOOKUP($A26,Blad1!$A:$AO,5,FALSE),"") ->  | F26: =IF(Blad1!G33>1,VLOOKUP($A26,Blad1!$A:$AO,6,FALSE),"") ->  | G26: =IF(Blad1!G33>1,VLOOKUP($A26,Blad1!$A:$AO,7,FALSE),"") ->  | H26: =IF(Blad1!G33>1,VLOOKUP($A26,Blad1!$A:$AO,8,FALSE),"") ->  | I26: =IF(Blad1!G33>1,VLOOKUP($A26,Blad1!$A:$AO,9,FALSE),"") ->  | J26: =IF(Blad1!G33>1,VLOOKUP($A26,Blad1!$A:$AO,10,FALSE),"") ->  | K26: =IF(Blad1!G33>1,VLOOKUP($A26,Blad1!$A:$AO,11,FALSE),"") ->  | L26: =IF(Blad1!G33>1,VLOOKUP($A26,Blad1!$A:$AO,12,FALSE),"") ->  | M26: =IF(Blad1!G33>1,VLOOKUP($A26,Blad1!$A:$AO,13,FALSE),"") ->  | N26: =IF(Blad1!G33>1,VLOOKUP($A26,Blad1!$A:$AO,15,FALSE),"") ->  | O26: =IF(B26>1,IF(Blad1!E$5="interval",IF(Blad1!B33>1,VLOOKUP($A26,Blad1!$A:$AO,17,FALSE),""),IF(Blad1!B33>1,VLOOKUP($A26,Blad1!$A:$AO,16,FALSE),"")),"") ->  | P26: =IF(B26>12,IF(Blad1!F$5="interval",IF(Blad1!H33>1,VLOOKUP($A26,Blad1!$A:$AO,19,FALSE),""),IF(Blad1!H33>1,VLOOKUP($A26,Blad1!$A:$AO,19,FALSE),"")),"") -> 
A27: 22 | B27: =IF(Blad1!G34>1,VLOOKUP($A27,Blad1!$A:$AO,2,FALSE),"") ->  | C27: =IF(Blad1!G34>1,VLOOKUP($A27,Blad1!$A:$AO,3,FALSE),"") ->  | D27: =IF(Blad1!H34>1,VLOOKUP($A27,Blad1!$A:$AO,4,FALSE),"") ->  | E27: =IF(Blad1!G34>1,VLOOKUP($A27,Blad1!$A:$AO,5,FALSE),"") ->  | F27: =IF(Blad1!G34>1,VLOOKUP($A27,Blad1!$A:$AO,6,FALSE),"") ->  | G27: =IF(Blad1!G34>1,VLOOKUP($A27,Blad1!$A:$AO,7,FALSE),"") ->  | H27: =IF(Blad1!G34>1,VLOOKUP($A27,Blad1!$A:$AO,8,FALSE),"") ->  | I27: =IF(Blad1!G34>1,VLOOKUP($A27,Blad1!$A:$AO,9,FALSE),"") ->  | J27: =IF(Blad1!G34>1,VLOOKUP($A27,Blad1!$A:$AO,10,FALSE),"") ->  | K27: =IF(Blad1!G34>1,VLOOKUP($A27,Blad1!$A:$AO,11,FALSE),"") ->  | L27: =IF(Blad1!G34>1,VLOOKUP($A27,Blad1!$A:$AO,12,FALSE),"") ->  | M27: =IF(Blad1!G34>1,VLOOKUP($A27,Blad1!$A:$AO,13,FALSE),"") ->  | N27: =IF(Blad1!G34>1,VLOOKUP($A27,Blad1!$A:$AO,15,FALSE),"") ->  | O27: =IF(B27>1,IF(Blad1!E$5="interval",IF(Blad1!B34>1,VLOOKUP($A27,Blad1!$A:$AO,17,FALSE),""),IF(Blad1!B34>1,VLOOKUP($A27,Blad1!$A:$AO,16,FALSE),"")),"") ->  | P27: =IF(B27>12,IF(Blad1!F$5="interval",IF(Blad1!H34>1,VLOOKUP($A27,Blad1!$A:$AO,19,FALSE),""),IF(Blad1!H34>1,VLOOKUP($A27,Blad1!$A:$AO,19,FALSE),"")),"") -> 
A28: 23 | B28: =IF(Blad1!G35>1,VLOOKUP($A28,Blad1!$A:$AO,2,FALSE),"") ->  | C28: =IF(Blad1!G35>1,VLOOKUP($A28,Blad1!$A:$AO,3,FALSE),"") ->  | D28: =IF(Blad1!H35>1,VLOOKUP($A28,Blad1!$A:$AO,4,FALSE),"") ->  | E28: =IF(Blad1!G35>1,VLOOKUP($A28,Blad1!$A:$AO,5,FALSE),"") ->  | F28: =IF(Blad1!G35>1,VLOOKUP($A28,Blad1!$A:$AO,6,FALSE),"") ->  | G28: =IF(Blad1!G35>1,VLOOKUP($A28,Blad1!$A:$AO,7,FALSE),"") ->  | H28: =IF(Blad1!G35>1,VLOOKUP($A28,Blad1!$A:$AO,8,FALSE),"") ->  | I28: =IF(Blad1!G35>1,VLOOKUP($A28,Blad1!$A:$AO,9,FALSE),"") ->  | J28: =IF(Blad1!G35>1,VLOOKUP($A28,Blad1!$A:$AO,10,FALSE),"") ->  | K28: =IF(Blad1!G35>1,VLOOKUP($A28,Blad1!$A:$AO,11,FALSE),"") ->  | L28: =IF(Blad1!G35>1,VLOOKUP($A28,Blad1!$A:$AO,12,FALSE),"") ->  | M28: =IF(Blad1!G35>1,VLOOKUP($A28,Blad1!$A:$AO,13,FALSE),"") ->  | N28: =IF(Blad1!G35>1,VLOOKUP($A28,Blad1!$A:$AO,15,FALSE),"") ->  | O28: =IF(B28>1,IF(Blad1!E$5="interval",IF(Blad1!B35>1,VLOOKUP($A28,Blad1!$A:$AO,17,FALSE),""),IF(Blad1!B35>1,VLOOKUP($A28,Blad1!$A:$AO,16,FALSE),"")),"") ->  | P28: =IF(B28>12,IF(Blad1!F$5="interval",IF(Blad1!H35>1,VLOOKUP($A28,Blad1!$A:$AO,19,FALSE),""),IF(Blad1!H35>1,VLOOKUP($A28,Blad1!$A:$AO,19,FALSE),"")),"") -> 
A29: 24 | B29: =IF(Blad1!G36>1,VLOOKUP($A29,Blad1!$A:$AO,2,FALSE),"") ->  | C29: =IF(Blad1!G36>1,VLOOKUP($A29,Blad1!$A:$AO,3,FALSE),"") ->  | D29: =IF(Blad1!H36>1,VLOOKUP($A29,Blad1!$A:$AO,4,FALSE),"") ->  | E29: =IF(Blad1!G36>1,VLOOKUP($A29,Blad1!$A:$AO,5,FALSE),"") ->  | F29: =IF(Blad1!G36>1,VLOOKUP($A29,Blad1!$A:$AO,6,FALSE),"") ->  | G29: =IF(Blad1!G36>1,VLOOKUP($A29,Blad1!$A:$AO,7,FALSE),"") ->  | H29: =IF(Blad1!G36>1,VLOOKUP($A29,Blad1!$A:$AO,8,FALSE),"") ->  | I29: =IF(Blad1!G36>1,VLOOKUP($A29,Blad1!$A:$AO,9,FALSE),"") ->  | J29: =IF(Blad1!G36>1,VLOOKUP($A29,Blad1!$A:$AO,10,FALSE),"") ->  | K29: =IF(Blad1!G36>1,VLOOKUP($A29,Blad1!$A:$AO,11,FALSE),"") ->  | L29: =IF(Blad1!G36>1,VLOOKUP($A29,Blad1!$A:$AO,12,FALSE),"") ->  | M29: =IF(Blad1!G36>1,VLOOKUP($A29,Blad1!$A:$AO,13,FALSE),"") ->  | N29: =IF(Blad1!G36>1,VLOOKUP($A29,Blad1!$A:$AO,15,FALSE),"") ->  | O29: =IF(B29>1,IF(Blad1!E$5="interval",IF(Blad1!B36>1,VLOOKUP($A29,Blad1!$A:$AO,17,FALSE),""),IF(Blad1!B36>1,VLOOKUP($A29,Blad1!$A:$AO,16,FALSE),"")),"") ->  | P29: =IF(B29>12,IF(Blad1!F$5="interval",IF(Blad1!H36>1,VLOOKUP($A29,Blad1!$A:$AO,19,FALSE),""),IF(Blad1!H36>1,VLOOKUP($A29,Blad1!$A:$AO,19,FALSE),"")),"") -> 
A30: 25 | B30: =IF(Blad1!G37>1,VLOOKUP($A30,Blad1!$A:$AO,2,FALSE),"") ->  | C30: =IF(Blad1!G37>1,VLOOKUP($A30,Blad1!$A:$AO,3,FALSE),"") ->  | D30: =IF(Blad1!H37>1,VLOOKUP($A30,Blad1!$A:$AO,4,FALSE),"") ->  | E30: =IF(Blad1!G37>1,VLOOKUP($A30,Blad1!$A:$AO,5,FALSE),"") ->  | F30: =IF(Blad1!G37>1,VLOOKUP($A30,Blad1!$A:$AO,6,FALSE),"") ->  | G30: =IF(Blad1!G37>1,VLOOKUP($A30,Blad1!$A:$AO,7,FALSE),"") ->  | H30: =IF(Blad1!G37>1,VLOOKUP($A30,Blad1!$A:$AO,8,FALSE),"") ->  | I30: =IF(Blad1!G37>1,VLOOKUP($A30,Blad1!$A:$AO,9,FALSE),"") ->  | J30: =IF(Blad1!G37>1,VLOOKUP($A30,Blad1!$A:$AO,10,FALSE),"") ->  | K30: =IF(Blad1!G37>1,VLOOKUP($A30,Blad1!$A:$AO,11,FALSE),"") ->  | L30: =IF(Blad1!G37>1,VLOOKUP($A30,Blad1!$A:$AO,12,FALSE),"") ->  | M30: =IF(Blad1!G37>1,VLOOKUP($A30,Blad1!$A:$AO,13,FALSE),"") ->  | N30: =IF(Blad1!G37>1,VLOOKUP($A30,Blad1!$A:$AO,15,FALSE),"") ->  | O30: =IF(B30>1,IF(Blad1!E$5="interval",IF(Blad1!B37>1,VLOOKUP($A30,Blad1!$A:$AO,17,FALSE),""),IF(Blad1!B37>1,VLOOKUP($A30,Blad1!$A:$AO,16,FALSE),"")),"") ->  | P30: =IF(B30>12,IF(Blad1!F$5="interval",IF(Blad1!H37>1,VLOOKUP($A30,Blad1!$A:$AO,19,FALSE),""),IF(Blad1!H37>1,VLOOKUP($A30,Blad1!$A:$AO,19,FALSE),"")),"") -> 
A31: 26 | B31: =IF(Blad1!G38>1,VLOOKUP($A31,Blad1!$A:$AO,2,FALSE),"") ->  | C31: =IF(Blad1!G38>1,VLOOKUP($A31,Blad1!$A:$AO,3,FALSE),"") ->  | D31: =IF(Blad1!H38>1,VLOOKUP($A31,Blad1!$A:$AO,4,FALSE),"") ->  | E31: =IF(Blad1!G38>1,VLOOKUP($A31,Blad1!$A:$AO,5,FALSE),"") ->  | F31: =IF(Blad1!G38>1,VLOOKUP($A31,Blad1!$A:$AO,6,FALSE),"") ->  | G31: =IF(Blad1!G38>1,VLOOKUP($A31,Blad1!$A:$AO,7,FALSE),"") ->  | H31: =IF(Blad1!G38>1,VLOOKUP($A31,Blad1!$A:$AO,8,FALSE),"") ->  | I31: =IF(Blad1!G38>1,VLOOKUP($A31,Blad1!$A:$AO,9,FALSE),"") ->  | J31: =IF(Blad1!G38>1,VLOOKUP($A31,Blad1!$A:$AO,10,FALSE),"") ->  | K31: =IF(Blad1!G38>1,VLOOKUP($A31,Blad1!$A:$AO,11,FALSE),"") ->  | L31: =IF(Blad1!G38>1,VLOOKUP($A31,Blad1!$A:$AO,12,FALSE),"") ->  | M31: =IF(Blad1!G38>1,VLOOKUP($A31,Blad1!$A:$AO,13,FALSE),"") ->  | N31: =IF(Blad1!G38>1,VLOOKUP($A31,Blad1!$A:$AO,15,FALSE),"") ->  | O31: =IF(B31>1,IF(Blad1!E$5="interval",IF(Blad1!B38>1,VLOOKUP($A31,Blad1!$A:$AO,17,FALSE),""),IF(Blad1!B38>1,VLOOKUP($A31,Blad1!$A:$AO,16,FALSE),"")),"") ->  | P31: =IF(B31>12,IF(Blad1!F$5="interval",IF(Blad1!H38>1,VLOOKUP($A31,Blad1!$A:$AO,19,FALSE),""),IF(Blad1!H38>1,VLOOKUP($A31,Blad1!$A:$AO,19,FALSE),"")),"") -> 
A32: 27 | B32: =IF(Blad1!G39>1,VLOOKUP($A32,Blad1!$A:$AO,2,FALSE),"") ->  | C32: =IF(Blad1!G39>1,VLOOKUP($A32,Blad1!$A:$AO,3,FALSE),"") ->  | D32: =IF(Blad1!H39>1,VLOOKUP($A32,Blad1!$A:$AO,4,FALSE),"") ->  | E32: =IF(Blad1!G39>1,VLOOKUP($A32,Blad1!$A:$AO,5,FALSE),"") ->  | F32: =IF(Blad1!G39>1,VLOOKUP($A32,Blad1!$A:$AO,6,FALSE),"") ->  | G32: =IF(Blad1!G39>1,VLOOKUP($A32,Blad1!$A:$AO,7,FALSE),"") ->  | H32: =IF(Blad1!G39>1,VLOOKUP($A32,Blad1!$A:$AO,8,FALSE),"") ->  | I32: =IF(Blad1!G39>1,VLOOKUP($A32,Blad1!$A:$AO,9,FALSE),"") ->  | J32: =IF(Blad1!G39>1,VLOOKUP($A32,Blad1!$A:$AO,10,FALSE),"") ->  | K32: =IF(Blad1!G39>1,VLOOKUP($A32,Blad1!$A:$AO,11,FALSE),"") ->  | L32: =IF(Blad1!G39>1,VLOOKUP($A32,Blad1!$A:$AO,12,FALSE),"") ->  | M32: =IF(Blad1!G39>1,VLOOKUP($A32,Blad1!$A:$AO,13,FALSE),"") ->  | N32: =IF(Blad1!G39>1,VLOOKUP($A32,Blad1!$A:$AO,15,FALSE),"") ->  | O32: =IF(B32>1,IF(Blad1!E$5="interval",IF(Blad1!B39>1,VLOOKUP($A32,Blad1!$A:$AO,17,FALSE),""),IF(Blad1!B39>1,VLOOKUP($A32,Blad1!$A:$AO,16,FALSE),"")),"") ->  | P32: =IF(B32>12,IF(Blad1!F$5="interval",IF(Blad1!H39>1,VLOOKUP($A32,Blad1!$A:$AO,19,FALSE),""),IF(Blad1!H39>1,VLOOKUP($A32,Blad1!$A:$AO,19,FALSE),"")),"") -> 
A33: 28 | B33: =IF(Blad1!G40>1,VLOOKUP($A33,Blad1!$A:$AO,2,FALSE),"") ->  | C33: =IF(Blad1!G40>1,VLOOKUP($A33,Blad1!$A:$AO,3,FALSE),"") ->  | D33: =IF(Blad1!H40>1,VLOOKUP($A33,Blad1!$A:$AO,4,FALSE),"") ->  | E33: =IF(Blad1!G40>1,VLOOKUP($A33,Blad1!$A:$AO,5,FALSE),"") ->  | F33: =IF(Blad1!G40>1,VLOOKUP($A33,Blad1!$A:$AO,6,FALSE),"") ->  | G33: =IF(Blad1!G40>1,VLOOKUP($A33,Blad1!$A:$AO,7,FALSE),"") ->  | H33: =IF(Blad1!G40>1,VLOOKUP($A33,Blad1!$A:$AO,8,FALSE),"") ->  | I33: =IF(Blad1!G40>1,VLOOKUP($A33,Blad1!$A:$AO,9,FALSE),"") ->  | J33: =IF(Blad1!G40>1,VLOOKUP($A33,Blad1!$A:$AO,10,FALSE),"") ->  | K33: =IF(Blad1!G40>1,VLOOKUP($A33,Blad1!$A:$AO,11,FALSE),"") ->  | L33: =IF(Blad1!G40>1,VLOOKUP($A33,Blad1!$A:$AO,12,FALSE),"") ->  | M33: =IF(Blad1!G40>1,VLOOKUP($A33,Blad1!$A:$AO,13,FALSE),"") ->  | N33: =IF(Blad1!G40>1,VLOOKUP($A33,Blad1!$A:$AO,15,FALSE),"") ->  | O33: =IF(B33>1,IF(Blad1!E$5="interval",IF(Blad1!B40>1,VLOOKUP($A33,Blad1!$A:$AO,17,FALSE),""),IF(Blad1!B40>1,VLOOKUP($A33,Blad1!$A:$AO,16,FALSE),"")),"") ->  | P33: =IF(B33>12,IF(Blad1!F$5="interval",IF(Blad1!H40>1,VLOOKUP($A33,Blad1!$A:$AO,19,FALSE),""),IF(Blad1!H40>1,VLOOKUP($A33,Blad1!$A:$AO,19,FALSE),"")),"") -> 
A34: 29 | B34: =IF(Blad1!G41>1,VLOOKUP($A34,Blad1!$A:$AO,2,FALSE),"") ->  | C34: =IF(Blad1!G41>1,VLOOKUP($A34,Blad1!$A:$AO,3,FALSE),"") ->  | D34: =IF(Blad1!H41>1,VLOOKUP($A34,Blad1!$A:$AO,4,FALSE),"") ->  | E34: =IF(Blad1!G41>1,VLOOKUP($A34,Blad1!$A:$AO,5,FALSE),"") ->  | F34: =IF(Blad1!G41>1,VLOOKUP($A34,Blad1!$A:$AO,6,FALSE),"") ->  | G34: =IF(Blad1!G41>1,VLOOKUP($A34,Blad1!$A:$AO,7,FALSE),"") ->  | H34: =IF(Blad1!G41>1,VLOOKUP($A34,Blad1!$A:$AO,8,FALSE),"") ->  | I34: =IF(Blad1!G41>1,VLOOKUP($A34,Blad1!$A:$AO,9,FALSE),"") ->  | J34: =IF(Blad1!G41>1,VLOOKUP($A34,Blad1!$A:$AO,10,FALSE),"") ->  | K34: =IF(Blad1!G41>1,VLOOKUP($A34,Blad1!$A:$AO,11,FALSE),"") ->  | L34: =IF(Blad1!G41>1,VLOOKUP($A34,Blad1!$A:$AO,12,FALSE),"") ->  | M34: =IF(Blad1!G41>1,VLOOKUP($A34,Blad1!$A:$AO,13,FALSE),"") ->  | N34: =IF(Blad1!G41>1,VLOOKUP($A34,Blad1!$A:$AO,15,FALSE),"") ->  | O34: =IF(B34>1,IF(Blad1!E$5="interval",IF(Blad1!B41>1,VLOOKUP($A34,Blad1!$A:$AO,17,FALSE),""),IF(Blad1!B41>1,VLOOKUP($A34,Blad1!$A:$AO,16,FALSE),"")),"") ->  | P34: =IF(B34>12,IF(Blad1!F$5="interval",IF(Blad1!H41>1,VLOOKUP($A34,Blad1!$A:$AO,19,FALSE),""),IF(Blad1!H41>1,VLOOKUP($A34,Blad1!$A:$AO,19,FALSE),"")),"") -> 
A35: 30 | B35: =IF(Blad1!G42>1,VLOOKUP($A35,Blad1!$A:$AO,2,FALSE),"") ->  | C35: =IF(Blad1!G42>1,VLOOKUP($A35,Blad1!$A:$AO,3,FALSE),"") ->  | D35: =IF(Blad1!H42>1,VLOOKUP($A35,Blad1!$A:$AO,4,FALSE),"") ->  | E35: =IF(Blad1!G42>1,VLOOKUP($A35,Blad1!$A:$AO,5,FALSE),"") ->  | F35: =IF(Blad1!G42>1,VLOOKUP($A35,Blad1!$A:$AO,6,FALSE),"") ->  | G35: =IF(Blad1!G42>1,VLOOKUP($A35,Blad1!$A:$AO,7,FALSE),"") ->  | H35: =IF(Blad1!G42>1,VLOOKUP($A35,Blad1!$A:$AO,8,FALSE),"") ->  | I35: =IF(Blad1!G42>1,VLOOKUP($A35,Blad1!$A:$AO,9,FALSE),"") ->  | J35: =IF(Blad1!G42>1,VLOOKUP($A35,Blad1!$A:$AO,10,FALSE),"") ->  | K35: =IF(Blad1!G42>1,VLOOKUP($A35,Blad1!$A:$AO,11,FALSE),"") ->  | L35: =IF(Blad1!G42>1,VLOOKUP($A35,Blad1!$A:$AO,12,FALSE),"") ->  | M35: =IF(Blad1!G42>1,VLOOKUP($A35,Blad1!$A:$AO,13,FALSE),"") ->  | N35: =IF(Blad1!G42>1,VLOOKUP($A35,Blad1!$A:$AO,15,FALSE),"") ->  | O35: =IF(B35>1,IF(Blad1!E$5="interval",IF(Blad1!B42>1,VLOOKUP($A35,Blad1!$A:$AO,17,FALSE),""),IF(Blad1!B42>1,VLOOKUP($A35,Blad1!$A:$AO,16,FALSE),"")),"") ->  | P35: =IF(B35>12,IF(Blad1!F$5="interval",IF(Blad1!H42>1,VLOOKUP($A35,Blad1!$A:$AO,19,FALSE),""),IF(Blad1!H42>1,VLOOKUP($A35,Blad1!$A:$AO,19,FALSE),"")),"") -> 
A36: 31 | B36: =IF(Blad1!G43>1,VLOOKUP($A36,Blad1!$A:$AO,2,FALSE),"") ->  | C36: =IF(Blad1!G43>1,VLOOKUP($A36,Blad1!$A:$AO,3,FALSE),"") ->  | D36: =IF(Blad1!H43>1,VLOOKUP($A36,Blad1!$A:$AO,4,FALSE),"") ->  | E36: =IF(Blad1!G43>1,VLOOKUP($A36,Blad1!$A:$AO,5,FALSE),"") ->  | F36: =IF(Blad1!G43>1,VLOOKUP($A36,Blad1!$A:$AO,6,FALSE),"") ->  | G36: =IF(Blad1!G43>1,VLOOKUP($A36,Blad1!$A:$AO,7,FALSE),"") ->  | H36: =IF(Blad1!G43>1,VLOOKUP($A36,Blad1!$A:$AO,8,FALSE),"") ->  | I36: =IF(Blad1!G43>1,VLOOKUP($A36,Blad1!$A:$AO,9,FALSE),"") ->  | J36: =IF(Blad1!G43>1,VLOOKUP($A36,Blad1!$A:$AO,10,FALSE),"") ->  | K36: =IF(Blad1!G43>1,VLOOKUP($A36,Blad1!$A:$AO,11,FALSE),"") ->  | L36: =IF(Blad1!G43>1,VLOOKUP($A36,Blad1!$A:$AO,12,FALSE),"") ->  | M36: =IF(Blad1!G43>1,VLOOKUP($A36,Blad1!$A:$AO,13,FALSE),"") ->  | N36: =IF(Blad1!G43>1,VLOOKUP($A36,Blad1!$A:$AO,15,FALSE),"") ->  | O36: =IF(B36>1,IF(Blad1!E$5="interval",IF(Blad1!B43>1,VLOOKUP($A36,Blad1!$A:$AO,17,FALSE),""),IF(Blad1!B43>1,VLOOKUP($A36,Blad1!$A:$AO,16,FALSE),"")),"") ->  | P36: =IF(B36>12,IF(Blad1!F$5="interval",IF(Blad1!H43>1,VLOOKUP($A36,Blad1!$A:$AO,19,FALSE),""),IF(Blad1!H43>1,VLOOKUP($A36,Blad1!$A:$AO,19,FALSE),"")),"") -> 
A37: 32 | B37: =IF(Blad1!G44>1,VLOOKUP($A37,Blad1!$A:$AO,2,FALSE),"") ->  | C37: =IF(Blad1!G44>1,VLOOKUP($A37,Blad1!$A:$AO,3,FALSE),"") ->  | D37: =IF(Blad1!H44>1,VLOOKUP($A37,Blad1!$A:$AO,4,FALSE),"") ->  | E37: =IF(Blad1!G44>1,VLOOKUP($A37,Blad1!$A:$AO,5,FALSE),"") ->  | F37: =IF(Blad1!G44>1,VLOOKUP($A37,Blad1!$A:$AO,6,FALSE),"") ->  | G37: =IF(Blad1!G44>1,VLOOKUP($A37,Blad1!$A:$AO,7,FALSE),"") ->  | H37: =IF(Blad1!G44>1,VLOOKUP($A37,Blad1!$A:$AO,8,FALSE),"") ->  | I37: =IF(Blad1!G44>1,VLOOKUP($A37,Blad1!$A:$AO,9,FALSE),"") ->  | J37: =IF(Blad1!G44>1,VLOOKUP($A37,Blad1!$A:$AO,10,FALSE),"") ->  | K37: =IF(Blad1!G44>1,VLOOKUP($A37,Blad1!$A:$AO,11,FALSE),"") ->  | L37: =IF(Blad1!G44>1,VLOOKUP($A37,Blad1!$A:$AO,12,FALSE),"") ->  | M37: =IF(Blad1!G44>1,VLOOKUP($A37,Blad1!$A:$AO,13,FALSE),"") ->  | N37: =IF(Blad1!G44>1,VLOOKUP($A37,Blad1!$A:$AO,15,FALSE),"") ->  | O37: =IF(B37>1,IF(Blad1!E$5="interval",IF(Blad1!B44>1,VLOOKUP($A37,Blad1!$A:$AO,17,FALSE),""),IF(Blad1!B44>1,VLOOKUP($A37,Blad1!$A:$AO,16,FALSE),"")),"") ->  | P37: =IF(B37>12,IF(Blad1!F$5="interval",IF(Blad1!H44>1,VLOOKUP($A37,Blad1!$A:$AO,19,FALSE),""),IF(Blad1!H44>1,VLOOKUP($A37,Blad1!$A:$AO,19,FALSE),"")),"") -> 
A38: 33 | B38: =IF(Blad1!G45>1,VLOOKUP($A38,Blad1!$A:$AO,2,FALSE),"") ->  | C38: =IF(Blad1!G45>1,VLOOKUP($A38,Blad1!$A:$AO,3,FALSE),"") ->  | D38: =IF(Blad1!H45>1,VLOOKUP($A38,Blad1!$A:$AO,4,FALSE),"") ->  | E38: =IF(Blad1!G45>1,VLOOKUP($A38,Blad1!$A:$AO,5,FALSE),"") ->  | F38: =IF(Blad1!G45>1,VLOOKUP($A38,Blad1!$A:$AO,6,FALSE),"") ->  | G38: =IF(Blad1!G45>1,VLOOKUP($A38,Blad1!$A:$AO,7,FALSE),"") ->  | H38: =IF(Blad1!G45>1,VLOOKUP($A38,Blad1!$A:$AO,8,FALSE),"") ->  | I38: =IF(Blad1!G45>1,VLOOKUP($A38,Blad1!$A:$AO,9,FALSE),"") ->  | J38: =IF(Blad1!G45>1,VLOOKUP($A38,Blad1!$A:$AO,10,FALSE),"") ->  | K38: =IF(Blad1!G45>1,VLOOKUP($A38,Blad1!$A:$AO,11,FALSE),"") ->  | L38: =IF(Blad1!G45>1,VLOOKUP($A38,Blad1!$A:$AO,12,FALSE),"") ->  | M38: =IF(Blad1!G45>1,VLOOKUP($A38,Blad1!$A:$AO,13,FALSE),"") ->  | N38: =IF(Blad1!G45>1,VLOOKUP($A38,Blad1!$A:$AO,15,FALSE),"") ->  | O38: =IF(B38>1,IF(Blad1!E$5="interval",IF(Blad1!B45>1,VLOOKUP($A38,Blad1!$A:$AO,17,FALSE),""),IF(Blad1!B45>1,VLOOKUP($A38,Blad1!$A:$AO,16,FALSE),"")),"") ->  | P38: =IF(B38>12,IF(Blad1!F$5="interval",IF(Blad1!H45>1,VLOOKUP($A38,Blad1!$A:$AO,19,FALSE),""),IF(Blad1!H45>1,VLOOKUP($A38,Blad1!$A:$AO,19,FALSE),"")),"") -> 
A39: 34 | B39: =IF(Blad1!G46>1,VLOOKUP($A39,Blad1!$A:$AO,2,FALSE),"") ->  | C39: =IF(Blad1!G46>1,VLOOKUP($A39,Blad1!$A:$AO,3,FALSE),"") ->  | D39: =IF(Blad1!H46>1,VLOOKUP($A39,Blad1!$A:$AO,4,FALSE),"") ->  | E39: =IF(Blad1!G46>1,VLOOKUP($A39,Blad1!$A:$AO,5,FALSE),"") ->  | F39: =IF(Blad1!G46>1,VLOOKUP($A39,Blad1!$A:$AO,6,FALSE),"") ->  | G39: =IF(Blad1!G46>1,VLOOKUP($A39,Blad1!$A:$AO,7,FALSE),"") ->  | H39: =IF(Blad1!G46>1,VLOOKUP($A39,Blad1!$A:$AO,8,FALSE),"") ->  | I39: =IF(Blad1!G46>1,VLOOKUP($A39,Blad1!$A:$AO,9,FALSE),"") ->  | J39: =IF(Blad1!G46>1,VLOOKUP($A39,Blad1!$A:$AO,10,FALSE),"") ->  | K39: =IF(Blad1!G46>1,VLOOKUP($A39,Blad1!$A:$AO,11,FALSE),"") ->  | L39: =IF(Blad1!G46>1,VLOOKUP($A39,Blad1!$A:$AO,12,FALSE),"") ->  | M39: =IF(Blad1!G46>1,VLOOKUP($A39,Blad1!$A:$AO,13,FALSE),"") ->  | N39: =IF(Blad1!G46>1,VLOOKUP($A39,Blad1!$A:$AO,15,FALSE),"") ->  | O39: =IF(B39>1,IF(Blad1!E$5="interval",IF(Blad1!B46>1,VLOOKUP($A39,Blad1!$A:$AO,17,FALSE),""),IF(Blad1!B46>1,VLOOKUP($A39,Blad1!$A:$AO,16,FALSE),"")),"") ->  | P39: =IF(B39>12,IF(Blad1!F$5="interval",IF(Blad1!H46>1,VLOOKUP($A39,Blad1!$A:$AO,19,FALSE),""),IF(Blad1!H46>1,VLOOKUP($A39,Blad1!$A:$AO,19,FALSE),"")),"") -> 
A40: 35 | B40: =IF(Blad1!G47>1,VLOOKUP($A40,Blad1!$A:$AO,2,FALSE),"") ->  | C40: =IF(Blad1!G47>1,VLOOKUP($A40,Blad1!$A:$AO,3,FALSE),"") ->  | D40: =IF(Blad1!H47>1,VLOOKUP($A40,Blad1!$A:$AO,4,FALSE),"") ->  | E40: =IF(Blad1!G47>1,VLOOKUP($A40,Blad1!$A:$AO,5,FALSE),"") ->  | F40: =IF(Blad1!G47>1,VLOOKUP($A40,Blad1!$A:$AO,6,FALSE),"") ->  | G40: =IF(Blad1!G47>1,VLOOKUP($A40,Blad1!$A:$AO,7,FALSE),"") ->  | H40: =IF(Blad1!G47>1,VLOOKUP($A40,Blad1!$A:$AO,8,FALSE),"") ->  | I40: =IF(Blad1!G47>1,VLOOKUP($A40,Blad1!$A:$AO,9,FALSE),"") ->  | J40: =IF(Blad1!G47>1,VLOOKUP($A40,Blad1!$A:$AO,10,FALSE),"") ->  | K40: =IF(Blad1!G47>1,VLOOKUP($A40,Blad1!$A:$AO,11,FALSE),"") ->  | L40: =IF(Blad1!G47>1,VLOOKUP($A40,Blad1!$A:$AO,12,FALSE),"") ->  | M40: =IF(Blad1!G47>1,VLOOKUP($A40,Blad1!$A:$AO,13,FALSE),"") ->  | N40: =IF(Blad1!G47>1,VLOOKUP($A40,Blad1!$A:$AO,15,FALSE),"") ->  | O40: =IF(B40>1,IF(Blad1!E$5="interval",IF(Blad1!B47>1,VLOOKUP($A40,Blad1!$A:$AO,17,FALSE),""),IF(Blad1!B47>1,VLOOKUP($A40,Blad1!$A:$AO,16,FALSE),"")),"") ->  | P40: =IF(B40>12,IF(Blad1!F$5="interval",IF(Blad1!H47>1,VLOOKUP($A40,Blad1!$A:$AO,19,FALSE),""),IF(Blad1!H47>1,VLOOKUP($A40,Blad1!$A:$AO,19,FALSE),"")),"") -> 
A41: 36 | B41: =IF(Blad1!G48>1,VLOOKUP($A41,Blad1!$A:$AO,2,FALSE),"") ->  | C41: =IF(Blad1!G48>1,VLOOKUP($A41,Blad1!$A:$AO,3,FALSE),"") ->  | D41: =IF(Blad1!H48>1,VLOOKUP($A41,Blad1!$A:$AO,4,FALSE),"") ->  | E41: =IF(Blad1!G48>1,VLOOKUP($A41,Blad1!$A:$AO,5,FALSE),"") ->  | F41: =IF(Blad1!G48>1,VLOOKUP($A41,Blad1!$A:$AO,6,FALSE),"") ->  | G41: =IF(Blad1!G48>1,VLOOKUP($A41,Blad1!$A:$AO,7,FALSE),"") ->  | H41: =IF(Blad1!G48>1,VLOOKUP($A41,Blad1!$A:$AO,8,FALSE),"") ->  | I41: =IF(Blad1!G48>1,VLOOKUP($A41,Blad1!$A:$AO,9,FALSE),"") ->  | J41: =IF(Blad1!G48>1,VLOOKUP($A41,Blad1!$A:$AO,10,FALSE),"") ->  | K41: =IF(Blad1!G48>1,VLOOKUP($A41,Blad1!$A:$AO,11,FALSE),"") ->  | L41: =IF(Blad1!G48>1,VLOOKUP($A41,Blad1!$A:$AO,12,FALSE),"") ->  | M41: =IF(Blad1!G48>1,VLOOKUP($A41,Blad1!$A:$AO,13,FALSE),"") ->  | N41: =IF(Blad1!G48>1,VLOOKUP($A41,Blad1!$A:$AO,15,FALSE),"") ->  | O41: =IF(B41>1,IF(Blad1!E$5="interval",IF(Blad1!B48>1,VLOOKUP($A41,Blad1!$A:$AO,17,FALSE),""),IF(Blad1!B48>1,VLOOKUP($A41,Blad1!$A:$AO,16,FALSE),"")),"") ->  | P41: =IF(B41>12,IF(Blad1!F$5="interval",IF(Blad1!H48>1,VLOOKUP($A41,Blad1!$A:$AO,19,FALSE),""),IF(Blad1!H48>1,VLOOKUP($A41,Blad1!$A:$AO,19,FALSE),"")),"") -> 
A42: 37 | B42: =IF(Blad1!G49>1,VLOOKUP($A42,Blad1!$A:$AO,2,FALSE),"") ->  | C42: =IF(Blad1!G49>1,VLOOKUP($A42,Blad1!$A:$AO,3,FALSE),"") ->  | D42: =IF(Blad1!H49>1,VLOOKUP($A42,Blad1!$A:$AO,4,FALSE),"") ->  | E42: =IF(Blad1!G49>1,VLOOKUP($A42,Blad1!$A:$AO,5,FALSE),"") ->  | F42: =IF(Blad1!G49>1,VLOOKUP($A42,Blad1!$A:$AO,6,FALSE),"") ->  | G42: =IF(Blad1!G49>1,VLOOKUP($A42,Blad1!$A:$AO,7,FALSE),"") ->  | H42: =IF(Blad1!G49>1,VLOOKUP($A42,Blad1!$A:$AO,8,FALSE),"") ->  | I42: =IF(Blad1!G49>1,VLOOKUP($A42,Blad1!$A:$AO,9,FALSE),"") ->  | J42: =IF(Blad1!G49>1,VLOOKUP($A42,Blad1!$A:$AO,10,FALSE),"") ->  | K42: =IF(Blad1!G49>1,VLOOKUP($A42,Blad1!$A:$AO,11,FALSE),"") ->  | L42: =IF(Blad1!G49>1,VLOOKUP($A42,Blad1!$A:$AO,12,FALSE),"") ->  | M42: =IF(Blad1!G49>1,VLOOKUP($A42,Blad1!$A:$AO,13,FALSE),"") ->  | N42: =IF(Blad1!G49>1,VLOOKUP($A42,Blad1!$A:$AO,15,FALSE),"") ->  | P42: =IF(B42>12,IF(Blad1!F$5="interval",IF(Blad1!H49>1,VLOOKUP($A42,Blad1!$A:$AO,19,FALSE),""),IF(Blad1!H49>1,VLOOKUP($A42,Blad1!$A:$AO,19,FALSE),"")),"") -> 

Sheet Blad3
A1: 0.001 | B1: - | C1: 0,25 | D1: 12 | E1: 15
A2: 0,25 | B2: - | C2: 0,30 | D2: 13 | E2: 17
A3: 0,30 | B3: - | C3: 0,35 | D3: 15 | E3: 18
A4: 0,35 | B4: - | C4: 0,40 | D4: 17 | E4: 20
A5: 0,40 | B5: - | C5: 0,45 | D5: 18 | E5: 22
A6: 0,45 | B6: - | C6: 0,50 | D6: 20 | E6: 24
A7: 0,50 | B7: - | C7: 0,55 | D7: 22 | E7: 26
A8: 0,55 | B8: - | C8: 0,60 | D8: 24 | E8: 28
A9: 0,60 | B9: - | C9: 0,65 | D9: 26 | E9: 30
A10: 0.65 | B10: - | C10: 0.7 | D10: 28 | E10: 32
A11: 0.7 | B11: - | C11: 0.75 | D11: 30 | E11: 34
A12: 0.75 | B12: - | C12: 0.8 | D12: 32 | E12: 35
A13: 0.8 | B13: - | C13: 0.85 | D13: 34 | E13: 37
A14: 0.85 | B14: - | C14: 0.9 | D14: 35 | E14: 39
A15: 0.9 | B15: - | C15: 0.95 | D15: 37 | E15: 42
A16: 0.95 | B16: - | C16: 1 | D16: 38 | E16: 45
A17: 1 | B17: - | C17: 1.1 | D17: 42 | E17: 49
A18: 1.1 | B18: - | C18: 1.2 | D18: 45 | E18: 52
A19: 1.2 | B19: - | C19: 1.3 | D19: 49 | E19: 57
A20: 1.3 | B20: - | C20: 1.4 | D20: 52 | E20: 61
A21: 1.4 | B21: - | C21: 1.5 | D21: 57 | E21: 65
A22: 1.5 | B22: - | C22: 1.6 | D22: 61 | E22: 69
A23: 1.6 | B23: - | C23: 1.7 | D23: 65 | E23: 73
A24: 1.7 | B24: - | C24: 1.8 | D24: 69 | E24: 77
A25: 1.8 | B25: - | C25: 1.9 | D25: 73 | E25: 85
A26: 1.9 | B26: - | C26: 2 | D26: 77 | E26: 93
A27: 2 | B27: - | C27: 2.2 | D27: 85 | E27: 101
A28: 2.2 | C28: 2.4 | D28: 93 | F28: 109
A29: 2.4 | C29: 2.6 | D29: 101 | F29: 117
A30: 2.6 | C30: 2.8 | D30: 109 | F30: 125
A31: 2.8 | C31: 3 | D31: 117 | F31: 133
A32: 3 | C32: 3.2 | D32: 125 | F32: 141
A33: 3.2 | C33: 3.4 | D33: 133 | F33: 149
A34: 3.4 | C34: 3.6 | D34: 141 | F34: 157
A35: 3.6 | C35: 3.8 | D35: 149 | F35: 165
A36: 3.8 | C36: 4 | D36: 157 | F36: 173

Sheet Blad2
A1: =IF([1]Sheet1!A4=113,0,[1]Sheet1!A4) -> 0 | B1: =IF([1]Sheet1!A4=113,0,[1]Sheet1!F4) -> 0 | C1: =[1]Sheet1!G4 -> Nijman | D1: =[1]Sheet1!H4 -> Henk | E1: =[1]Sheet1!J4 -> 0 | F1: =IF(E1=0,CONCATENATE(D1," ",C1),CONCATENATE(D1," ",E1," ",C1)) -> Henk Nijman | H1: =IF(A1=113,0,[1]Sheet1!B4) -> DOETINCHEM EN OMSTREKEN
A2: =IF([1]Sheet1!A5=113,0,[1]Sheet1!A5) -> 10382 | B2: =IF([1]Sheet1!A5=113,0,[1]Sheet1!F5) -> 203307 | C2: =[1]Sheet1!G5 -> Timmermans | D2: =[1]Sheet1!H5 -> Wim | E2: =[1]Sheet1!J5 -> 0 | F2: =IF(E2=0,CONCATENATE(D2," ",C2),CONCATENATE(D2," ",E2," ",C2)) -> Wim Timmermans | H2: =IF(A2=113,0,[1]Sheet1!B5) -> Uutkiek
A3: =IF([1]Sheet1!A6=113,0,[1]Sheet1!A6) -> 10382 | B3: =IF([1]Sheet1!A6=113,0,[1]Sheet1!F6) -> 203307 | C3: =[1]Sheet1!G6 -> Timmermans | D3: =[1]Sheet1!H6 -> Wim | E3: =[1]Sheet1!J6 -> 0 | F3: Wim Timmermans | H3: =IF(A3=113,0,[1]Sheet1!B6) -> Uutkiek
A4: =IF([1]Sheet1!A7=113,0,[1]Sheet1!A7) -> 10554 | B4: =IF([1]Sheet1!A7=113,0,[1]Sheet1!F7) -> 112032 | C4: =[1]Sheet1!G7 -> Kemperman | D4: =[1]Sheet1!H7 -> Sjef | E4: =[1]Sheet1!J7 -> 0 | F4: Sjef Kemperman | H4: =IF(A4=113,0,[1]Sheet1!B7) -> D.L.S.
A5: =IF([1]Sheet1!A8=113,0,[1]Sheet1!A8) -> 10554 | B5: =IF([1]Sheet1!A8=113,0,[1]Sheet1!F8) -> 112032 | C5: =[1]Sheet1!G8 -> Kemperman | D5: =[1]Sheet1!H8 -> Sjef | E5: =[1]Sheet1!J8 -> 0 | F5: Sjef Kemperman | H5: =IF(A5=113,0,[1]Sheet1!B8) -> D.L.S.
A6: =IF([1]Sheet1!A9=113,0,[1]Sheet1!A9) -> 10555 | B6: =IF([1]Sheet1!A9=113,0,[1]Sheet1!F9) -> 109625 | C6: =[1]Sheet1!G9 -> Dikkers | D6: =[1]Sheet1!H9 -> Carlo | E6: =[1]Sheet1!J9 -> 0 | F6: Carlo Dikkers | H6: =IF(A6=113,0,[1]Sheet1!B9) -> Martin
A7: =IF([1]Sheet1!A10=113,0,[1]Sheet1!A10) -> 10555 | B7: =IF([1]Sheet1!A10=113,0,[1]Sheet1!F10) -> 109625 | C7: =[1]Sheet1!G10 -> Dikkers | D7: =[1]Sheet1!H10 -> Carlo | E7: =[1]Sheet1!J10 -> 0 | F7: Carlo Dikkers | H7: =IF(A7=113,0,[1]Sheet1!B10) -> Martin
A8: =IF([1]Sheet1!A11=113,0,[1]Sheet1!A11) -> 10556 | B8: =IF([1]Sheet1!A11=113,0,[1]Sheet1!F11) -> 183056 | C8: =[1]Sheet1!G11 -> Scheers | D8: =[1]Sheet1!H11 -> Joop | E8: =[1]Sheet1!J11 -> 0 | F8: Joop Scheers | H8: =IF(A8=113,0,[1]Sheet1!B11) -> Graafschap
A9: =IF([1]Sheet1!A12=113,0,[1]Sheet1!A12) -> 10556 | B9: =IF([1]Sheet1!A12=113,0,[1]Sheet1!F12) -> 183056 | C9: =[1]Sheet1!G12 -> Scheers | D9: =[1]Sheet1!H12 -> Joop | E9: =[1]Sheet1!J12 -> 0 | F9: Joop Scheers | H9: =IF(A9=113,0,[1]Sheet1!B12) -> Graafschap
A10: =IF([1]Sheet1!A13=113,0,[1]Sheet1!A13) -> 10559 | B10: =IF([1]Sheet1!A13=113,0,[1]Sheet1!F13) -> 148178 | C10: =[1]Sheet1!G13 -> Vermeiren | D10: =[1]Sheet1!H13 -> Leo | E10: =[1]Sheet1!J13 -> 0 | F10: Leo Vermeiren | H10: =IF(A10=113,0,[1]Sheet1!B13) -> Veemarkt
A11: =IF([1]Sheet1!A14=113,0,[1]Sheet1!A14) -> 10559 | B11: =IF([1]Sheet1!A14=113,0,[1]Sheet1!F14) -> 148178 | C11: =[1]Sheet1!G14 -> Vermeiren | D11: =[1]Sheet1!H14 -> Leo | E11: =[1]Sheet1!J14 -> 0 | F11: Leo Vermeiren | H11: =IF(A11=113,0,[1]Sheet1!B14) -> Veemarkt
A12: =IF([1]Sheet1!A15=113,0,[1]Sheet1!A15) -> 10559 | B12: =IF([1]Sheet1!A15=113,0,[1]Sheet1!F15) -> 148178 | C12: =[1]Sheet1!G15 -> Vermeiren | D12: =[1]Sheet1!H15 -> Leo | E12: =[1]Sheet1!J15 -> 0 | F12: Leo Vermeiren | H12: =IF(A12=113,0,[1]Sheet1!B15) -> Veemarkt
A13: =IF([1]Sheet1!A16=113,0,[1]Sheet1!A16) -> 10560 | B13: =IF([1]Sheet1!A16=113,0,[1]Sheet1!F16) -> 112083 | C13: =[1]Sheet1!G16 -> Have | D13: =[1]Sheet1!H16 -> Bennie | E13: =[1]Sheet1!J16 -> ten | F13: Bennie ten Have | H13: =IF(A13=113,0,[1]Sheet1!B16) -> Waldeslust
A14: =IF([1]Sheet1!A17=113,0,[1]Sheet1!A17) -> 10560 | B14: =IF([1]Sheet1!A17=113,0,[1]Sheet1!F17) -> 112083 | C14: =[1]Sheet1!G17 -> Have | D14: =[1]Sheet1!H17 -> Bennie | E14: =[1]Sheet1!J17 -> ten | F14: Bennie ten Have | H14: =IF(A14=113,0,[1]Sheet1!B17) -> Waldeslust
A15: =IF([1]Sheet1!A18=113,0,[1]Sheet1!A18) -> 10563 | B15: =IF([1]Sheet1!A18=113,0,[1]Sheet1!F18) -> 111125 | C15: =[1]Sheet1!G18 -> Roelofsen | D15: =[1]Sheet1!H18 -> Jan | E15: =[1]Sheet1!J18 -> 0 | F15: Jan Roelofsen | H15: =IF(A15=113,0,[1]Sheet1!B18) -> Concordia `54
A16: =IF([1]Sheet1!A19=113,0,[1]Sheet1!A19) -> 10563 | B16: =IF([1]Sheet1!A19=113,0,[1]Sheet1!F19) -> 111125 | C16: =[1]Sheet1!G19 -> Roelofsen | D16: =[1]Sheet1!H19 -> Jan | E16: =[1]Sheet1!J19 -> 0 | F16: Jan Roelofsen | H16: =IF(A16=113,0,[1]Sheet1!B19) -> Concordia `54
A17: =IF([1]Sheet1!A20=113,0,[1]Sheet1!A20) -> 10567 | B17: =IF([1]Sheet1!A20=113,0,[1]Sheet1!F20) -> 153849 | C17: =[1]Sheet1!G20 -> Bergervoet | D17: =[1]Sheet1!H20 -> Wilbert | E17: =[1]Sheet1!J20 -> 0 | F17: Wilbert Bergervoet | H17: =IF(A17=113,0,[1]Sheet1!B20) -> Tapperij
A18: =IF([1]Sheet1!A21=113,0,[1]Sheet1!A21) -> 10567 | B18: =IF([1]Sheet1!A21=113,0,[1]Sheet1!F21) -> 153849 | C18: =[1]Sheet1!G21 -> Bergervoet | D18: =[1]Sheet1!H21 -> Wilbert | E18: =[1]Sheet1!J21 -> 0 | F18: Wilbert Bergervoet | H18: =IF(A18=113,0,[1]Sheet1!B21) -> Tapperij
A19: =IF([1]Sheet1!A22=113,0,[1]Sheet1!A22) -> 10570 | B19: =IF([1]Sheet1!A22=113,0,[1]Sheet1!F22) -> 128077 | C19: =[1]Sheet1!G22 -> Buunk-Berenpas | D19: =[1]Sheet1!H22 -> Berdy | E19: =[1]Sheet1!J22 -> 0 | F19: Berdy Buunk-Berenpas | H19: =IF(A19=113,0,[1]Sheet1!B22) -> Ons Genoegen Zelhem
A20: =IF([1]Sheet1!A23=113,0,[1]Sheet1!A23) -> 10570 | B20: =IF([1]Sheet1!A23=113,0,[1]Sheet1!F23) -> 128077 | C20: =[1]Sheet1!G23 -> Buunk-Berenpas | D20: =[1]Sheet1!H23 -> Berdy | E20: =[1]Sheet1!J23 -> 0 | F20: Berdy Buunk-Berenpas | H20: =IF(A20=113,0,[1]Sheet1!B23) -> Ons Genoegen Zelhem
A21: =IF([1]Sheet1!A24=113,0,[1]Sheet1!A24) -> 10572 | B21: =IF([1]Sheet1!A24=113,0,[1]Sheet1!F24) -> 143630 | C21: =[1]Sheet1!G24 -> Peppelman | D21: =[1]Sheet1!H24 -> Gerwin | E21: =[1]Sheet1!J24 -> 0 | F21: =IF(E21=0,CONCATENATE(D21," ",C21),CONCATENATE(D21," ",E21," ",C21)) -> Gerwin Peppelman | H21: =IF(A21=113,0,[1]Sheet1!B24) -> Nieuwe Rosegaar
A22: =IF([1]Sheet1!A25=113,0,[1]Sheet1!A25) -> 10572 | B22: =IF([1]Sheet1!A25=113,0,[1]Sheet1!F25) -> 143630 | C22: =[1]Sheet1!G25 -> Peppelman | D22: =[1]Sheet1!H25 -> Gerwin | E22: =[1]Sheet1!J25 -> 0 | F22: Gerwin Peppelman | H22: =IF(A22=113,0,[1]Sheet1!B25) -> Nieuwe Rosegaar
A23: =IF([1]Sheet1!A26=113,0,[1]Sheet1!A26) -> 10572 | B23: =IF([1]Sheet1!A26=113,0,[1]Sheet1!F26) -> 143630 | C23: =[1]Sheet1!G26 -> Peppelman | D23: =[1]Sheet1!H26 -> Gerwin | E23: =[1]Sheet1!J26 -> 0 | F23: Gerwin Peppelman | H23: =IF(A23=113,0,[1]Sheet1!B26) -> Nieuwe Rosegaar
A24: =IF([1]Sheet1!A27=113,0,[1]Sheet1!A27) -> 10574 | B24: =IF([1]Sheet1!A27=113,0,[1]Sheet1!F27) -> 160924 | C24: =[1]Sheet1!G27 -> Leijzer | D24: =[1]Sheet1!H27 -> Nico | E24: =[1]Sheet1!J27 -> 0 | F24: Nico Leijzer | H24: =IF(A24=113,0,[1]Sheet1!B27) -> KÃ¶ster
A25: =IF([1]Sheet1!A28=113,0,[1]Sheet1!A28) -> 10574 | B25: =IF([1]Sheet1!A28=113,0,[1]Sheet1!F28) -> 160924 | C25: =[1]Sheet1!G28 -> Leijzer | D25: =[1]Sheet1!H28 -> Nico | E25: =[1]Sheet1!J28 -> 0 | F25: Nico Leijzer | H25: =IF(A25=113,0,[1]Sheet1!B28) -> KÃ¶ster
A26: =IF([1]Sheet1!A29=113,0,[1]Sheet1!A29) -> 10576 | B26: =IF([1]Sheet1!A29=113,0,[1]Sheet1!F29) -> 109704 | C26: =[1]Sheet1!G29 -> Beest | D26: =[1]Sheet1!H29 -> Gerard | E26: =[1]Sheet1!J29 -> te | F26: Gerard te Beest | H26: =IF(A26=113,0,[1]Sheet1!B29) -> Ons Genoegen Heurne
A27: =IF([1]Sheet1!A30=113,0,[1]Sheet1!A30) -> 10576 | B27: =IF([1]Sheet1!A30=113,0,[1]Sheet1!F30) -> 109704 | C27: =[1]Sheet1!G30 -> Beest | D27: =[1]Sheet1!H30 -> Gerard | E27: =[1]Sheet1!J30 -> te | F27: Gerard te Beest | H27: =IF(A27=113,0,[1]Sheet1!B30) -> Ons Genoegen Heurne
A28: =IF([1]Sheet1!A31=113,0,[1]Sheet1!A31) -> 10578 | B28: =IF([1]Sheet1!A31=113,0,[1]Sheet1!F31) -> 177710 | C28: =[1]Sheet1!G31 -> Derksen | D28: =[1]Sheet1!H31 -> Julius | E28: =[1]Sheet1!J31 -> 0 | F28: Julius Derksen | H28: =IF(A28=113,0,[1]Sheet1!B31) -> A.b.c.
A29: =IF([1]Sheet1!A32=113,0,[1]Sheet1!A32) -> 10578 | B29: =IF([1]Sheet1!A32=113,0,[1]Sheet1!F32) -> 177710 | C29: =[1]Sheet1!G32 -> Derksen | D29: =[1]Sheet1!H32 -> Julius | E29: =[1]Sheet1!J32 -> 0 | F29: Julius Derksen | H29: =IF(A29=113,0,[1]Sheet1!B32) -> A.b.c.
A30: =IF([1]Sheet1!A33=113,0,[1]Sheet1!A33) -> 10580 | B30: =IF([1]Sheet1!A33=113,0,[1]Sheet1!F33) -> 216961 | C30: =[1]Sheet1!G33 -> Gieling | D30: =[1]Sheet1!H33 -> Willy | E30: =[1]Sheet1!J33 -> 0 | F30: Willy Gieling | H30: =IF(A30=113,0,[1]Sheet1!B33) -> Harmonie
A31: =IF([1]Sheet1!A34=113,0,[1]Sheet1!A34) -> 10580 | B31: =IF([1]Sheet1!A34=113,0,[1]Sheet1!F34) -> 216961 | C31: =[1]Sheet1!G34 -> Gieling | D31: =[1]Sheet1!H34 -> Willy | E31: =[1]Sheet1!J34 -> 0 | F31: Willy Gieling | H31: =IF(A31=113,0,[1]Sheet1!B34) -> Harmonie
A32: =IF([1]Sheet1!A35=113,0,[1]Sheet1!A35) -> 10580 | B32: =IF([1]Sheet1!A35=113,0,[1]Sheet1!F35) -> 216961 | C32: =[1]Sheet1!G35 -> Gieling | D32: =[1]Sheet1!H35 -> Willy | E32: =[1]Sheet1!J35 -> 0 | F32: Willy Gieling | H32: =IF(A32=113,0,[1]Sheet1!B35) -> Harmonie
A33: =IF([1]Sheet1!A36=113,0,[1]Sheet1!A36) -> 10583 | B33: =IF([1]Sheet1!A36=113,0,[1]Sheet1!F36) -> 174657 | C33: =[1]Sheet1!G36 -> Horstik | D33: =[1]Sheet1!H36 -> Alfred | E33: =[1]Sheet1!J36 -> 0 | F33: Alfred Horstik | H33: =IF(A33=113,0,[1]Sheet1!B36) -> Ter Voert
A34: =IF([1]Sheet1!A37=113,0,[1]Sheet1!A37) -> 10583 | B34: =IF([1]Sheet1!A37=113,0,[1]Sheet1!F37) -> 174657 | C34: =[1]Sheet1!G37 -> Horstik | D34: =[1]Sheet1!H37 -> Alfred | E34: =[1]Sheet1!J37 -> 0 | F34: Alfred Horstik | H34: =IF(A34=113,0,[1]Sheet1!B37) -> Ter Voert
A35: =IF([1]Sheet1!A38=113,0,[1]Sheet1!A38) -> 10586 | B35: =IF([1]Sheet1!A38=113,0,[1]Sheet1!F38) -> 213312 | C35: =[1]Sheet1!G38 -> Fokkink | D35: =[1]Sheet1!H38 -> Freddy | E35: =[1]Sheet1!J38 -> 0 | F35: Freddy Fokkink | H35: =IF(A35=113,0,[1]Sheet1!B38) -> Nijman
A36: =IF([1]Sheet1!A39=113,0,[1]Sheet1!A39) -> 10586 | B36: =IF([1]Sheet1!A39=113,0,[1]Sheet1!F39) -> 213312 | C36: =[1]Sheet1!G39 -> Fokkink | D36: =[1]Sheet1!H39 -> Freddy | E36: =[1]Sheet1!J39 -> 0 | F36: Freddy Fokkink | H36: =IF(A36=113,0,[1]Sheet1!B39) -> Nijman
A37: =IF([1]Sheet1!A40=113,0,[1]Sheet1!A40) -> 10594 | B37: =IF([1]Sheet1!A40=113,0,[1]Sheet1!F40) -> 109794 | C37: =[1]Sheet1!G40 -> Tannemaat | D37: =[1]Sheet1!H40 -> Bernard | E37: =[1]Sheet1!J40 -> 0 | F37: Bernard Tannemaat | H37: =IF(A37=113,0,[1]Sheet1!B40) -> W.S.S.
A38: =IF([1]Sheet1!A41=113,0,[1]Sheet1!A41) -> 10594 | B38: =IF([1]Sheet1!A41=113,0,[1]Sheet1!F41) -> 109794 | C38: =[1]Sheet1!G41 -> Tannemaat | D38: =[1]Sheet1!H41 -> Bernard | E38: =[1]Sheet1!J41 -> 0 | F38: Bernard Tannemaat | H38: =IF(A38=113,0,[1]Sheet1!B41) -> W.S.S.
A39: =IF([1]Sheet1!A42=113,0,[1]Sheet1!A42) -> 10599 | B39: =IF([1]Sheet1!A42=113,0,[1]Sheet1!F42) -> 229677 | C39: =[1]Sheet1!G42 -> Meijer | D39: =[1]Sheet1!H42 -> Rene | E39: =[1]Sheet1!J42 -> 0 | F39: Rene Meijer | H39: =IF(A39=113,0,[1]Sheet1!B42) -> Te Pas
A40: =IF([1]Sheet1!A43=113,0,[1]Sheet1!A43) -> 10599 | B40: =IF([1]Sheet1!A43=113,0,[1]Sheet1!F43) -> 229677 | C40: =[1]Sheet1!G43 -> Meijer | D40: =[1]Sheet1!H43 -> Rene | E40: =[1]Sheet1!J43 -> 0 | F40: Rene Meijer | H40: =IF(A40=113,0,[1]Sheet1!B43) -> Te Pas
A41: =IF([1]Sheet1!A44=113,0,[1]Sheet1!A44) -> 10605 | B41: =IF([1]Sheet1!A44=113,0,[1]Sheet1!F44) -> 109638 | C41: =[1]Sheet1!G44 -> Hietbrink | D41: =[1]Sheet1!H44 -> Gerrit | E41: =[1]Sheet1!J44 -> 0 | F41: Gerrit Hietbrink | H41: =IF(A41=113,0,[1]Sheet1!B44) -> Veldhoek
A42: =IF([1]Sheet1!A45=113,0,[1]Sheet1!A45) -> 10605 | B42: =IF([1]Sheet1!A45=113,0,[1]Sheet1!F45) -> 109638 | C42: =[1]Sheet1!G45 -> Hietbrink | D42: =[1]Sheet1!H45 -> Gerrit | E42: =[1]Sheet1!J45 -> 0 | F42: Gerrit Hietbrink | H42: =IF(A42=113,0,[1]Sheet1!B45) -> Veldhoek
A43: =IF([1]Sheet1!A46=113,0,[1]Sheet1!A46) -> 10751 | B43: =IF([1]Sheet1!A46=113,0,[1]Sheet1!F46) -> 160893 | C43: =[1]Sheet1!G46 -> Bannink | D43: =[1]Sheet1!H46 -> Jan | E43: =[1]Sheet1!J46 -> 0 | F43: Jan Bannink | H43: =IF(A43=113,0,[1]Sheet1!B46) -> Wapen Van Ulft
A44: =IF([1]Sheet1!A47=113,0,[1]Sheet1!A47) -> 10751 | B44: =IF([1]Sheet1!A47=113,0,[1]Sheet1!F47) -> 160893 | C44: =[1]Sheet1!G47 -> Bannink | D44: =[1]Sheet1!H47 -> Jan | E44: =[1]Sheet1!J47 -> 0 | F44: Jan Bannink | H44: =IF(A44=113,0,[1]Sheet1!B47) -> Wapen Van Ulft
A45: =IF([1]Sheet1!A48=113,0,[1]Sheet1!A48) -> 11901 | B45: =IF([1]Sheet1!A48=113,0,[1]Sheet1!F48) -> 145343 | C45: =[1]Sheet1!G48 -> Cent | D45: =[1]Sheet1!H48 -> Frank | E45: =[1]Sheet1!J48 -> 0 | F45: Frank Cent | H45: =IF(A45=113,0,[1]Sheet1!B48) -> De Ploeg
A46: =IF([1]Sheet1!A49=113,0,[1]Sheet1!A49) -> 11901 | B46: =IF([1]Sheet1!A49=113,0,[1]Sheet1!F49) -> 145343 | C46: =[1]Sheet1!G49 -> Cent | D46: =[1]Sheet1!H49 -> Frank | E46: =[1]Sheet1!J49 -> 0 | F46: Frank Cent | H46: =IF(A46=113,0,[1]Sheet1!B49) -> De Ploeg
A47: =IF([1]Sheet1!A50=113,0,[1]Sheet1!A50) -> 12031 | B47: =IF([1]Sheet1!A50=113,0,[1]Sheet1!F50) -> 123455 | C47: =[1]Sheet1!G50 -> Freriks | D47: =[1]Sheet1!H50 -> Mike | E47: =[1]Sheet1!J50 -> 0 | F47: Mike Freriks | H47: =IF(A47=113,0,[1]Sheet1!B50) -> Tiemessen
A48: =IF([1]Sheet1!A51=113,0,[1]Sheet1!A51) -> 12031 | B48: =IF([1]Sheet1!A51=113,0,[1]Sheet1!F51) -> 123455 | C48: =[1]Sheet1!G51 -> Freriks | D48: =[1]Sheet1!H51 -> Mike | E48: =[1]Sheet1!J51 -> 0 | F48: Mike Freriks | H48: =IF(A48=113,0,[1]Sheet1!B51) -> Tiemessen
A49: =IF([1]Sheet1!A52=113,0,[1]Sheet1!A52) -> 12031 | B49: =IF([1]Sheet1!A52=113,0,[1]Sheet1!F52) -> 123455 | C49: =[1]Sheet1!G52 -> Freriks | D49: =[1]Sheet1!H52 -> Mike | E49: =[1]Sheet1!J52 -> 0 | F49: Mike Freriks | H49: =IF(A49=113,0,[1]Sheet1!B52) -> Tiemessen
A50: =IF([1]Sheet1!A53=113,0,[1]Sheet1!A53) -> 12129 | B50: =IF([1]Sheet1!A53=113,0,[1]Sheet1!F53) -> 203301 | C50: =[1]Sheet1!G53 -> Schreurs | D50: =[1]Sheet1!H53 -> Piet | E50: =[1]Sheet1!J53 -> 0 | F50: Piet Schreurs | H50: =IF(A50=113,0,[1]Sheet1!B53) -> D`n Draejer
A51: =IF([1]Sheet1!A54=113,0,[1]Sheet1!A54) -> 12129 | B51: =IF([1]Sheet1!A54=113,0,[1]Sheet1!F54) -> 203301 | C51: =[1]Sheet1!G54 -> Schreurs | D51: =[1]Sheet1!H54 -> Piet | E51: =[1]Sheet1!J54 -> 0 | F51: Piet Schreurs | H51: =IF(A51=113,0,[1]Sheet1!B54) -> D`n Draejer
A52: =IF([1]Sheet1!A55=113,0,[1]Sheet1!A55) -> 12214 | B52: =IF([1]Sheet1!A55=113,0,[1]Sheet1!F55) -> 218403 | C52: =[1]Sheet1!G55 -> Ratering | D52: =[1]Sheet1!H55 -> Wim | E52: =[1]Sheet1!J55 -> 0 | F52: Wim Ratering | H52: =IF(A52=113,0,[1]Sheet1!B55) -> Kievit
A53: =IF([1]Sheet1!A56=113,0,[1]Sheet1!A56) -> 12214 | B53: =IF([1]Sheet1!A56=113,0,[1]Sheet1!F56) -> 218403 | C53: =[1]Sheet1!G56 -> Ratering | D53: =[1]Sheet1!H56 -> Wim | E53: =[1]Sheet1!J56 -> 0 | F53: Wim Ratering | H53: =IF(A53=113,0,[1]Sheet1!B56) -> Kievit
A54: =IF([1]Sheet1!A57=113,0,[1]Sheet1!A57) -> 12381 | B54: =IF([1]Sheet1!A57=113,0,[1]Sheet1!F57) -> 157670 | C54: =[1]Sheet1!G57 -> Smeijer | D54: =[1]Sheet1!H57 -> Marco | E54: =[1]Sheet1!J57 -> 0 | F54: Marco Smeijer | H54: =IF(A54=113,0,[1]Sheet1!B57) -> Markt Doesburg
A55: =IF([1]Sheet1!A58=113,0,[1]Sheet1!A58) -> 12381 | B55: =IF([1]Sheet1!A58=113,0,[1]Sheet1!F58) -> 157670 | C55: =[1]Sheet1!G58 -> Smeijer | D55: =[1]Sheet1!H58 -> Marco | E55: =[1]Sheet1!J58 -> 0 | F55: Marco Smeijer | H55: =IF(A55=113,0,[1]Sheet1!B58) -> Markt Doesburg
A56: =IF([1]Sheet1!A59=113,0,[1]Sheet1!A59) -> 12381 | B56: =IF([1]Sheet1!A59=113,0,[1]Sheet1!F59) -> 157670 | C56: =[1]Sheet1!G59 -> Smeijer | D56: =[1]Sheet1!H59 -> Marco | E56: =[1]Sheet1!J59 -> 0 | F56: Marco Smeijer | H56: =IF(A56=113,0,[1]Sheet1!B59) -> Markt Doesburg
A57: =IF([1]Sheet1!A60=113,0,[1]Sheet1!A60) -> 12584 | B57: =IF([1]Sheet1!A60=113,0,[1]Sheet1!F60) -> 144162 | C57: =[1]Sheet1!G60 -> Horst | D57: =[1]Sheet1!H60 -> Henny | E57: =[1]Sheet1!J60 -> ter | F57: Henny ter Horst | H57: =IF(A57=113,0,[1]Sheet1!B60) -> RBC Doetinchem eo
A58: =IF([1]Sheet1!A61=113,0,[1]Sheet1!A61) -> 12584 | B58: =IF([1]Sheet1!A61=113,0,[1]Sheet1!F61) -> 144162 | C58: =[1]Sheet1!G61 -> Horst | D58: =[1]Sheet1!H61 -> Henny | E58: =[1]Sheet1!J61 -> ter | F58: Henny ter Horst | H58: =IF(A58=113,0,[1]Sheet1!B61) -> RBC Doetinchem eo
A59: =IF([1]Sheet1!A62=113,0,[1]Sheet1!A62) -> 12594 | B59: =IF([1]Sheet1!A62=113,0,[1]Sheet1!F62) -> 109105 | C59: =[1]Sheet1!G62 -> Boekhorst | D59: =[1]Sheet1!H62 -> Wim | E59: =[1]Sheet1!J62 -> te | F59: Wim te Boekhorst | H59: =IF(A59=113,0,[1]Sheet1!B62) -> Masse/de Waggel BV
A60: =IF([1]Sheet1!A63=113,0,[1]Sheet1!A63) -> 12594 | B60: =IF([1]Sheet1!A63=113,0,[1]Sheet1!F63) -> 109105 | C60: =[1]Sheet1!G63 -> Boekhorst | D60: =[1]Sheet1!H63 -> Wim | E60: =[1]Sheet1!J63 -> te | F60: Wim te Boekhorst | H60: =IF(A60=113,0,[1]Sheet1!B63) -> Masse/de Waggel BV
A61: =IF([1]Sheet1!A64=113,0,[1]Sheet1!A64) -> 12751 | B61: =IF([1]Sheet1!A64=113,0,[1]Sheet1!F64) -> 222474 | C61: =[1]Sheet1!G64 -> Kraus | D61: =[1]Sheet1!H64 -> Peter | E61: =[1]Sheet1!J64 -> 0 | F61: Peter Kraus | H61: =IF(A61=113,0,[1]Sheet1!B64) -> U-niek
A62: =IF([1]Sheet1!A65=113,0,[1]Sheet1!A65) -> 12751 | B62: =IF([1]Sheet1!A65=113,0,[1]Sheet1!F65) -> 222474 | C62: =[1]Sheet1!G65 -> Kraus | D62: =[1]Sheet1!H65 -> Peter | E62: =[1]Sheet1!J65 -> 0 | F62: Peter Kraus | H62: =IF(A62=113,0,[1]Sheet1!B65) -> U-niek
A63: =IF([1]Sheet1!A66=113,0,[1]Sheet1!A66) -> 12828 | B63: =IF([1]Sheet1!A66=113,0,[1]Sheet1!F66) -> 182978 | C63: =[1]Sheet1!G66 -> Zegers | D63: =[1]Sheet1!H66 -> Ed | E63: =[1]Sheet1!J66 -> 0 | F63: Ed Zegers | H63: =IF(A63=113,0,[1]Sheet1!B66) -> Taveerne
A64: =IF([1]Sheet1!A67=113,0,[1]Sheet1!A67) -> 12828 | B64: =IF([1]Sheet1!A67=113,0,[1]Sheet1!F67) -> 182978 | C64: =[1]Sheet1!G67 -> Zegers | D64: =[1]Sheet1!H67 -> Ed | E64: =[1]Sheet1!J67 -> 0 | F64: Ed Zegers | H64: =IF(A64=113,0,[1]Sheet1!B67) -> Taveerne
A65: =IF([1]Sheet1!A68=113,0,[1]Sheet1!A68) -> 12828 | B65: =IF([1]Sheet1!A68=113,0,[1]Sheet1!F68) -> 182978 | C65: =[1]Sheet1!G68 -> Zegers | D65: =[1]Sheet1!H68 -> Ed | E65: =[1]Sheet1!J68 -> 0 | F65: Ed Zegers | H65: =IF(A65=113,0,[1]Sheet1!B68) -> Taveerne
A66: =IF([1]Sheet1!A69=113,0,[1]Sheet1!A69) -> 13141 | B66: =IF([1]Sheet1!A69=113,0,[1]Sheet1!F69) -> 109615 | C66: =[1]Sheet1!G69 -> Ketels | D66: =[1]Sheet1!H69 -> Harry | E66: =[1]Sheet1!J69 -> 0 | F66: Harry Ketels | H66: =IF(A66=113,0,[1]Sheet1!B69) -> Tante Dies
A67: =IF([1]Sheet1!A70=113,0,[1]Sheet1!A70) -> 13141 | B67: =IF([1]Sheet1!A70=113,0,[1]Sheet1!F70) -> 109615 | C67: =[1]Sheet1!G70 -> Ketels | D67: =[1]Sheet1!H70 -> Harry | E67: =[1]Sheet1!J70 -> 0 | F67: Harry Ketels | H67: =IF(A67=113,0,[1]Sheet1!B70) -> Tante Dies
A68: =IF([1]Sheet1!A71=113,0,[1]Sheet1!A71) -> 13230 | B68: =IF([1]Sheet1!A71=113,0,[1]Sheet1!F71) -> 214205 | C68: =[1]Sheet1!G71 -> Beek | D68: =[1]Sheet1!H71 -> Eef | E68: =[1]Sheet1!J71 -> 0 | F68: Eef Beek | H68: =IF(A68=113,0,[1]Sheet1!B71) -> De Keu
A69: =IF([1]Sheet1!A72=113,0,[1]Sheet1!A72) -> 13230 | B69: =IF([1]Sheet1!A72=113,0,[1]Sheet1!F72) -> 214205 | C69: =[1]Sheet1!G72 -> Beek | D69: =[1]Sheet1!H72 -> Eef | E69: =[1]Sheet1!J72 -> 0 | F69: Eef Beek | H69: =IF(A69=113,0,[1]Sheet1!B72) -> De Keu
A70: =IF([1]Sheet1!A73=113,0,[1]Sheet1!A73) -> 13390 | B70: =IF([1]Sheet1!A73=113,0,[1]Sheet1!F73) -> 263876 | C70: =[1]Sheet1!G73 -> Meijer | D70: =[1]Sheet1!H73 -> Henk | E70: =[1]Sheet1!J73 -> 0 | F70: Henk Meijer | H70: =IF(A70=113,0,[1]Sheet1!B73) -> De Tol
A71: =IF([1]Sheet1!A74=113,0,[1]Sheet1!A74) -> 13390 | B71: =IF([1]Sheet1!A74=113,0,[1]Sheet1!F74) -> 263876 | C71: =[1]Sheet1!G74 -> Meijer | D71: =[1]Sheet1!H74 -> Henk | E71: =[1]Sheet1!J74 -> 0 | F71: Henk Meijer | H71: =IF(A71=113,0,[1]Sheet1!B74) -> De Tol
A72: =IF([1]Sheet1!A75=113,0,[1]Sheet1!A75) -> 13498 | B72: =IF([1]Sheet1!A75=113,0,[1]Sheet1!F75) -> 147673 | C72: =[1]Sheet1!G75 -> Ederveen | D72: =[1]Sheet1!H75 -> Ans | E72: =[1]Sheet1!J75 -> 0 | F72: Ans Ederveen | H72: =IF(A72=113,0,[1]Sheet1!B75) -> Doetinchem 2000
A73: =IF([1]Sheet1!A76=113,0,[1]Sheet1!A76) -> 13498 | B73: =IF([1]Sheet1!A76=113,0,[1]Sheet1!F76) -> 147673 | C73: =[1]Sheet1!G76 -> Ederveen | D73: =[1]Sheet1!H76 -> Ans | E73: =[1]Sheet1!J76 -> 0 | F73: Ans Ederveen | H73: =IF(A73=113,0,[1]Sheet1!B76) -> Doetinchem 2000
A74: =IF([1]Sheet1!A77=113,0,[1]Sheet1!A77) -> 13498 | B74: =IF([1]Sheet1!A77=113,0,[1]Sheet1!F77) -> 147673 | C74: =[1]Sheet1!G77 -> Ederveen | D74: =[1]Sheet1!H77 -> Ans | E74: =[1]Sheet1!J77 -> 0 | F74: Ans Ederveen | H74: =IF(A74=113,0,[1]Sheet1!B77) -> Doetinchem 2000
A75: =IF([1]Sheet1!A78=113,0,[1]Sheet1!A78) -> 13564 | B75: =IF([1]Sheet1!A78=113,0,[1]Sheet1!F78) -> 219722 | C75: =[1]Sheet1!G78 -> Breukers | D75: =[1]Sheet1!H78 -> Rick | E75: =[1]Sheet1!J78 -> 0 | F75: Rick Breukers | H75: =IF(A75=113,0,[1]Sheet1!B78) -> Pand 8
A76: =IF([1]Sheet1!A79=113,0,[1]Sheet1!A79) -> 13564 | B76: =IF([1]Sheet1!A79=113,0,[1]Sheet1!F79) -> 219722 | C76: =[1]Sheet1!G79 -> Breukers | D76: =[1]Sheet1!H79 -> Rick | E76: =[1]Sheet1!J79 -> 0 | F76: Rick Breukers | H76: =IF(A76=113,0,[1]Sheet1!B79) -> Pand 8
A77: =IF([1]Sheet1!A80=113,0,[1]Sheet1!A80) -> 13583 | B77: =IF([1]Sheet1!A80=113,0,[1]Sheet1!F80) -> 204341 | C77: =[1]Sheet1!G80 -> Vreman | D77: =[1]Sheet1!H80 -> Theo | E77: =[1]Sheet1!J80 -> 0 | F77: Theo Vreman | H77: =IF(A77=113,0,[1]Sheet1!B80) -> Oude Rijn
A78: =IF([1]Sheet1!A81=113,0,[1]Sheet1!A81) -> 13583 | B78: =IF([1]Sheet1!A81=113,0,[1]Sheet1!F81) -> 204341 | C78: =[1]Sheet1!G81 -> Vreman | D78: =[1]Sheet1!H81 -> Theo | E78: =[1]Sheet1!J81 -> 0 | F78: Theo Vreman | H78: =IF(A78=113,0,[1]Sheet1!B81) -> Oude Rijn
A79: =IF([1]Sheet1!A82=113,0,[1]Sheet1!A82) -> 13619 | B79: =IF([1]Sheet1!A82=113,0,[1]Sheet1!F82) -> 160921 | C79: =[1]Sheet1!G82 -> Egging | D79: =[1]Sheet1!H82 -> Edwin | E79: =[1]Sheet1!J82 -> 0 | F79: Edwin Egging | H79: =IF(A79=113,0,[1]Sheet1!B82) -> Slootermeer & Scholtenhof
A80: =IF([1]Sheet1!A83=113,0,[1]Sheet1!A83) -> 13619 | B80: =IF([1]Sheet1!A83=113,0,[1]Sheet1!F83) -> 160921 | C80: =[1]Sheet1!G83 -> Egging | D80: =[1]Sheet1!H83 -> Edwin | E80: =[1]Sheet1!J83 -> 0 | F80: Edwin Egging | H80: =IF(A80=113,0,[1]Sheet1!B83) -> Slootermeer & Scholtenhof
A81: =IF([1]Sheet1!A84=113,0,[1]Sheet1!A84) -> 13619 | B81: =IF([1]Sheet1!A84=113,0,[1]Sheet1!F84) -> 160921 | C81: =[1]Sheet1!G84 -> Egging | D81: =[1]Sheet1!H84 -> Edwin | E81: =[1]Sheet1!J84 -> 0 | F81: Edwin Egging | H81: =IF(A81=113,0,[1]Sheet1!B84) -> Slootermeer & Scholtenhof
A82: =IF([1]Sheet1!A85=113,0,[1]Sheet1!A85) -> 14100 | B82: =IF([1]Sheet1!A85=113,0,[1]Sheet1!F85) -> 220373 | C82: =[1]Sheet1!G85 -> Jeurissen | D82: =[1]Sheet1!H85 -> Theo | E82: =[1]Sheet1!J85 -> 0 | F82: Theo Jeurissen | H82: =IF(A82=113,0,[1]Sheet1!B85) -> Buitenmolen
A83: =IF([1]Sheet1!A86=113,0,[1]Sheet1!A86) -> 14100 | B83: =IF([1]Sheet1!A86=113,0,[1]Sheet1!F86) -> 220373 | C83: =[1]Sheet1!G86 -> Jeurissen | D83: =[1]Sheet1!H86 -> Theo | E83: =[1]Sheet1!J86 -> 0 | F83: Theo Jeurissen | H83: =IF(A83=113,0,[1]Sheet1!B86) -> Buitenmolen
A84: =IF([1]Sheet1!A87=113,0,[1]Sheet1!A87) -> 15421 | B84: =IF([1]Sheet1!A87=113,0,[1]Sheet1!F87) -> 263828 | C84: =[1]Sheet1!G87 -> Rutten | D84: =[1]Sheet1!H87 -> Erik | E84: =[1]Sheet1!J87 -> 0 | F84: Erik Rutten | H84: =IF(A84=113,0,[1]Sheet1!B87) -> V.o.p.
A85: =IF([1]Sheet1!A88=113,0,[1]Sheet1!A88) -> 15421 | B85: =IF([1]Sheet1!A88=113,0,[1]Sheet1!F88) -> 263828 | C85: =[1]Sheet1!G88 -> Rutten | D85: =[1]Sheet1!H88 -> Erik | E85: =[1]Sheet1!J88 -> 0 | F85: =IF(E85=0,CONCATENATE(D85," ",C85),CONCATENATE(D85," ",E85," ",C85)) -> Erik Rutten | H85: =IF(A85=113,0,[1]Sheet1!B88) -> V.o.p.
A86: =IF([1]Sheet1!A89=113,0,[1]Sheet1!A89) -> 15529 | B86: =IF([1]Sheet1!A89=113,0,[1]Sheet1!F89) -> 215423 | C86: =[1]Sheet1!G89 -> Winterink | D86: =[1]Sheet1!H89 -> Bennie | E86: =[1]Sheet1!J89 -> 0 | F86: Bennie Winterink | H86: =IF(A86=113,0,[1]Sheet1!B89) -> D.S.S.
A87: =IF([1]Sheet1!A90=113,0,[1]Sheet1!A90) -> 15529 | B87: =IF([1]Sheet1!A90=113,0,[1]Sheet1!F90) -> 215423 | C87: =[1]Sheet1!G90 -> Winterink | D87: =[1]Sheet1!H90 -> Bennie | E87: =[1]Sheet1!J90 -> 0 | F87: Bennie Winterink | H87: =IF(A87=113,0,[1]Sheet1!B90) -> D.S.S.
A88: =IF([1]Sheet1!A91=113,0,[1]Sheet1!A91) -> 15683 | B88: =IF([1]Sheet1!A91=113,0,[1]Sheet1!F91) -> 225798 | C88: =[1]Sheet1!G91 -> Visser | D88: =[1]Sheet1!H91 -> Bennie | E88: =[1]Sheet1!J91 -> 0 | F88: Bennie Visser | H88: =IF(A88=113,0,[1]Sheet1!B91) -> De Knijp
A89: =IF([1]Sheet1!A92=113,0,[1]Sheet1!A92) -> 15683 | B89: =IF([1]Sheet1!A92=113,0,[1]Sheet1!F92) -> 225798 | C89: =[1]Sheet1!G92 -> Visser | D89: =[1]Sheet1!H92 -> Bennie | E89: =[1]Sheet1!J92 -> 0 | F89: Bennie Visser | H89: =IF(A89=113,0,[1]Sheet1!B92) -> De Knijp
A90: =IF([1]Sheet1!A93=113,0,[1]Sheet1!A93) -> 15686 | B90: =IF([1]Sheet1!A93=113,0,[1]Sheet1!F93) -> 161005 | C90: =[1]Sheet1!G93 -> Meurkes | D90: =[1]Sheet1!H93 -> Martin | E90: =[1]Sheet1!J93 -> 0 | F90: Martin Meurkes | H90: =IF(A90=113,0,[1]Sheet1!B93) -> "t GILDE CAFE
A91: =IF([1]Sheet1!A94=113,0,[1]Sheet1!A94) -> 15686 | B91: =IF([1]Sheet1!A94=113,0,[1]Sheet1!F94) -> 161005 | C91: =[1]Sheet1!G94 -> Meurkes | D91: =[1]Sheet1!H94 -> Martin | E91: =[1]Sheet1!J94 -> 0 | F91: Martin Meurkes | H91: =IF(A91=113,0,[1]Sheet1!B94) -> "t GILDE CAFE
A92: =IF([1]Sheet1!A95=113,0,[1]Sheet1!A95) -> 15688 | B92: =IF([1]Sheet1!A95=113,0,[1]Sheet1!F95) -> 225780 | C92: =[1]Sheet1!G95 -> Jansen | D92: =[1]Sheet1!H95 -> Nick | E92: =[1]Sheet1!J95 -> 0 | F92: Nick Jansen | H92: =IF(A92=113,0,[1]Sheet1!B95) -> De Smid
A93: =IF([1]Sheet1!A96=113,0,[1]Sheet1!A96) -> 15688 | B93: =IF([1]Sheet1!A96=113,0,[1]Sheet1!F96) -> 225780 | C93: =[1]Sheet1!G96 -> Jansen | D93: =[1]Sheet1!H96 -> Nick | E93: =[1]Sheet1!J96 -> 0 | F93: Nick Jansen | H93: =IF(A93=113,0,[1]Sheet1!B96) -> De Smid
A94: =IF([1]Sheet1!A97=113,0,[1]Sheet1!A97) -> 15688 | B94: =IF([1]Sheet1!A97=113,0,[1]Sheet1!F97) -> 225780 | C94: =[1]Sheet1!G97 -> Jansen | D94: =[1]Sheet1!H97 -> Nick | E94: =[1]Sheet1!J97 -> 0 | F94: Nick Jansen | H94: =IF(A94=113,0,[1]Sheet1!B97) -> De Smid
A95: =IF([1]Sheet1!A98=113,0,[1]Sheet1!A98) -> 15747 | B95: =IF([1]Sheet1!A98=113,0,[1]Sheet1!F98) -> 221942 | C95: =[1]Sheet1!G98 -> Beun | D95: =[1]Sheet1!H98 -> Thomas | E95: =[1]Sheet1!J98 -> 0 | F95: Thomas Beun | H95: =IF(A95=113,0,[1]Sheet1!B98) -> Pol Zelhem
A96: =IF([1]Sheet1!A99=113,0,[1]Sheet1!A99) -> 15747 | B96: =IF([1]Sheet1!A99=113,0,[1]Sheet1!F99) -> 221942 | C96: =[1]Sheet1!G99 -> Beun | D96: =[1]Sheet1!H99 -> Thomas | E96: =[1]Sheet1!J99 -> 0 | F96: Thomas Beun | H96: =IF(A96=113,0,[1]Sheet1!B99) -> Pol Zelhem
A97: =IF([1]Sheet1!A100=113,0,[1]Sheet1!A100) -> 0 | B97: =IF([1]Sheet1!A100=113,0,[1]Sheet1!F100) -> 0 | C97: =[1]Sheet1!G100 -> Jansen | D97: =[1]Sheet1!H100 -> Chris | E97: =[1]Sheet1!J100 -> 0 | F97: Chris Jansen | H97: =IF(A97=113,0,[1]Sheet1!B100) -> DOETINCHEM EN OMSTREKEN
A98: =IF([1]Sheet1!A101=113,0,[1]Sheet1!A101) -> 0 | B98: =IF([1]Sheet1!A101=113,0,[1]Sheet1!F101) -> 0 | C98: =[1]Sheet1!G101 -> Roelofsen | D98: =[1]Sheet1!H101 -> Jan | E98: =[1]Sheet1!J101 -> 0 | F98: Jan Roelofsen | H98: =IF(A98=113,0,[1]Sheet1!B101) -> DOETINCHEM EN OMSTREKEN
A99: =IF([1]Sheet1!A102=113,0,[1]Sheet1!A102) -> 0 | B99: =IF([1]Sheet1!A102=113,0,[1]Sheet1!F102) -> 0 | C99: =[1]Sheet1!G102 -> Schmitz | D99: =[1]Sheet1!H102 -> Wim | E99: =[1]Sheet1!J102 -> 0 | F99: Wim Schmitz | H99: =IF(A99=113,0,[1]Sheet1!B102) -> DOETINCHEM EN OMSTREKEN
A100: =IF([1]Sheet1!A103=113,0,[1]Sheet1!A103) -> 0 | B100: =IF([1]Sheet1!A103=113,0,[1]Sheet1!F103) -> 0 | C100: =[1]Sheet1!G103 -> Schmitz | D100: =[1]Sheet1!H103 -> Wim | E100: =[1]Sheet1!J103 -> 0 | F100: Wim Schmitz | H100: =IF(A100=113,0,[1]Sheet1!B103) -> DOETINCHEM EN OMSTREKEN
A101: =IF([1]Sheet1!A104=113,0,[1]Sheet1!A104) -> 0 | B101: =IF([1]Sheet1!A104=113,0,[1]Sheet1!F104) -> 0 | C101: =[1]Sheet1!G104 -> Stortelder | D101: =[1]Sheet1!H104 -> Toon | E101: =[1]Sheet1!J104 -> 0 | F101: Toon Stortelder | H101: =IF(A101=113,0,[1]Sheet1!B104) -> DOETINCHEM EN OMSTREKEN
A102: =IF([1]Sheet1!A105=113,0,[1]Sheet1!A105) -> 10382 | B102: =IF([1]Sheet1!A105=113,0,[1]Sheet1!F105) -> 247968 | C102: =[1]Sheet1!G105 -> Albers | D102: =[1]Sheet1!H105 -> Toon | E102: =[1]Sheet1!J105 -> 0 | F102: Toon Albers | H102: =IF(A102=113,0,[1]Sheet1!B105) -> Uutkiek
A103: =IF([1]Sheet1!A106=113,0,[1]Sheet1!A106) -> 10382 | B103: =IF([1]Sheet1!A106=113,0,[1]Sheet1!F106) -> 122673 | C103: =[1]Sheet1!G106 -> Anker | D103: =[1]Sheet1!H106 -> Maikel | E103: =[1]Sheet1!J106 -> van den | F103: Maikel van den Anker | H103: =IF(A103=113,0,[1]Sheet1!B106) -> Uutkiek
A104: =IF([1]Sheet1!A107=113,0,[1]Sheet1!A107) -> 10382 | B104: =IF([1]Sheet1!A107=113,0,[1]Sheet1!F107) -> 213376 | C104: =[1]Sheet1!G107 -> Brouwer | D104: =[1]Sheet1!H107 -> John | E104: =[1]Sheet1!J107 -> 0 | F104: John Brouwer | H104: =IF(A104=113,0,[1]Sheet1!B107) -> Uutkiek
A105: =IF([1]Sheet1!A108=113,0,[1]Sheet1!A108) -> 10382 | B105: =IF([1]Sheet1!A108=113,0,[1]Sheet1!F108) -> 263892 | C105: =[1]Sheet1!G108 -> Elissen | D105: =[1]Sheet1!H108 -> Richard | E105: =[1]Sheet1!J108 -> 0 | F105: Richard Elissen | H105: =IF(A105=113,0,[1]Sheet1!B108) -> Uutkiek
A106: =IF([1]Sheet1!A109=113,0,[1]Sheet1!A109) -> 10382 | B106: =IF([1]Sheet1!A109=113,0,[1]Sheet1!F109) -> 122671 | C106: =[1]Sheet1!G109 -> Hendriks | D106: =[1]Sheet1!H109 -> Fred | E106: =[1]Sheet1!J109 -> 0 | F106: Fred Hendriks | H106: =IF(A106=113,0,[1]Sheet1!B109) -> Uutkiek
A107: =IF([1]Sheet1!A110=113,0,[1]Sheet1!A110) -> 10382 | B107: =IF([1]Sheet1!A110=113,0,[1]Sheet1!F110) -> 169441 | C107: =[1]Sheet1!G110 -> Seegers | D107: =[1]Sheet1!H110 -> Ton | E107: =[1]Sheet1!J110 -> 0 | F107: Ton Seegers | H107: =IF(A107=113,0,[1]Sheet1!B110) -> Uutkiek
A108: =IF([1]Sheet1!A111=113,0,[1]Sheet1!A111) -> 10382 | B108: =IF([1]Sheet1!A111=113,0,[1]Sheet1!F111) -> 136212 | C108: =[1]Sheet1!G111 -> Smeets | D108: =[1]Sheet1!H111 -> Peter | E108: =[1]Sheet1!J111 -> 0 | F108: Peter Smeets | H108: =IF(A108=113,0,[1]Sheet1!B111) -> Uutkiek
A109: =IF([1]Sheet1!A112=113,0,[1]Sheet1!A112) -> 10382 | B109: =IF([1]Sheet1!A112=113,0,[1]Sheet1!F112) -> 141106 | C109: =[1]Sheet1!G112 -> Veen | D109: =[1]Sheet1!H112 -> Crist | E109: =[1]Sheet1!J112 -> ten | F109: Crist ten Veen | H109: =IF(A109=113,0,[1]Sheet1!B112) -> Uutkiek
A110: =IF([1]Sheet1!A113=113,0,[1]Sheet1!A113) -> 10554 | B110: =IF([1]Sheet1!A113=113,0,[1]Sheet1!F113) -> 112024 | C110: =[1]Sheet1!G113 -> Arentsen | D110: =[1]Sheet1!H113 -> Rudy | E110: =[1]Sheet1!J113 -> 0 | F110: Rudy Arentsen | H110: =IF(A110=113,0,[1]Sheet1!B113) -> D.L.S.
A111: =IF([1]Sheet1!A114=113,0,[1]Sheet1!A114) -> 10554 | B111: =IF([1]Sheet1!A114=113,0,[1]Sheet1!F114) -> 215739 | C111: =[1]Sheet1!G114 -> Bruggink | D111: =[1]Sheet1!H114 -> Wim | E111: =[1]Sheet1!J114 -> 0 | F111: Wim Bruggink | H111: =IF(A111=113,0,[1]Sheet1!B114) -> D.L.S.
A112: =IF([1]Sheet1!A115=113,0,[1]Sheet1!A115) -> 10554 | B112: =IF([1]Sheet1!A115=113,0,[1]Sheet1!F115) -> 204300 | C112: =[1]Sheet1!G115 -> Gerards | D112: =[1]Sheet1!H115 -> Arnold | E112: =[1]Sheet1!J115 -> 0 | F112: Arnold Gerards | H112: =IF(A112=113,0,[1]Sheet1!B115) -> D.L.S.
A113: =IF([1]Sheet1!A116=113,0,[1]Sheet1!A116) -> 10554 | B113: =IF([1]Sheet1!A116=113,0,[1]Sheet1!F116) -> 210744 | C113: =[1]Sheet1!G116 -> Gesink | D113: =[1]Sheet1!H116 -> Han | E113: =[1]Sheet1!J116 -> 0 | F113: Han Gesink | H113: =IF(A113=113,0,[1]Sheet1!B116) -> D.L.S.
A114: =IF([1]Sheet1!A117=113,0,[1]Sheet1!A117) -> 10554 | B114: =IF([1]Sheet1!A117=113,0,[1]Sheet1!F117) -> 210744 | C114: =[1]Sheet1!G117 -> Gesink | D114: =[1]Sheet1!H117 -> Han | E114: =[1]Sheet1!J117 -> 0 | F114: Han Gesink | H114: =IF(A114=113,0,[1]Sheet1!B117) -> D.L.S.
A115: =IF([1]Sheet1!A118=113,0,[1]Sheet1!A118) -> 10554 | B115: =IF([1]Sheet1!A118=113,0,[1]Sheet1!F118) -> 223239 | C115: =[1]Sheet1!G118 -> Hartogsveld | D115: =[1]Sheet1!H118 -> Jan | E115: =[1]Sheet1!J118 -> 0 | F115: Jan Hartogsveld | H115: =IF(A115=113,0,[1]Sheet1!B118) -> D.L.S.
A116: =IF([1]Sheet1!A119=113,0,[1]Sheet1!A119) -> 10554 | B116: =IF([1]Sheet1!A119=113,0,[1]Sheet1!F119) -> 151872 | C116: =[1]Sheet1!G119 -> Hengeveld | D116: =[1]Sheet1!H119 -> Henk | E116: =[1]Sheet1!J119 -> 0 | F116: Henk Hengeveld | H116: =IF(A116=113,0,[1]Sheet1!B119) -> D.L.S.
A117: =IF([1]Sheet1!A120=113,0,[1]Sheet1!A120) -> 10554 | B117: =IF([1]Sheet1!A120=113,0,[1]Sheet1!F120) -> 212514 | C117: =[1]Sheet1!G120 -> Hengeveld | D117: =[1]Sheet1!H120 -> Henk | E117: =[1]Sheet1!J120 -> 0 | F117: Henk Hengeveld | H117: =IF(A117=113,0,[1]Sheet1!B120) -> D.L.S.
A118: =IF([1]Sheet1!A121=113,0,[1]Sheet1!A121) -> 10554 | B118: =IF([1]Sheet1!A121=113,0,[1]Sheet1!F121) -> 117024 | C118: =[1]Sheet1!G121 -> Huyink | D118: =[1]Sheet1!H121 -> Paul | E118: =[1]Sheet1!J121 -> 0 | F118: Paul Huyink | H118: =IF(A118=113,0,[1]Sheet1!B121) -> D.L.S.
A119: =IF([1]Sheet1!A122=113,0,[1]Sheet1!A122) -> 10554 | B119: =IF([1]Sheet1!A122=113,0,[1]Sheet1!F122) -> 147287 | C119: =[1]Sheet1!G122 -> Kuiper | D119: =[1]Sheet1!H122 -> Chris | E119: =[1]Sheet1!J122 -> 0 | F119: Chris Kuiper | H119: =IF(A119=113,0,[1]Sheet1!B122) -> D.L.S.
A120: =IF([1]Sheet1!A123=113,0,[1]Sheet1!A123) -> 10554 | B120: =IF([1]Sheet1!A123=113,0,[1]Sheet1!F123) -> 207378 | C120: =[1]Sheet1!G123 -> Lindert | D120: =[1]Sheet1!H123 -> Gerben | E120: =[1]Sheet1!J123 -> te | F120: Gerben te Lindert | H120: =IF(A120=113,0,[1]Sheet1!B123) -> D.L.S.
A121: =IF([1]Sheet1!A124=113,0,[1]Sheet1!A124) -> 10554 | B121: =IF([1]Sheet1!A124=113,0,[1]Sheet1!F124) -> 112036 | C121: =[1]Sheet1!G124 -> Oldenkortte | D121: =[1]Sheet1!H124 -> RenÃ© | E121: =[1]Sheet1!J124 -> 0 | F121: RenÃ© Oldenkortte | H121: =IF(A121=113,0,[1]Sheet1!B124) -> D.L.S.
A122: =IF([1]Sheet1!A125=113,0,[1]Sheet1!A125) -> 10554 | B122: =IF([1]Sheet1!A125=113,0,[1]Sheet1!F125) -> 115643 | C122: =[1]Sheet1!G125 -> Oostendorp | D122: =[1]Sheet1!H125 -> Anton | E122: =[1]Sheet1!J125 -> 0 | F122: Anton Oostendorp | H122: =IF(A122=113,0,[1]Sheet1!B125) -> D.L.S.
A123: =IF([1]Sheet1!A126=113,0,[1]Sheet1!A126) -> 10554 | B123: =IF([1]Sheet1!A126=113,0,[1]Sheet1!F126) -> 147974 | C123: =[1]Sheet1!G126 -> Overbeek | D123: =[1]Sheet1!H126 -> Gerard | E123: =[1]Sheet1!J126 -> 0 | F123: Gerard Overbeek | H123: =IF(A123=113,0,[1]Sheet1!B126) -> D.L.S.
A124: =IF([1]Sheet1!A127=113,0,[1]Sheet1!A127) -> 10554 | B124: =IF([1]Sheet1!A127=113,0,[1]Sheet1!F127) -> 128055 | C124: =[1]Sheet1!G127 -> Sietsma | D124: =[1]Sheet1!H127 -> Hessel | E124: =[1]Sheet1!J127 -> 0 | F124: Hessel Sietsma | H124: =IF(A124=113,0,[1]Sheet1!B127) -> D.L.S.
A125: =IF([1]Sheet1!A128=113,0,[1]Sheet1!A128) -> 10554 | B125: =IF([1]Sheet1!A128=113,0,[1]Sheet1!F128) -> 123631 | C125: =[1]Sheet1!G128 -> Stevens | D125: =[1]Sheet1!H128 -> Frank | E125: =[1]Sheet1!J128 -> 0 | F125: Frank Stevens | H125: =IF(A125=113,0,[1]Sheet1!B128) -> D.L.S.
A126: =IF([1]Sheet1!A129=113,0,[1]Sheet1!A129) -> 10554 | B126: =IF([1]Sheet1!A129=113,0,[1]Sheet1!F129) -> 237626 | C126: =[1]Sheet1!G129 -> Stroet | D126: =[1]Sheet1!H129 -> Toon | E126: =[1]Sheet1!J129 -> 0 | F126: Toon Stroet | H126: =IF(A126=113,0,[1]Sheet1!B129) -> D.L.S.
A127: =IF([1]Sheet1!A130=113,0,[1]Sheet1!A130) -> 10554 | B127: =IF([1]Sheet1!A130=113,0,[1]Sheet1!F130) -> 123552 | C127: =[1]Sheet1!G130 -> Surenbroek | D127: =[1]Sheet1!H130 -> Gerrit | E127: =[1]Sheet1!J130 -> 0 | F127: Gerrit Surenbroek | H127: =IF(A127=113,0,[1]Sheet1!B130) -> D.L.S.
A128: =IF([1]Sheet1!A131=113,0,[1]Sheet1!A131) -> 10554 | B128: =IF([1]Sheet1!A131=113,0,[1]Sheet1!F131) -> 145148 | C128: =[1]Sheet1!G131 -> Vinkenvleugel | D128: =[1]Sheet1!H131 -> Nicol | E128: =[1]Sheet1!J131 -> 0 | F128: Nicol Vinkenvleugel | H128: =IF(A128=113,0,[1]Sheet1!B131) -> D.L.S.
A129: =IF([1]Sheet1!A132=113,0,[1]Sheet1!A132) -> 10554 | B129: =IF([1]Sheet1!A132=113,0,[1]Sheet1!F132) -> 145148 | C129: =[1]Sheet1!G132 -> Vinkenvleugel | D129: =[1]Sheet1!H132 -> Nicol | E129: =[1]Sheet1!J132 -> 0 | F129: Nicol Vinkenvleugel | H129: =IF(A129=113,0,[1]Sheet1!B132) -> D.L.S.
A130: =IF([1]Sheet1!A133=113,0,[1]Sheet1!A133) -> 10555 | B130: =IF([1]Sheet1!A133=113,0,[1]Sheet1!F133) -> 177738 | C130: =[1]Sheet1!G133 -> Beijer | D130: =[1]Sheet1!H133 -> Jo | E130: =[1]Sheet1!J133 -> 0 | F130: Jo Beijer | H130: =IF(A130=113,0,[1]Sheet1!B133) -> Martin
A131: =IF([1]Sheet1!A134=113,0,[1]Sheet1!A134) -> 10555 | B131: =IF([1]Sheet1!A134=113,0,[1]Sheet1!F134) -> 211702 | C131: =[1]Sheet1!G134 -> Berendsen | D131: =[1]Sheet1!H134 -> DaniÃ«l | E131: =[1]Sheet1!J134 -> 0 | F131: DaniÃ«l Berendsen | H131: =IF(A131=113,0,[1]Sheet1!B134) -> Martin
A132: =IF([1]Sheet1!A135=113,0,[1]Sheet1!A135) -> 10555 | B132: =IF([1]Sheet1!A135=113,0,[1]Sheet1!F135) -> 213062 | C132: =[1]Sheet1!G135 -> Berendsen | D132: =[1]Sheet1!H135 -> Gerrie | E132: =[1]Sheet1!J135 -> 0 | F132: Gerrie Berendsen | H132: =IF(A132=113,0,[1]Sheet1!B135) -> Martin
A133: =IF([1]Sheet1!A136=113,0,[1]Sheet1!A136) -> 10555 | B133: =IF([1]Sheet1!A136=113,0,[1]Sheet1!F136) -> 107871 | C133: =[1]Sheet1!G136 -> Berendsen | D133: =[1]Sheet1!H136 -> Theo | E133: =[1]Sheet1!J136 -> 0 | F133: Theo Berendsen | H133: =IF(A133=113,0,[1]Sheet1!B136) -> Martin
A134: =IF([1]Sheet1!A137=113,0,[1]Sheet1!A137) -> 10555 | B134: =IF([1]Sheet1!A137=113,0,[1]Sheet1!F137) -> 107369 | C134: =[1]Sheet1!G137 -> Boerboom | D134: =[1]Sheet1!H137 -> Bennie | E134: =[1]Sheet1!J137 -> 0 | F134: Bennie Boerboom | H134: =IF(A134=113,0,[1]Sheet1!B137) -> Martin
A135: =IF([1]Sheet1!A138=113,0,[1]Sheet1!A138) -> 10555 | B135: =IF([1]Sheet1!A138=113,0,[1]Sheet1!F138) -> 228105 | C135: =[1]Sheet1!G138 -> Boerstal | D135: =[1]Sheet1!H138 -> Benny | E135: =[1]Sheet1!J138 -> 0 | F135: Benny Boerstal | H135: =IF(A135=113,0,[1]Sheet1!B138) -> Martin
A136: =IF([1]Sheet1!A139=113,0,[1]Sheet1!A139) -> 10555 | B136: =IF([1]Sheet1!A139=113,0,[1]Sheet1!F139) -> 224263 | C136: =[1]Sheet1!G139 -> Brink | D136: =[1]Sheet1!H139 -> Klaas | E136: =[1]Sheet1!J139 -> 0 | F136: Klaas Brink | H136: =IF(A136=113,0,[1]Sheet1!B139) -> Martin
A137: =IF([1]Sheet1!A140=113,0,[1]Sheet1!A140) -> 10555 | B137: =IF([1]Sheet1!A140=113,0,[1]Sheet1!F140) -> 224263 | C137: =[1]Sheet1!G140 -> Brink | D137: =[1]Sheet1!H140 -> Klaas | E137: =[1]Sheet1!J140 -> 0 | F137: Klaas Brink | H137: =IF(A137=113,0,[1]Sheet1!B140) -> Martin
A138: =IF([1]Sheet1!A141=113,0,[1]Sheet1!A141) -> 10555 | B138: =IF([1]Sheet1!A141=113,0,[1]Sheet1!F141) -> 225329 | C138: =[1]Sheet1!G141 -> De Reus | D138: =[1]Sheet1!H141 -> Jan | E138: =[1]Sheet1!J141 -> 0 | F138: Jan De Reus | H138: =IF(A138=113,0,[1]Sheet1!B141) -> Martin
A139: =IF([1]Sheet1!A142=113,0,[1]Sheet1!A142) -> 10555 | B139: =IF([1]Sheet1!A142=113,0,[1]Sheet1!F142) -> 208962 | C139: =[1]Sheet1!G142 -> Driessen | D139: =[1]Sheet1!H142 -> Albert | E139: =[1]Sheet1!J142 -> 0 | F139: Albert Driessen | H139: =IF(A139=113,0,[1]Sheet1!B142) -> Martin
A140: =IF([1]Sheet1!A143=113,0,[1]Sheet1!A143) -> 10555 | B140: =IF([1]Sheet1!A143=113,0,[1]Sheet1!F143) -> 215409 | C140: =[1]Sheet1!G143 -> Duis | D140: =[1]Sheet1!H143 -> Jarno | E140: =[1]Sheet1!J143 -> 0 | F140: Jarno Duis | H140: =IF(A140=113,0,[1]Sheet1!B143) -> Martin
A141: =IF([1]Sheet1!A144=113,0,[1]Sheet1!A144) -> 10555 | B141: =IF([1]Sheet1!A144=113,0,[1]Sheet1!F144) -> 220327 | C141: =[1]Sheet1!G144 -> Kamerman | D141: =[1]Sheet1!H144 -> Wim | E141: =[1]Sheet1!J144 -> 0 | F141: Wim Kamerman | H141: =IF(A141=113,0,[1]Sheet1!B144) -> Martin
A142: =IF([1]Sheet1!A145=113,0,[1]Sheet1!A145) -> 10555 | B142: =IF([1]Sheet1!A145=113,0,[1]Sheet1!F145) -> 226652 | C142: =[1]Sheet1!G145 -> Koster | D142: =[1]Sheet1!H145 -> Toon | E142: =[1]Sheet1!J145 -> 0 | F142: Toon Koster | H142: =IF(A142=113,0,[1]Sheet1!B145) -> Martin
A143: =IF([1]Sheet1!A146=113,0,[1]Sheet1!A146) -> 10555 | B143: =IF([1]Sheet1!A146=113,0,[1]Sheet1!F146) -> 167028 | C143: =[1]Sheet1!G146 -> Kupper | D143: =[1]Sheet1!H146 -> Fred | E143: =[1]Sheet1!J146 -> 0 | F143: Fred Kupper | H143: =IF(A143=113,0,[1]Sheet1!B146) -> Martin
A144: =IF([1]Sheet1!A147=113,0,[1]Sheet1!A147) -> 10555 | B144: =IF([1]Sheet1!A147=113,0,[1]Sheet1!F147) -> 208963 | C144: =[1]Sheet1!G147 -> Lintsen | D144: =[1]Sheet1!H147 -> Henk | E144: =[1]Sheet1!J147 -> 0 | F144: Henk Lintsen | H144: =IF(A144=113,0,[1]Sheet1!B147) -> Martin
A145: =IF([1]Sheet1!A148=113,0,[1]Sheet1!A148) -> 10555 | B145: =IF([1]Sheet1!A148=113,0,[1]Sheet1!F148) -> 202470 | C145: =[1]Sheet1!G148 -> Luiten | D145: =[1]Sheet1!H148 -> AndrÃ© | E145: =[1]Sheet1!J148 -> 0 | F145: AndrÃ© Luiten | H145: =IF(A145=113,0,[1]Sheet1!B148) -> Martin
A146: =IF([1]Sheet1!A149=113,0,[1]Sheet1!A149) -> 10555 | B146: =IF([1]Sheet1!A149=113,0,[1]Sheet1!F149) -> 109617 | C146: =[1]Sheet1!G149 -> Maassen | D146: =[1]Sheet1!H149 -> Hans | E146: =[1]Sheet1!J149 -> 0 | F146: Hans Maassen | H146: =IF(A146=113,0,[1]Sheet1!B149) -> Martin
A147: =IF([1]Sheet1!A150=113,0,[1]Sheet1!A150) -> 10555 | B147: =IF([1]Sheet1!A150=113,0,[1]Sheet1!F150) -> 107343 | C147: =[1]Sheet1!G150 -> Mourik | D147: =[1]Sheet1!H150 -> Henk | E147: =[1]Sheet1!J150 -> van | F147: Henk van Mourik | H147: =IF(A147=113,0,[1]Sheet1!B150) -> Martin
A148: =IF([1]Sheet1!A151=113,0,[1]Sheet1!A151) -> 10555 | B148: =IF([1]Sheet1!A151=113,0,[1]Sheet1!F151) -> 107366 | C148: =[1]Sheet1!G151 -> Nova | D148: =[1]Sheet1!H151 -> Wim | E148: =[1]Sheet1!J151 -> 0 | F148: Wim Nova | H148: =IF(A148=113,0,[1]Sheet1!B151) -> Martin
A149: =IF([1]Sheet1!A152=113,0,[1]Sheet1!A152) -> 10555 | B149: =IF([1]Sheet1!A152=113,0,[1]Sheet1!F152) -> 154954 | C149: =[1]Sheet1!G152 -> Ratering | D149: =[1]Sheet1!H152 -> Hans | E149: =[1]Sheet1!J152 -> 0 | F149: =IF(E149=0,CONCATENATE(D149," ",C149),CONCATENATE(D149," ",E149," ",C149)) -> Hans Ratering | H149: =IF(A149=113,0,[1]Sheet1!B152) -> Martin
A150: =IF([1]Sheet1!A153=113,0,[1]Sheet1!A153) -> 10555 | B150: =IF([1]Sheet1!A153=113,0,[1]Sheet1!F153) -> 230253 | C150: =[1]Sheet1!G153 -> Reus | D150: =[1]Sheet1!H153 -> Theo | E150: =[1]Sheet1!J153 -> de | F150: Theo de Reus | H150: =IF(A150=113,0,[1]Sheet1!B153) -> Martin
A151: =IF([1]Sheet1!A154=113,0,[1]Sheet1!A154) -> 10555 | B151: =IF([1]Sheet1!A154=113,0,[1]Sheet1!F154) -> 158410 | C151: =[1]Sheet1!G154 -> Rutjes | D151: =[1]Sheet1!H154 -> Theo | E151: =[1]Sheet1!J154 -> 0 | F151: Theo Rutjes | H151: =IF(A151=113,0,[1]Sheet1!B154) -> Martin
A152: =IF([1]Sheet1!A155=113,0,[1]Sheet1!A155) -> 10555 | B152: =IF([1]Sheet1!A155=113,0,[1]Sheet1!F155) -> 264036 | C152: =[1]Sheet1!G155 -> Scholten | D152: =[1]Sheet1!H155 -> Gilbert | E152: =[1]Sheet1!J155 -> 0 | F152: Gilbert Scholten | H152: =IF(A152=113,0,[1]Sheet1!B155) -> Martin
A153: =IF([1]Sheet1!A156=113,0,[1]Sheet1!A156) -> 10555 | B153: =IF([1]Sheet1!A156=113,0,[1]Sheet1!F156) -> 225331 | C153: =[1]Sheet1!G156 -> Spee | D153: =[1]Sheet1!H156 -> Rob | E153: =[1]Sheet1!J156 -> 0 | F153: Rob Spee | H153: =IF(A153=113,0,[1]Sheet1!B156) -> Martin
A154: =IF([1]Sheet1!A157=113,0,[1]Sheet1!A157) -> 10555 | B154: =IF([1]Sheet1!A157=113,0,[1]Sheet1!F157) -> 154974 | C154: =[1]Sheet1!G157 -> Ussen | D154: =[1]Sheet1!H157 -> Ronald | E154: =[1]Sheet1!J157 -> van | F154: Ronald van Ussen | H154: =IF(A154=113,0,[1]Sheet1!B157) -> Martin
A155: =IF([1]Sheet1!A158=113,0,[1]Sheet1!A158) -> 10555 | B155: =IF([1]Sheet1!A158=113,0,[1]Sheet1!F158) -> 154974 | C155: =[1]Sheet1!G158 -> Ussen | D155: =[1]Sheet1!H158 -> Ronald | E155: =[1]Sheet1!J158 -> van | F155: Ronald van Ussen | H155: =IF(A155=113,0,[1]Sheet1!B158) -> Martin
A156: =IF([1]Sheet1!A159=113,0,[1]Sheet1!A159) -> 10555 | B156: =IF([1]Sheet1!A159=113,0,[1]Sheet1!F159) -> 152246 | C156: =[1]Sheet1!G159 -> Wessel | D156: =[1]Sheet1!H159 -> Ally | E156: =[1]Sheet1!J159 -> van | F156: Ally van Wessel | H156: =IF(A156=113,0,[1]Sheet1!B159) -> Martin
A157: =IF([1]Sheet1!A160=113,0,[1]Sheet1!A160) -> 10555 | B157: =IF([1]Sheet1!A160=113,0,[1]Sheet1!F160) -> 226690 | C157: =[1]Sheet1!G160 -> Wessel | D157: =[1]Sheet1!H160 -> Willy | E157: =[1]Sheet1!J160 -> van | F157: Willy van Wessel | H157: =IF(A157=113,0,[1]Sheet1!B160) -> Martin
A158: =IF([1]Sheet1!A161=113,0,[1]Sheet1!A161) -> 10556 | B158: =IF([1]Sheet1!A161=113,0,[1]Sheet1!F161) -> 120810 | C158: =[1]Sheet1!G161 -> Arendsen | D158: =[1]Sheet1!H161 -> Rob | E158: =[1]Sheet1!J161 -> 0 | F158: Rob Arendsen | H158: =IF(A158=113,0,[1]Sheet1!B161) -> Graafschap
A159: =IF([1]Sheet1!A162=113,0,[1]Sheet1!A162) -> 10556 | B159: =IF([1]Sheet1!A162=113,0,[1]Sheet1!F162) -> 209138 | C159: =[1]Sheet1!G162 -> Baardwijk | D159: =[1]Sheet1!H162 -> Kees | E159: =[1]Sheet1!J162 -> van | F159: Kees van Baardwijk | H159: =IF(A159=113,0,[1]Sheet1!B162) -> Graafschap
A160: =IF([1]Sheet1!A163=113,0,[1]Sheet1!A163) -> 10556 | B160: =IF([1]Sheet1!A163=113,0,[1]Sheet1!F163) -> 154226 | C160: =[1]Sheet1!G163 -> Heuskes | D160: =[1]Sheet1!H163 -> Marcel | E160: =[1]Sheet1!J163 -> 0 | F160: Marcel Heuskes | H160: =IF(A160=113,0,[1]Sheet1!B163) -> Graafschap
A161: =IF([1]Sheet1!A164=113,0,[1]Sheet1!A164) -> 10556 | B161: =IF([1]Sheet1!A164=113,0,[1]Sheet1!F164) -> 154226 | C161: =[1]Sheet1!G164 -> Heuskes | D161: =[1]Sheet1!H164 -> Marcel | E161: =[1]Sheet1!J164 -> 0 | F161: Marcel Heuskes | H161: =IF(A161=113,0,[1]Sheet1!B164) -> Graafschap
A162: =IF([1]Sheet1!A165=113,0,[1]Sheet1!A165) -> 10556 | B162: =IF([1]Sheet1!A165=113,0,[1]Sheet1!F165) -> 234531 | C162: =[1]Sheet1!G165 -> Horst | D162: =[1]Sheet1!H165 -> Ben | E162: =[1]Sheet1!J165 -> ter | F162: Ben ter Horst | H162: =IF(A162=113,0,[1]Sheet1!B165) -> Graafschap
A163: =IF([1]Sheet1!A166=113,0,[1]Sheet1!A166) -> 10556 | B163: =IF([1]Sheet1!A166=113,0,[1]Sheet1!F166) -> 220456 | C163: =[1]Sheet1!G166 -> Kramp | D163: =[1]Sheet1!H166 -> Gerjan | E163: =[1]Sheet1!J166 -> 0 | F163: Gerjan Kramp | H163: =IF(A163=113,0,[1]Sheet1!B166) -> Graafschap
A164: =IF([1]Sheet1!A167=113,0,[1]Sheet1!A167) -> 10556 | B164: =IF([1]Sheet1!A167=113,0,[1]Sheet1!F167) -> 218736 | C164: =[1]Sheet1!G167 -> Pasmans | D164: =[1]Sheet1!H167 -> Mary | E164: =[1]Sheet1!J167 -> 0 | F164: Mary Pasmans | H164: =IF(A164=113,0,[1]Sheet1!B167) -> Graafschap
A165: =IF([1]Sheet1!A168=113,0,[1]Sheet1!A168) -> 10556 | B165: =IF([1]Sheet1!A168=113,0,[1]Sheet1!F168) -> 154947 | C165: =[1]Sheet1!G168 -> Tap | D165: =[1]Sheet1!H168 -> Addie | E165: =[1]Sheet1!J168 -> 0 | F165: Addie Tap | H165: =IF(A165=113,0,[1]Sheet1!B168) -> Graafschap
A166: =IF([1]Sheet1!A169=113,0,[1]Sheet1!A169) -> 10556 | B166: =IF([1]Sheet1!A169=113,0,[1]Sheet1!F169) -> 213741 | C166: =[1]Sheet1!G169 -> Tutschek | D166: =[1]Sheet1!H169 -> Willie | E166: =[1]Sheet1!J169 -> 0 | F166: Willie Tutschek | H166: =IF(A166=113,0,[1]Sheet1!B169) -> Graafschap
A167: =IF([1]Sheet1!A170=113,0,[1]Sheet1!A170) -> 10556 | B167: =IF([1]Sheet1!A170=113,0,[1]Sheet1!F170) -> 134356 | C167: =[1]Sheet1!G170 -> Veenhuis | D167: =[1]Sheet1!H170 -> Hans | E167: =[1]Sheet1!J170 -> 0 | F167: Hans Veenhuis | H167: =IF(A167=113,0,[1]Sheet1!B170) -> Graafschap
A168: =IF([1]Sheet1!A171=113,0,[1]Sheet1!A171) -> 10556 | B168: =IF([1]Sheet1!A171=113,0,[1]Sheet1!F171) -> 134356 | C168: =[1]Sheet1!G171 -> Veenhuis | D168: =[1]Sheet1!H171 -> Hans | E168: =[1]Sheet1!J171 -> 0 | F168: Hans Veenhuis | H168: =IF(A168=113,0,[1]Sheet1!B171) -> Graafschap
A169: =IF([1]Sheet1!A172=113,0,[1]Sheet1!A172) -> 10559 | B169: =IF([1]Sheet1!A172=113,0,[1]Sheet1!F172) -> 126875 | C169: =[1]Sheet1!G172 -> Alink | D169: =[1]Sheet1!H172 -> Boudewijn | E169: =[1]Sheet1!J172 -> 0 | F169: Boudewijn Alink | H169: =IF(A169=113,0,[1]Sheet1!B172) -> Veemarkt
A170: =IF([1]Sheet1!A173=113,0,[1]Sheet1!A173) -> 10559 | B170: =IF([1]Sheet1!A173=113,0,[1]Sheet1!F173) -> 204609 | C170: =[1]Sheet1!G173 -> Baars | D170: =[1]Sheet1!H173 -> Gert | E170: =[1]Sheet1!J173 -> 0 | F170: Gert Baars | H170: =IF(A170=113,0,[1]Sheet1!B173) -> Veemarkt
A171: =IF([1]Sheet1!A174=113,0,[1]Sheet1!A174) -> 10559 | B171: =IF([1]Sheet1!A174=113,0,[1]Sheet1!F174) -> 162192 | C171: =[1]Sheet1!G174 -> Bakker | D171: =[1]Sheet1!H174 -> Matthijs | E171: =[1]Sheet1!J174 -> 0 | F171: Matthijs Bakker | H171: =IF(A171=113,0,[1]Sheet1!B174) -> Veemarkt
A172: =IF([1]Sheet1!A175=113,0,[1]Sheet1!A175) -> 10559 | B172: =IF([1]Sheet1!A175=113,0,[1]Sheet1!F175) -> 217549 | C172: =[1]Sheet1!G175 -> Berendsen | D172: =[1]Sheet1!H175 -> Ap | E172: =[1]Sheet1!J175 -> 0 | F172: Ap Berendsen | H172: =IF(A172=113,0,[1]Sheet1!B175) -> Veemarkt
A173: =IF([1]Sheet1!A176=113,0,[1]Sheet1!A176) -> 10559 | B173: =IF([1]Sheet1!A176=113,0,[1]Sheet1!F176) -> 216609 | C173: =[1]Sheet1!G176 -> Bloemenkamp | D173: =[1]Sheet1!H176 -> Eric | E173: =[1]Sheet1!J176 -> 0 | F173: Eric Bloemenkamp | H173: =IF(A173=113,0,[1]Sheet1!B176) -> Veemarkt
A174: =IF([1]Sheet1!A177=113,0,[1]Sheet1!A177) -> 10559 | B174: =IF([1]Sheet1!A177=113,0,[1]Sheet1!F177) -> 169454 | C174: =[1]Sheet1!G177 -> Bremer | D174: =[1]Sheet1!H177 -> Theo | E174: =[1]Sheet1!J177 -> 0 | F174: Theo Bremer | H174: =IF(A174=113,0,[1]Sheet1!B177) -> Veemarkt
A175: =IF([1]Sheet1!A178=113,0,[1]Sheet1!A178) -> 10559 | B175: =IF([1]Sheet1!A178=113,0,[1]Sheet1!F178) -> 154909 | C175: =[1]Sheet1!G178 -> Bruggink | D175: =[1]Sheet1!H178 -> Han | E175: =[1]Sheet1!J178 -> 0 | F175: Han Bruggink | H175: =IF(A175=113,0,[1]Sheet1!B178) -> Veemarkt
A176: =IF([1]Sheet1!A179=113,0,[1]Sheet1!A179) -> 10559 | B176: =IF([1]Sheet1!A179=113,0,[1]Sheet1!F179) -> 172652 | C176: =[1]Sheet1!G179 -> Bruin | D176: =[1]Sheet1!H179 -> Gert | E176: =[1]Sheet1!J179 -> de | F176: Gert de Bruin | H176: =IF(A176=113,0,[1]Sheet1!B179) -> Veemarkt
A177: =IF([1]Sheet1!A180=113,0,[1]Sheet1!A180) -> 10559 | B177: =IF([1]Sheet1!A180=113,0,[1]Sheet1!F180) -> 130389 | C177: =[1]Sheet1!G180 -> Dericks | D177: =[1]Sheet1!H180 -> Rene | E177: =[1]Sheet1!J180 -> 0 | F177: Rene Dericks | H177: =IF(A177=113,0,[1]Sheet1!B180) -> Veemarkt
A178: =IF([1]Sheet1!A181=113,0,[1]Sheet1!A181) -> 10559 | B178: =IF([1]Sheet1!A181=113,0,[1]Sheet1!F181) -> 109746 | C178: =[1]Sheet1!G181 -> Dierssen | D178: =[1]Sheet1!H181 -> Willy | E178: =[1]Sheet1!J181 -> 0 | F178: Willy Dierssen | H178: =IF(A178=113,0,[1]Sheet1!B181) -> Veemarkt
A179: =IF([1]Sheet1!A182=113,0,[1]Sheet1!A182) -> 10559 | B179: =IF([1]Sheet1!A182=113,0,[1]Sheet1!F182) -> 205824 | C179: =[1]Sheet1!G182 -> Dolleman | D179: =[1]Sheet1!H182 -> Ronald | E179: =[1]Sheet1!J182 -> 0 | F179: Ronald Dolleman | H179: =IF(A179=113,0,[1]Sheet1!B182) -> Veemarkt
A180: =IF([1]Sheet1!A183=113,0,[1]Sheet1!A183) -> 10559 | B180: =IF([1]Sheet1!A183=113,0,[1]Sheet1!F183) -> 264152 | C180: =[1]Sheet1!G183 -> Gerrits | D180: =[1]Sheet1!H183 -> Karel | E180: =[1]Sheet1!J183 -> 0 | F180: Karel Gerrits | H180: =IF(A180=113,0,[1]Sheet1!B183) -> Veemarkt
A181: =IF([1]Sheet1!A184=113,0,[1]Sheet1!A184) -> 10559 | B181: =IF([1]Sheet1!A184=113,0,[1]Sheet1!F184) -> 264152 | C181: =[1]Sheet1!G184 -> Gerrits | D181: =[1]Sheet1!H184 -> Karel | E181: =[1]Sheet1!J184 -> 0 | F181: Karel Gerrits | H181: =IF(A181=113,0,[1]Sheet1!B184) -> Veemarkt
A182: =IF([1]Sheet1!A185=113,0,[1]Sheet1!A185) -> 10559 | B182: =IF([1]Sheet1!A185=113,0,[1]Sheet1!F185) -> 214970 | C182: =[1]Sheet1!G185 -> Gerritsen | D182: =[1]Sheet1!H185 -> Frans | E182: =[1]Sheet1!J185 -> 0 | F182: Frans Gerritsen | H182: =IF(A182=113,0,[1]Sheet1!B185) -> Veemarkt
A183: =IF([1]Sheet1!A186=113,0,[1]Sheet1!A186) -> 10559 | B183: =IF([1]Sheet1!A186=113,0,[1]Sheet1!F186) -> 172686 | C183: =[1]Sheet1!G186 -> Gooswilligen | D183: =[1]Sheet1!H186 -> Ronald | E183: =[1]Sheet1!J186 -> van | F183: Ronald van Gooswilligen | H183: =IF(A183=113,0,[1]Sheet1!B186) -> Veemarkt
A184: =IF([1]Sheet1!A187=113,0,[1]Sheet1!A187) -> 10559 | B184: =IF([1]Sheet1!A187=113,0,[1]Sheet1!F187) -> 263819 | C184: =[1]Sheet1!G187 -> Hemert | D184: =[1]Sheet1!H187 -> Ingrid | E184: =[1]Sheet1!J187 -> van | F184: Ingrid van Hemert | H184: =IF(A184=113,0,[1]Sheet1!B187) -> Veemarkt
A185: =IF([1]Sheet1!A188=113,0,[1]Sheet1!A188) -> 10559 | B185: =IF([1]Sheet1!A188=113,0,[1]Sheet1!F188) -> 263821 | C185: =[1]Sheet1!G188 -> Hemert | D185: =[1]Sheet1!H188 -> Jolanda | E185: =[1]Sheet1!J188 -> van | F185: Jolanda van Hemert | H185: =IF(A185=113,0,[1]Sheet1!B188) -> Veemarkt
A186: =IF([1]Sheet1!A189=113,0,[1]Sheet1!A189) -> 10559 | B186: =IF([1]Sheet1!A189=113,0,[1]Sheet1!F189) -> 233349 | C186: =[1]Sheet1!G189 -> Holtslag | D186: =[1]Sheet1!H189 -> Marcel | E186: =[1]Sheet1!J189 -> 0 | F186: Marcel Holtslag | H186: =IF(A186=113,0,[1]Sheet1!B189) -> Veemarkt
A187: =IF([1]Sheet1!A190=113,0,[1]Sheet1!A190) -> 10559 | B187: =IF([1]Sheet1!A190=113,0,[1]Sheet1!F190) -> 154171 | C187: =[1]Sheet1!G190 -> Hornschemeyer | D187: =[1]Sheet1!H190 -> Jurgen | E187: =[1]Sheet1!J190 -> 0 | F187: Jurgen Hornschemeyer | H187: =IF(A187=113,0,[1]Sheet1!B190) -> Veemarkt
A188: =IF([1]Sheet1!A191=113,0,[1]Sheet1!A191) -> 10559 | B188: =IF([1]Sheet1!A191=113,0,[1]Sheet1!F191) -> 154171 | C188: =[1]Sheet1!G191 -> Hornschemeyer | D188: =[1]Sheet1!H191 -> Jurgen | E188: =[1]Sheet1!J191 -> 0 | F188: Jurgen Hornschemeyer | H188: =IF(A188=113,0,[1]Sheet1!B191) -> Veemarkt
A189: =IF([1]Sheet1!A192=113,0,[1]Sheet1!A192) -> 10559 | B189: =IF([1]Sheet1!A192=113,0,[1]Sheet1!F192) -> 218095 | C189: =[1]Sheet1!G192 -> Huntink | D189: =[1]Sheet1!H192 -> Henk | E189: =[1]Sheet1!J192 -> 0 | F189: Henk Huntink | H189: =IF(A189=113,0,[1]Sheet1!B192) -> Veemarkt
A190: =IF([1]Sheet1!A193=113,0,[1]Sheet1!A193) -> 10559 | B190: =IF([1]Sheet1!A193=113,0,[1]Sheet1!F193) -> 225583 | C190: =[1]Sheet1!G193 -> Jansen | D190: =[1]Sheet1!H193 -> Johan | E190: =[1]Sheet1!J193 -> 0 | F190: Johan Jansen | H190: =IF(A190=113,0,[1]Sheet1!B193) -> Veemarkt
A191: =IF([1]Sheet1!A194=113,0,[1]Sheet1!A194) -> 10559 | B191: =IF([1]Sheet1!A194=113,0,[1]Sheet1!F194) -> 203373 | C191: =[1]Sheet1!G194 -> Jansen | D191: =[1]Sheet1!H194 -> Yannik | E191: =[1]Sheet1!J194 -> 0 | F191: Yannik Jansen | H191: =IF(A191=113,0,[1]Sheet1!B194) -> Veemarkt
A192: =IF([1]Sheet1!A195=113,0,[1]Sheet1!A195) -> 10559 | B192: =IF([1]Sheet1!A195=113,0,[1]Sheet1!F195) -> 205485 | C192: =[1]Sheet1!G195 -> Jolink | D192: =[1]Sheet1!H195 -> Mike | E192: =[1]Sheet1!J195 -> 0 | F192: Mike Jolink | H192: =IF(A192=113,0,[1]Sheet1!B195) -> Veemarkt
A193: =IF([1]Sheet1!A196=113,0,[1]Sheet1!A196) -> 10559 | B193: =IF([1]Sheet1!A196=113,0,[1]Sheet1!F196) -> 208121 | C193: =[1]Sheet1!G196 -> Kampkuiper | D193: =[1]Sheet1!H196 -> Herbert | E193: =[1]Sheet1!J196 -> 0 | F193: Herbert Kampkuiper | H193: =IF(A193=113,0,[1]Sheet1!B196) -> Veemarkt
A194: =IF([1]Sheet1!A197=113,0,[1]Sheet1!A197) -> 10559 | B194: =IF([1]Sheet1!A197=113,0,[1]Sheet1!F197) -> 236892 | C194: =[1]Sheet1!G197 -> Kemp | D194: =[1]Sheet1!H197 -> Stef | E194: =[1]Sheet1!J197 -> van der | F194: Stef van der Kemp | H194: =IF(A194=113,0,[1]Sheet1!B197) -> Veemarkt
A195: =IF([1]Sheet1!A198=113,0,[1]Sheet1!A198) -> 10559 | B195: =IF([1]Sheet1!A198=113,0,[1]Sheet1!F198) -> 154985 | C195: =[1]Sheet1!G198 -> Kleinpenning | D195: =[1]Sheet1!H198 -> Hans | E195: =[1]Sheet1!J198 -> 0 | F195: Hans Kleinpenning | H195: =IF(A195=113,0,[1]Sheet1!B198) -> Veemarkt
A196: =IF([1]Sheet1!A199=113,0,[1]Sheet1!A199) -> 10559 | B196: =IF([1]Sheet1!A199=113,0,[1]Sheet1!F199) -> 154985 | C196: =[1]Sheet1!G199 -> Kleinpenning | D196: =[1]Sheet1!H199 -> Hans | E196: =[1]Sheet1!J199 -> 0 | F196: Hans Kleinpenning | H196: =IF(A196=113,0,[1]Sheet1!B199) -> Veemarkt
A197: =IF([1]Sheet1!A200=113,0,[1]Sheet1!A200) -> 10559 | B197: =IF([1]Sheet1!A200=113,0,[1]Sheet1!F200) -> 154985 | C197: =[1]Sheet1!G200 -> Kleinpenning | D197: =[1]Sheet1!H200 -> Hans | E197: =[1]Sheet1!J200 -> 0 | F197: Hans Kleinpenning | H197: =IF(A197=113,0,[1]Sheet1!B200) -> Veemarkt
A198: =IF([1]Sheet1!A201=113,0,[1]Sheet1!A201) -> 10559 | B198: =IF([1]Sheet1!A201=113,0,[1]Sheet1!F201) -> 122953 | C198: =[1]Sheet1!G201 -> Klok | D198: =[1]Sheet1!H201 -> Hans | E198: =[1]Sheet1!J201 -> 0 | F198: Hans Klok | H198: =IF(A198=113,0,[1]Sheet1!B201) -> Veemarkt
A199: =IF([1]Sheet1!A202=113,0,[1]Sheet1!A202) -> 10559 | B199: =IF([1]Sheet1!A202=113,0,[1]Sheet1!F202) -> 111180 | C199: =[1]Sheet1!G202 -> Klomp | D199: =[1]Sheet1!H202 -> Frits | E199: =[1]Sheet1!J202 -> 0 | F199: Frits Klomp | H199: =IF(A199=113,0,[1]Sheet1!B202) -> Veemarkt
A200: =IF([1]Sheet1!A203=113,0,[1]Sheet1!A203) -> 10559 | B200: =IF([1]Sheet1!A203=113,0,[1]Sheet1!F203) -> 158316 | C200: =[1]Sheet1!G203 -> Lassig | D200: =[1]Sheet1!H203 -> Carsten | E200: =[1]Sheet1!J203 -> 0 | F200: Carsten Lassig | H200: =IF(A200=113,0,[1]Sheet1!B203) -> Veemarkt
... 1859 more rows
